Ref No,Fund Type,Dept,Cost Centre Description    ,Description    ,Creditor Name    ,GL Code Net Amount,Payment date        
2,Revenue,CAHD,CSC - Vinney Green Secure Unit,Educational Materials, AMS Dyslexia Support,600.00, 23-Mar-2022
3,Revenue,CAHD,Central - Commissioned Services,Permanent Residential,1 St Georges House,13333.52, 08-Mar-2022
4,Revenue,CAHD,Central - Commissioned Services,Fees & Charges Income - General,1 St Georges House,-425.60, 08-Mar-2022
5,Revenue,CAHD,Early Years High Needs Support,Other Private Contractors,100 Acre Wood Day Nursery,910.07, 21-Mar-2022
6,Revenue,CAHD,CSC - LAC Housing Support Grants,Grants to Voluntary Bodies,1625 Independent People,3343.00, 16-Mar-2022
7,Revenue,CAHD,Supporting People Programme,Grants to Voluntary Bodies,1625 Independent People,15167.00, 01-Mar-2022
8,Revenue,CAHD,South - Commissioned Services,Permanent Residential,2Nd Floor Building,5630.76, 08-Mar-2022
9,Revenue,CAHD,South - Commissioned Services,Fees & Charges Income - General,2Nd Floor Building,-425.60, 08-Mar-2022
10,Revenue,CAHD,South - Commissioned Services,Permanent Residential,2Nd Floor Building,2806.12, 08-Mar-2022
11,Revenue,CAHD,South - Commissioned Services,Fees & Charges Income - General,2Nd Floor Building,-425.60, 08-Mar-2022
12,Revenue,CAHD,Central - Commissioned Services,Other Small Contracts,3 Trees Community Support Ltd,7595.29, 01-Mar-2022
13,Revenue,CAHD,Central - Commissioned Services,Supported Living,3 Trees Community Support Ltd,3008.17, 01-Mar-2022
14,Revenue,CAHD,Central - Commissioned Services,Other Small Contracts,3 Trees Community Support Ltd,7595.29, 09-Mar-2022
15,Revenue,CAHD,Central - Commissioned Services,Supported Living,3 Trees Community Support Ltd,3008.17, 09-Mar-2022
16,Revenue,CAHD,Central - Commissioned Services,Other Small Contracts,3 Trees Community Support Ltd,7595.29, 16-Mar-2022
17,Revenue,CAHD,Central - Commissioned Services,Supported Living,3 Trees Community Support Ltd,3008.17, 16-Mar-2022
18,Revenue,CAHD,Central - Commissioned Services,Other Small Contracts,3 Trees Community Support Ltd,7595.29, 23-Mar-2022
19,Revenue,CAHD,Central - Commissioned Services,Supported Living,3 Trees Community Support Ltd,3008.17, 23-Mar-2022
20,Revenue,CAHD,Central - Commissioned Services,Other Small Contracts,3 Trees Community Support Ltd,7595.29, 30-Mar-2022
21,Revenue,CAHD,Central - Commissioned Services,Supported Living,3 Trees Community Support Ltd,3008.17, 30-Mar-2022
22,Revenue,CAHD,South - Commissioned Services,Permanent Residential,5Th Floor Harlech Court,11933.40, 08-Mar-2022
23,Revenue,CAHD,South - Commissioned Services,Permanent Residential,5Th Floor Harlech Court,17391.48, 08-Mar-2022
24,Revenue,CAHD,South - Commissioned Services,Permanent Residential,5Th Floor Harlech Court,18290.84, 08-Mar-2022
25,Revenue,CAHD,South - Commissioned Services,Fees & Charges Income - General,5Th Floor Harlech Court,-18761.72, 08-Mar-2022
26,Revenue,CAHD,South - Commissioned Services,Fees & Charges Income - General,5Th Floor Harlech Court,-425.60, 08-Mar-2022
27,Revenue,CAHD,South - Commissioned Services,Fees & Charges Income - General,5Th Floor Harlech Court,-400.60, 08-Mar-2022
28,Revenue,CAHD,S28A cases,Permanent Residential,5Th Floor Harlech Court,11378.60, 08-Mar-2022
29,Revenue,CAHD,S28A cases,Fees & Charges Income - General,5Th Floor Harlech Court,-388.80, 08-Mar-2022
30,Revenue,CAHD,North - Community based support,Permanent Residential,5Th Floor Harlech Court,12498.56, 08-Mar-2022
31,Revenue,CAHD,North - Community based support,Fees & Charges Income - General,5Th Floor Harlech Court,-686.52, 08-Mar-2022
32,Revenue,CAHD,Central - Commissioned Services,Permanent Residential,5Th Floor Harlech Court,14891.36, 08-Mar-2022
33,Revenue,CAHD,Central - Commissioned Services,Fees & Charges Income - General,5Th Floor Harlech Court,-425.60, 08-Mar-2022
34,Revenue,CAHD,North - Community based support,Permanent Residential,5Th Floor Harlech Court,9071.12, 08-Mar-2022
35,Revenue,CAHD,North - Community based support,Permanent Residential,5Th Floor Harlech Court,10537.24, 08-Mar-2022
36,Revenue,CAHD,North - Community based support,Fees & Charges Income - General,5Th Floor Harlech Court,-425.60, 08-Mar-2022
37,Revenue,CAHD,Central - Commissioned Services,Non Residential Care Income,A4E Management Ltd,-108.14, 04-Mar-2022
38,Revenue,CAHD,Central - Commissioned Services,Non Residential Care Income,A4E Management Ltd,-108.14, 18-Mar-2022
39,Revenue,CAHD,Early Years Pupil Premium Grant,Preventative Assistance,Abacus Pre-School (Meadowbrook),667.80, 15-Mar-2022
40,Revenue,CAHD,EARLY YEARS DEPRIVATION PAYMENT,Preventative Assistance,Abacus Pre-School (Meadowbrook),755.72, 15-Mar-2022
41,Revenue,CAHD,South - Commissioned Services,Permanent Nursing,Acacia House,3085.88, 08-Mar-2022
42,Revenue,CAHD,South - Commissioned Services,Fees & Charges Income - General,Acacia House,-1043.64, 08-Mar-2022
43,Revenue,CAHD,Central - Commissioned Services,Permanent Nursing,Acacia House,3587.76, 08-Mar-2022
44,Revenue,CAHD,Post 16 High Needs Placements,Other Private Contractors,Access To Music Ltd,688.36, 07-Mar-2022
45,Revenue,CAHD,Post 16 High Needs Placements,Other Private Contractors,Access To Music Ltd,3841.33, 07-Mar-2022
46,Revenue,CAHD,Post 16 High Needs Placements,Other Private Contractors,Access To Music Ltd,920.98, 07-Mar-2022
47,Revenue,CAHD,Post 16 High Needs Placements,Other Private Contractors,Access To Music Ltd,1894.24, 07-Mar-2022
48,Revenue,CAHD,Home Care Monitoring (CM2000),Other Supplies & Services,Access UK Limited,15536.22, 15-Mar-2022
49,Revenue,CAHD,Home Care Monitoring (CM2000),Other Supplies & Services,Access UK Limited,15485.13, 30-Mar-2022
50,Revenue,CAHD,Central - Commissioned Services,Permanent Residential,Acer House Care Home.,3800.00, 08-Mar-2022
51,Revenue,CAHD,Central - Commissioned Services,Fees & Charges Income - General,Acer House Care Home.,-1060.72, 08-Mar-2022
52,Revenue,CAHD,MH Purchasing - Younger,Permanent Residential,Acorn Care Providers,6528.84, 08-Mar-2022
53,Revenue,CAHD,MH Purchasing - Younger,Permanent Residential,Acorn Care Providers,6411.00, 08-Mar-2022
54,Revenue,CAHD,North - S117,Permanent Residential,Acorn Care Providers,4067.36, 08-Mar-2022
55,Revenue,CAHD,Section 117 Placements MH Younger,Permanent Residential,Acorn Care Providers,5605.08, 08-Mar-2022
56,Revenue,CAHD,Jointly Funded H&SC Packages,Permanent Residential,Acorn Care Providers,3515.52, 08-Mar-2022
57,Revenue,CAHD,Jointly Funded H&SC Packages,Permanent Residential,Acorn Care Providers,2366.36, 08-Mar-2022
58,Revenue,CAHD,Jointly Funded H&SC Packages,Permanent Residential,Acorn Care Providers,2193.40, 08-Mar-2022
59,Revenue,CAHD,Covid  - Workforce capacity,Grants to Voluntary Bodies,Acorn Care Providers,500.83, 30-Mar-2022
60,Revenue,CAHD,Covid  - Workforce capacity,Grants to Voluntary Bodies,Acorn Care Providers,2060.11, 07-Mar-2022
61,Revenue,CAHD,Covid  - Workforce capacity,Grants to Voluntary Bodies,Acorn Care Providers,515.03, 07-Mar-2022
62,Revenue,CAHD,Covid  - Workforce capacity,Grants to Voluntary Bodies,Acorn Care Providers,882.91, 30-Mar-2022
63,Revenue,CAHD,Training Budget - Children`s Social Serv,Training Expenses,Acorn Health & Safety Limited,449.00, 14-Mar-2022
64,Revenue,CAHD,Training - Adult Services,Training Expenses,Acorn Health & Safety Limited,477.00, 18-Mar-2022
65,Revenue,CAHD,Training - Adult Services,Training Expenses,Acorn Health & Safety Limited,418.00, 23-Mar-2022
66,Revenue,CAHD,Training - Adult Services,Training Expenses,Acorn Health & Safety Limited,620.00, 30-Mar-2022
67,Revenue,CAHD,School Improvement and Support,Training Expenses,Acorn Hotels Ltd T/A The Walnut Tree Hotel,547.76, 22-Mar-2022
68,Revenue,CAHD,CSC - Agency Fostering,Foster Parent Allowances,Action for Children,3355.80, 18-Mar-2022
69,Revenue,CAHD,CSC - Agency Fostering,Foster Parent Allowances,Action for Children,3355.80, 18-Mar-2022
70,Revenue,CAHD,CSC - Residential Placements,Permanent Residential,Action for Children,57874.00, 02-Mar-2022
71,Revenue,CAHD,CSC - Age Related Allowances,Foster Parent Allowances,Individual,202.00, 25-Mar-2022
72,Revenue,CAHD,CSC - Age Related Allowances,Xmas / Birthday Allowances,Individual,202.00, 25-Mar-2022
73,Revenue,CAHD,CSC - Professional Fees Foster Carers,Band 3 Foster Care,Individual,241.00, 25-Mar-2022
74,Revenue,CAHD,CSC - Asylum Seekers - Unaccompanied,Independent Living,Adolescent Support Home Services Ltd,6740.00, 24-Mar-2022
75,Revenue,CAHD,CSC - Asylum Seekers - Unaccompanied,Independent Living,Adolescent Support Home Services Ltd,6740.00, 24-Mar-2022
76,Revenue,CAHD,South - Commissioned Services,Other Small Contracts,Advantedge Commercial Finance Limited,1331.66, 16-Mar-2022
77,Revenue,CAHD,South - Commissioned Services,Other Small Contracts,Advantedge Commercial Finance Limited,934.36, 25-Mar-2022
78,Revenue,CAHD,Central - Commissioned Services,Other Small Contracts,Advantedge Commercial Finance Limited,2186.36, 25-Mar-2022
79,Revenue,CAHD,South - Commissioned Services,Other Small Contracts,Advantedge Commercial Finance Limited,675.92, 14-Mar-2022
80,Revenue,CAHD,South - Commissioned Services,Other Small Contracts,Advantedge Commercial Finance Limited,2504.44, 15-Mar-2022
81,Revenue,CAHD,South - Commissioned Services,Other Small Contracts,Advantedge Commercial Finance Limited,1252.44, 14-Mar-2022
82,Revenue,CAHD,South - Commissioned Services,Other Small Contracts,Advantedge Commercial Finance Limited,556.64, 25-Mar-2022
83,Revenue,CAHD,South - Commissioned Services,Other Small Contracts,Advantedge Commercial Finance Limited,2027.32, 15-Mar-2022
84,Revenue,CAHD,South - Commissioned Services,Other Small Contracts,Advantedge Commercial Finance Limited,1143.10, 15-Mar-2022
85,Revenue,CAHD,Central - Commissioned Services,Other Small Contracts,Advantedge Commercial Finance Limited,2504.88, 25-Mar-2022
86,Revenue,CAHD,South - Commissioned Services,Other Small Contracts,Advantedge Commercial Finance Limited,695.80, 16-Mar-2022
87,Revenue,CAHD,South - Commissioned Services,Other Small Contracts,Advantedge Commercial Finance Limited,1257.41, 16-Mar-2022
88,Revenue,CAHD,South - Commissioned Services,Other Small Contracts,Advantedge Commercial Finance Limited,636.16, 16-Mar-2022
89,Revenue,CAHD,South - Commissioned Services,Other Small Contracts,Advantedge Commercial Finance Limited,1182.86, 16-Mar-2022
90,Revenue,CAHD,South - Commissioned Services,Other Small Contracts,Advantedge Commercial Finance Limited,690.83, 16-Mar-2022
91,Revenue,CAHD,Covid - ASC - Infection Control,Grants to Voluntary Bodies,Advantedge Commercial Finance Limited,1316.30, 25-Mar-2022
92,Revenue,CAHD,ASC Rapid Testing Fund,Grants to Voluntary Bodies,Advantedge Commercial Finance Limited,965.60, 25-Mar-2022
93,Revenue,CAHD,Central - Commissioned Services,Day Care / Social Activities,Age Concern,559.36, 08-Mar-2022
94,Revenue,CAHD,Central - Commissioned Services,Day Care / Social Activities,Age Concern,324.32, 08-Mar-2022
95,Revenue,CAHD,South - Commissioned Services,Day Care / Social Activities,Age Concern,220.00, 08-Mar-2022
96,Revenue,CAHD,South - Commissioned Services,Day Care / Social Activities,Age Concern,220.00, 08-Mar-2022
97,Revenue,CAHD,North - Community based support,Day Care / Social Activities,Age Concern,330.88, 08-Mar-2022
98,Revenue,CAHD,North - Community based support,Day Care / Social Activities,Age Concern,279.68, 08-Mar-2022
99,Revenue,CAHD,Central - Commissioned Services,Day Care / Social Activities,Age UK - Grace Court,279.68, 08-Mar-2022
100,Revenue,CAHD,South - Commissioned Services,Day Care / Social Activities,Age UK - Grace Court,219.92, 08-Mar-2022
101,Revenue,CAHD,South - Commissioned Services,Day Care / Social Activities,Age UK - Grace Court,176.10, 08-Mar-2022
102,Revenue,CAHD,South - Commissioned Services,Day Care / Social Activities,Age UK - Grace Court,279.68, 08-Mar-2022
103,Revenue,CAHD,South - Commissioned Services,Day Care / Social Activities,Age UK - Grace Court,1296.96, 08-Mar-2022
104,Revenue,CAHD,South - Commissioned Services,Day Care / Social Activities,Age UK - Grace Court,219.92, 08-Mar-2022
105,Revenue,CAHD,South - Commissioned Services,Day Care / Social Activities,Age UK - Grace Court,279.68, 08-Mar-2022
106,Revenue,CAHD,North - Community based support,Day Care / Social Activities,Age UK - Grace Court,264.56, 08-Mar-2022
107,Revenue,CAHD,North - Community based support,Day Care / Social Activities,Age UK - Grace Court,375.68, 08-Mar-2022
108,Revenue,CAHD,Central - Commissioned Services,Day Care / Social Activities,Age UK South Gloucestershire,10708.31, 11-Mar-2022
109,Revenue,CAHD,Covid - ASC - Infection Control,Grants to Voluntary Bodies,Age UK South Gloucestershire,978.78, 07-Mar-2022
110,Revenue,CAHD,ASC Rapid Testing Fund,Grants to Voluntary Bodies,Age UK South Gloucestershire,718.01, 07-Mar-2022
111,Revenue,CAHD,Covid  - Workforce capacity,Grants to Voluntary Bodies,Age UK South Gloucestershire,681.69, 25-Mar-2022
112,Revenue,CAHD,Extra Care Housing,Private & Voluntary Home Care,Agincare UK Limited,25182.31, 01-Mar-2022
113,Revenue,CAHD,Extra Care Housing,Private & Voluntary Home Care,Agincare UK Limited,12116.29, 01-Mar-2022
114,Revenue,CAHD,Extra Care Housing,Private & Voluntary Home Care,Agincare UK Limited,30860.93, 04-Mar-2022
115,Revenue,CAHD,Extra Care Housing,Private & Voluntary Home Care,Agincare UK Limited,5458.37, 07-Mar-2022
116,Revenue,CAHD,Extra Care Housing,Private & Voluntary Home Care,Agincare UK Limited,5458.37, 14-Mar-2022
117,Revenue,CAHD,Extra Care Housing,Private & Voluntary Home Care,Agincare UK Limited,5458.37, 21-Mar-2022
118,Revenue,CAHD,Extra Care Housing,Private & Voluntary Home Care,Agincare UK Limited,5458.37, 28-Mar-2022
119,Revenue,CAHD,South - Commissioned Services,Day Care / Social Activities,Agincare UK Limited,512.53, 01-Mar-2022
120,Revenue,CAHD,South - Commissioned Services,Day Care / Social Activities,Agincare UK Limited,512.53, 09-Mar-2022
121,Revenue,CAHD,South - Commissioned Services,Day Care / Social Activities,Agincare UK Limited,512.53, 16-Mar-2022
122,Revenue,CAHD,South - Commissioned Services,Day Care / Social Activities,Agincare UK Limited,512.53, 23-Mar-2022
123,Revenue,CAHD,South - Commissioned Services,Day Care / Social Activities,Agincare UK Limited,512.53, 30-Mar-2022
124,Revenue,CAHD,Extra Care Housing,Private & Voluntary Home Care,Agincare UK Limited,550.78, 18-Mar-2022
125,Revenue,CAHD,Covid - ASC - Infection Control,Grants to Voluntary Bodies,Agincare UK Limited,9255.00, 29-Mar-2022
126,Revenue,CAHD,Covid  - Workforce capacity,Grants to Voluntary Bodies,Agincare UK Limited,4284.89, 22-Mar-2022
127,Revenue,CAHD,Covid  - Workforce capacity,Grants to Voluntary Bodies,Agincare UK Limited,5959.62, 24-Mar-2022
128,Revenue,CAHD,Statemented Support Payments to OLAs,Other L.A.s - General,Air Balloon Hill Primary School,801.92, 21-Mar-2022
129,Revenue,CAHD,CSC - Adoption Support Fund,Post Adoption,Individual,806.25, 21-Mar-2022
130,Revenue,CAHD,South - Commissioned Services,Other Small Contracts,AliMo Care Ltd,638.63, 01-Mar-2022
131,Revenue,CAHD,South - Commissioned Services,Other Small Contracts,AliMo Care Ltd,638.63, 09-Mar-2022
132,Revenue,CAHD,South - Commissioned Services,Other Small Contracts,AliMo Care Ltd,638.63, 16-Mar-2022
133,Revenue,CAHD,South - Commissioned Services,Other Small Contracts,AliMo Care Ltd,638.63, 23-Mar-2022
134,Revenue,CAHD,South - Commissioned Services,Other Small Contracts,AliMo Care Ltd,638.63, 30-Mar-2022
135,Revenue,CAHD,Covid  - Workforce capacity,Grants to Voluntary Bodies,AliMo Care Ltd,3433.52, 07-Mar-2022
136,Revenue,CAHD,Covid  - Workforce capacity,Grants to Voluntary Bodies,AliMo Care Ltd,2448.51, 22-Mar-2022
137,Revenue,CAHD,Covid - ASC - Infection Control,Grants to Voluntary Bodies,Alina Homecare Services Limited,1822.56, 07-Mar-2022
138,Revenue,CAHD,ASC Rapid Testing Fund,Grants to Voluntary Bodies,Alina Homecare Services Limited,1336.98, 07-Mar-2022
139,Revenue,CAHD,Covid  - Workforce capacity,Grants to Voluntary Bodies,Alina Homecare Services Limited,1224.25, 22-Mar-2022
140,Revenue,CAHD,Covid  - Workforce capacity,Grants to Voluntary Bodies,Alina Homecare Services Limited,1765.81, 24-Mar-2022
141,Revenue,CAHD,CSC - Age Related Allowances,"Holidays, Outings & Visits",Individual,65.14, 04-Mar-2022
142,Revenue,CAHD,CSC - Age Related Allowances,Foster Parent Allowances,Individual,354.00, 04-Mar-2022
143,Revenue,CAHD,CSC - Professional Fees Foster Carers,Band 3 Foster Care,Individual,482.00, 04-Mar-2022
144,Revenue,CAHD,CSC - Age Related Allowances,Foster Parent Allowances,Individual,354.00, 11-Mar-2022
145,Revenue,CAHD,CSC - Age Related Allowances,Day Care / Social Activities,Individual,133.00, 11-Mar-2022
146,Revenue,CAHD,CSC - Professional Fees Foster Carers,Band 3 Foster Care,Individual,482.00, 11-Mar-2022
147,Revenue,CAHD,CSC - Age Related Allowances,Foster Parent Allowances,Individual,354.00, 18-Mar-2022
148,Revenue,CAHD,CSC - Professional Fees Foster Carers,Band 3 Foster Care,Individual,482.00, 18-Mar-2022
149,Revenue,CAHD,CSC - Age Related Allowances,Foster Parent Allowances,Individual,354.00, 25-Mar-2022
150,Revenue,CAHD,CSC - Professional Fees Foster Carers,Band 3 Foster Care,Individual,482.00, 25-Mar-2022
151,Revenue,CAHD,South - Commissioned Services,Permanent Nursing,Allambie Court,2734.44, 08-Mar-2022
152,Revenue,CAHD,South - Commissioned Services,Fees & Charges Income - General,Allambie Court,-803.00, 08-Mar-2022
153,Revenue,CAHD,Central - Commissioned Services,Permanent Residential,Alvony House Residential Care Home,3000.00, 08-Mar-2022
154,Revenue,CAHD,Central - Commissioned Services,Fees & Charges Income - General,Alvony House Residential Care Home,-693.24, 08-Mar-2022
155,Revenue,CAHD,CSC - Residential Placements,Permanent Residential,Amberleigh Care Ltd,15148.00, 03-Mar-2022
156,Revenue,CAHD,CSC - Residential Placements,Permanent Residential,Ambito Care and Education,19920.87, 03-Mar-2022
157,Revenue,CAHD,CSC - Residential Placements,Permanent Residential,Ambito Care and Education,19930.88, 03-Mar-2022
158,Revenue,CAHD,CSC - Residential Placements,Permanent Residential,Ambito Care and Education,19920.87, 31-Mar-2022
159,Revenue,CAHD,CSC - Residential Placements,Permanent Residential,Ambito Care and Education,19930.88, 31-Mar-2022
160,Revenue,CAHD,CSC - Agency Fostering,Foster Parent Allowances,Amicus Foster Care Ltd,4406.84, 04-Mar-2022
161,Revenue,CAHD,CSC - Agency Fostering,Foster Parent Allowances,Amicus Foster Care Ltd,4332.27, 04-Mar-2022
162,Revenue,CAHD,Alexandra Way,Premises Maintenance by Contractor,Amy Flooring Limited,1162.41, 11-Mar-2022
163,Revenue,CAHD,Preparing for Adulthood Team,Other Employee Expenses,Amy Jenkins,605.00, 16-Mar-2022
164,Revenue,CAHD,Early Years Pupil Premium Grant,Preventative Assistance,Anchor Day Nursery Ltd,763.20, 15-Mar-2022
165,Revenue,CAHD,EARLY YEARS DEPRIVATION PAYMENT,Preventative Assistance,Anchor Day Nursery Ltd,863.68, 15-Mar-2022
166,Revenue,CAHD,Supporting People Programme,Grants to Voluntary Bodies,Anchor Hanover Group,1039.00, 01-Mar-2022
167,Revenue,CAHD,Supporting People Programme,Grants to Voluntary Bodies,Anchor Hanover Group,847.00, 01-Mar-2022
168,Revenue,CAHD,Covid  - Workforce capacity,Grants to Voluntary Bodies,Angel Care Support Limited,1252.08, 07-Mar-2022
169,Revenue,CAHD,Covid  - Workforce capacity,Grants to Voluntary Bodies,Angel Care Support Limited,1103.63, 24-Mar-2022
170,Revenue,CAHD,Social Lettings Agency,Rent,Individual,822.73, 18-Mar-2022
171,Revenue,CAHD,Social Lettings Agency,Fees & Charges Income - General,Individual,-65.82, 18-Mar-2022
172,Revenue,CAHD,Social Lettings Agency,Rent,Individual,822.73, 02-Mar-2022
173,Revenue,CAHD,Social Lettings Agency,Fees & Charges Income - General,Individual,-65.82, 02-Mar-2022
174,Revenue,CAHD,EARLY YEARS DEPRIVATION PAYMENT,Preventative Assistance,Apple Tree Pre-School,539.80, 15-Mar-2022
175,Revenue,CAHD,Younger MH non-res purchasing,Respite Care,Archcare Rehab Limited,0.00, 08-Mar-2022
176,Revenue,CAHD,Younger MH non-res purchasing,Supported Living,Archcare Rehab Limited,2002.44, 08-Mar-2022
177,Revenue,CAHD,CSC - Vinney Green Secure Unit,Educational Materials,Asdan Educational Limited,520.00, 28-Mar-2022
178,Revenue,CAHD,South - Commissioned Services,Permanent Residential,Ash Lea House,5551.92, 08-Mar-2022
179,Revenue,CAHD,South - Commissioned Services,Fees & Charges Income - General,Ash Lea House,-425.60, 08-Mar-2022
180,Revenue,CAHD,Covid - ASC - Infection Control,Grants to Voluntary Bodies,Ash View House,1901.10, 24-Mar-2022
181,Revenue,CAHD,South - Commissioned Services,Permanent Residential,Ash View House,6903.04, 08-Mar-2022
182,Revenue,CAHD,South - Commissioned Services,Permanent Residential,Ash View House,5655.48, 08-Mar-2022
183,Revenue,CAHD,South - Commissioned Services,Fees & Charges Income - General,Ash View House,-425.60, 08-Mar-2022
184,Revenue,CAHD,South - Commissioned Services,Fees & Charges Income - General,Ash View House,-376.80, 08-Mar-2022
185,Revenue,CAHD,North - Community based support,Permanent Residential,Ash View House,7099.52, 08-Mar-2022
186,Revenue,CAHD,North - Community based support,Permanent Residential,Ash View House,7120.00, 08-Mar-2022
187,Revenue,CAHD,North - Community based support,Fees & Charges Income - General,Ash View House,-425.60, 08-Mar-2022
188,Revenue,CAHD,North - Community based support,Fees & Charges Income - General,Ash View House,-425.60, 08-Mar-2022
189,Revenue,CAHD,South - S117,Permanent Residential,Ash View House,6983.64, 08-Mar-2022
190,Revenue,CAHD,Section 117 Placements MH Younger,Permanent Residential,Ash View House,5135.96, 08-Mar-2022
191,Revenue,CAHD,Jointly Funded H&SC Packages,Permanent Residential,Ash View House,1160.84, 08-Mar-2022
192,Revenue,CAHD,Jointly Funded H&SC Packages,Permanent Residential,Ash View House,2204.28, 08-Mar-2022
193,Revenue,CAHD,S117 Placements PCT,Permanent Residential,Ash View House,7884.72, 08-Mar-2022
194,Revenue,CAHD,ASC Rapid Testing Fund,Grants to Voluntary Bodies,Ash View House,1350.83, 24-Mar-2022
195,Revenue,CAHD,Covid  - Workforce capacity,Grants to Voluntary Bodies,Ash View House,1892.03, 30-Mar-2022
196,Revenue,CAHD,Covid  - Workforce capacity,Grants to Voluntary Bodies,Ash View House,2501.57, 30-Mar-2022
197,Revenue,CAHD,Drug and Alcohol Programme,Rent,Ashville Asset Management Limited,1431.08, 25-Mar-2022
198,Revenue,CAHD,Drug and Alcohol Programme,Rent,Ashville Asset Management Limited,4550.00, 25-Mar-2022
199,Revenue,CAHD,Supporting People Programme,Grants to Voluntary Bodies,Aspects and Milestones Trust,3441.00, 01-Mar-2022
200,Revenue,CAHD,Supporting People Programme,Grants to Voluntary Bodies,Aspects and Milestones Trust,1725.00, 01-Mar-2022
201,Revenue,CAHD,North - Community based support,Other Small Contracts,Aspirations,3444.44, 01-Mar-2022
202,Revenue,CAHD,South - Commissioned Services,Other Small Contracts,Aspirations,1477.72, 01-Mar-2022
203,Revenue,CAHD,South - Commissioned Services,Supported Living,Aspirations,14344.68, 01-Mar-2022
204,Revenue,CAHD,Central - Commissioned Services,Other Small Contracts,Aspirations,3079.04, 01-Mar-2022
205,Revenue,CAHD,18-25 Year Olds,Other Small Contracts,Aspirations,4051.53, 01-Mar-2022
206,Revenue,CAHD,North - Community based support,Other Small Contracts,Aspirations,3444.44, 09-Mar-2022
207,Revenue,CAHD,South - Commissioned Services,Other Small Contracts,Aspirations,1477.72, 09-Mar-2022
208,Revenue,CAHD,South - Commissioned Services,Supported Living,Aspirations,14344.68, 09-Mar-2022
209,Revenue,CAHD,Central - Commissioned Services,Other Small Contracts,Aspirations,3079.04, 09-Mar-2022
210,Revenue,CAHD,18-25 Year Olds,Other Small Contracts,Aspirations,4051.53, 09-Mar-2022
211,Revenue,CAHD,North - Community based support,Other Small Contracts,Aspirations,3444.44, 16-Mar-2022
212,Revenue,CAHD,South - Commissioned Services,Other Small Contracts,Aspirations,1477.72, 16-Mar-2022
213,Revenue,CAHD,South - Commissioned Services,Supported Living,Aspirations,14344.68, 16-Mar-2022
214,Revenue,CAHD,Central - Commissioned Services,Other Small Contracts,Aspirations,3079.04, 16-Mar-2022
215,Revenue,CAHD,18-25 Year Olds,Other Small Contracts,Aspirations,4051.53, 16-Mar-2022
216,Revenue,CAHD,North - Community based support,Other Small Contracts,Aspirations,3444.44, 23-Mar-2022
217,Revenue,CAHD,South - Commissioned Services,Other Small Contracts,Aspirations,1477.72, 23-Mar-2022
218,Revenue,CAHD,South - Commissioned Services,Supported Living,Aspirations,14344.68, 23-Mar-2022
219,Revenue,CAHD,Central - Commissioned Services,Other Small Contracts,Aspirations,3079.04, 23-Mar-2022
220,Revenue,CAHD,18-25 Year Olds,Other Small Contracts,Aspirations,4051.53, 23-Mar-2022
221,Revenue,CAHD,North - Community based support,Other Small Contracts,Aspirations,3444.44, 30-Mar-2022
222,Revenue,CAHD,South - Commissioned Services,Other Small Contracts,Aspirations,1477.72, 30-Mar-2022
223,Revenue,CAHD,South - Commissioned Services,Supported Living,Aspirations,14344.68, 30-Mar-2022
224,Revenue,CAHD,Central - Commissioned Services,Other Small Contracts,Aspirations,3079.04, 30-Mar-2022
225,Revenue,CAHD,18-25 Year Olds,Other Small Contracts,Aspirations,4051.53, 30-Mar-2022
226,Revenue,CAHD,Covid - ASC - Infection Control,Grants to Voluntary Bodies,Aspirations,22759.37, 29-Mar-2022
227,Revenue,CAHD,Covid  - Workforce capacity,Grants to Voluntary Bodies,Aspirations,8569.78, 22-Mar-2022
228,Revenue,CAHD,Covid  - Workforce capacity,Grants to Voluntary Bodies,Aspirations,12066.38, 24-Mar-2022
229,Revenue,CAHD,CSC - Care Leavers Independent Living,Adults - Family Support,Aspirations Support Bristol Limited,15419.68, 03-Mar-2022
230,Revenue,CAHD,Covid  - Workforce capacity,Grants to Voluntary Bodies,Aspire Care SW Limited,834.72, 22-Mar-2022
231,Revenue,CAHD,Covid  - Workforce capacity,Grants to Voluntary Bodies,Aspire Care SW Limited,1103.63, 30-Mar-2022
232,Revenue,CAHD,SEN High Needs - Not at School Base,Other Private Contractors,AT Therapy,1429.57, 01-Mar-2022
233,Revenue,CAHD,Shared Lives,Other Supplies & Services,Ategi Limited,39357.00, 31-Mar-2022
234,Revenue,CAHD,18-25 Year Olds,Adults - Family Support,Ategi limited,1598.60, 08-Mar-2022
235,Revenue,CAHD,18-25 Year Olds,Adults - Family Support,Ategi limited,2647.28, 08-Mar-2022
236,Revenue,CAHD,18-25 Year Olds,Adults - Family Support,Ategi limited,1598.60, 08-Mar-2022
237,Revenue,CAHD,18-25 Year Olds,Adults - Family Support,Ategi limited,2287.28, 08-Mar-2022
238,Revenue,CAHD,18-25 Year Olds,Respite Care,Ategi limited,0.00, 08-Mar-2022
239,Revenue,CAHD,18-25 Year Olds,Respite Care,Ategi limited,0.00, 08-Mar-2022
240,Revenue,CAHD,18-25 Year Olds,Respite Care,Ategi limited,0.00, 08-Mar-2022
241,Revenue,CAHD,18-25 Year Olds,Respite Care,Ategi limited,0.00, 08-Mar-2022
242,Revenue,CAHD,South - Commissioned Services,Adults - Family Support,Ategi limited,2287.28, 08-Mar-2022
243,Revenue,CAHD,South - Commissioned Services,Adults - Family Support,Ategi limited,2287.28, 08-Mar-2022
244,Revenue,CAHD,South - Commissioned Services,Adults - Family Support,Ategi limited,1598.60, 08-Mar-2022
245,Revenue,CAHD,South - Commissioned Services,Respite Care,Ategi limited,0.00, 08-Mar-2022
246,Revenue,CAHD,South - Commissioned Services,Respite Care,Ategi limited,0.00, 08-Mar-2022
247,Revenue,CAHD,South - Commissioned Services,Respite Care,Ategi limited,0.00, 08-Mar-2022
248,Revenue,CAHD,North - Community based support,Adults - Family Support,Ategi limited,1139.44, 08-Mar-2022
249,Revenue,CAHD,North - Community based support,Adults - Family Support,Ategi limited,1598.60, 08-Mar-2022
250,Revenue,CAHD,North - Community based support,Respite Care,Ategi limited,0.00, 08-Mar-2022
251,Revenue,CAHD,North - Community based support,Respite Care,Ategi limited,0.00, 08-Mar-2022
252,Revenue,CAHD,Schools Specific Grant Income,Other Public Bodies,Athelstan Trust,500.00, 09-Mar-2022
253,Revenue,CAHD,Schools Specific Grant Income,Other Public Bodies,Athelstan Trust,500.00, 09-Mar-2022
254,Revenue,CAHD,Schools Specific Grant Income,Other Public Bodies,Athelstan Trust,500.00, 09-Mar-2022
255,Revenue,CAHD,Schools Specific Grant Income,Other Public Bodies,Athelstan Trust,500.00, 09-Mar-2022
256,Revenue,CAHD,Statemented Support Academies,Other Public Bodies,Athelstan Trust,718.08, 22-Mar-2022
257,Revenue,CAHD,Statemented Support Academies,Other Public Bodies,Athelstan Trust,1101.42, 22-Mar-2022
258,Revenue,CAHD,Statemented Support Academies,Other Public Bodies,Athelstan Trust,722.42, 22-Mar-2022
259,Revenue,CAHD,Statemented Support Academies,Other Public Bodies,Athelstan Trust,1342.25, 22-Mar-2022
260,Revenue,CAHD,Statemented Support Academies,Other Public Bodies,Athelstan Trust,1367.64, 22-Mar-2022
261,Revenue,CAHD,Statemented Support Academies,Other Public Bodies,Athelstan Trust,771.42, 22-Mar-2022
262,Revenue,CAHD,Statemented Support Academies,Other Public Bodies,Athelstan Trust,1436.25, 22-Mar-2022
263,Revenue,CAHD,Statemented Support Academies,Other Public Bodies,Athelstan Trust,588.75, 22-Mar-2022
264,Revenue,CAHD,CSC - CLA Placements,Supported Living,Athelstan Trust,934.13, 22-Mar-2022
265,Revenue,CAHD,Statemented Support Academies,Other Public Bodies,Athelstan Trust,3514.12, 22-Mar-2022
266,Revenue,CAHD,Statemented Support Academies,Other Public Bodies,Athelstan Trust,926.58, 22-Mar-2022
267,Revenue,CAHD,Statemented Support Academies,Other Public Bodies,Athelstan Trust,1066.65, 22-Mar-2022
268,Revenue,CAHD,Statemented Support Academies,Other Public Bodies,Athelstan Trust,3330.00, 22-Mar-2022
269,Revenue,CAHD,Academy Resource Base Funding,Other Public Bodies,Athelstan Trust,849.32, 21-Mar-2022
270,Revenue,CAHD,Academy Resource Base Funding,Other Public Bodies,Athelstan Trust,2210.96, 28-Mar-2022
271,Revenue,CAHD,Academy Resource Base Funding,Other Public Bodies,Athelstan Trust,2513.88, 21-Mar-2022
272,Revenue,CAHD,Academy Resource Base Funding,Other Public Bodies,Athelstan Trust,2513.88, 21-Mar-2022
273,Revenue,CAHD,Academy Resource Base Funding,Other Public Bodies,Athelstan Trust,2513.88, 21-Mar-2022
274,Revenue,CAHD,Academy Resource Base Funding,Other Public Bodies,Athelstan Trust,2513.88, 21-Mar-2022
275,Revenue,CAHD,Academy Resource Base Funding,Other Public Bodies,Athelstan Trust,2513.88, 21-Mar-2022
276,Revenue,CAHD,Academy Resource Base Funding,Other Public Bodies,Athelstan Trust,2513.88, 21-Mar-2022
277,Revenue,CAHD,Academy Resource Base Funding,Other Public Bodies,Athelstan Trust,2513.88, 21-Mar-2022
278,Revenue,CAHD,Academy Resource Base Funding,Other Public Bodies,Athelstan Trust,2513.88, 21-Mar-2022
279,Revenue,CAHD,Academy Resource Base Funding,Other Public Bodies,Athelstan Trust,2513.88, 21-Mar-2022
280,Revenue,CAHD,Academy Resource Base Funding,Other Public Bodies,Athelstan Trust,2513.88, 21-Mar-2022
281,Revenue,CAHD,Academy Resource Base Funding,Other Public Bodies,Athelstan Trust,2513.88, 21-Mar-2022
282,Revenue,CAHD,Academy Resource Base Funding,Other Public Bodies,Athelstan Trust,6487.43, 28-Mar-2022
283,Revenue,CAHD,Academy Resource Base Funding,Other Public Bodies,Athelstan Trust,8050.00, 28-Mar-2022
284,Revenue,CAHD,Independent Special Placements - Pre 16,Other Private Contractors,Aurora Hedgeway School,1078.77, 09-Mar-2022
285,Revenue,CAHD,South - Commissioned Services,Permanent Residential,Autism Specialised Care Homes,6506.88, 08-Mar-2022
286,Revenue,CAHD,South - Commissioned Services,Fees & Charges Income - General,Autism Specialised Care Homes,-425.60, 08-Mar-2022
287,Revenue,CAHD,Younger Adult Mental Health,Health Services (Third Party Payments),Avon & Wiltshire Mental Health,1693.33, 21-Mar-2022
288,Revenue,CAHD,Younger Adult Mental Health,Health Services (Third Party Payments),Avon & Wiltshire Mental Health,14583.00, 31-Mar-2022
289,Revenue,CAHD,CSC - YOT Pooled Budget,Training Expenses,Avon & Wiltshire Mental Health,533.00, 15-Mar-2022
290,Revenue,CAHD,Younger Adult Mental Health,Agency Staff (Admin/Support Staff) Pay,Avon & Wiltshire Mental Health,5211.00, 18-Mar-2022
291,Revenue,CAHD,South Glos Users in South Glos Homes,Permanent Nursing,Avon Lodge Care Centre,750.40, 08-Mar-2022
292,Revenue,CAHD,South Glos Users in South Glos Homes,Permanent Nursing,Avon Lodge Care Centre,750.40, 08-Mar-2022
293,Revenue,CAHD,South Glos Users in South Glos Homes,Permanent Nursing,Avon Lodge Care Centre,750.40, 08-Mar-2022
294,Revenue,CAHD,South Glos Users in South Glos Homes,Permanent Nursing,Avon Lodge Care Centre,750.40, 08-Mar-2022
295,Revenue,CAHD,South Glos Users in South Glos Homes,Permanent Nursing,Avon Lodge Care Centre,750.40, 08-Mar-2022
296,Revenue,CAHD,South Glos Users in South Glos Homes,Permanent Nursing,Avon Lodge Care Centre,750.40, 08-Mar-2022
297,Revenue,CAHD,South Glos Users in South Glos Homes,Permanent Nursing,Avon Lodge Care Centre,750.40, 08-Mar-2022
298,Revenue,CAHD,South Glos Users in South Glos Homes,Permanent Nursing,Avon Lodge Care Centre,750.40, 08-Mar-2022
299,Revenue,CAHD,South Glos Users in South Glos Homes,Permanent Nursing,Avon Lodge Care Centre,750.40, 08-Mar-2022
300,Revenue,CAHD,South Glos Users in South Glos Homes,Permanent Nursing,Avon Lodge Care Centre,750.40, 08-Mar-2022
301,Revenue,CAHD,South Glos Users in South Glos Homes,Permanent Nursing,Avon Lodge Care Centre,750.40, 08-Mar-2022
302,Revenue,CAHD,South Glos Users in South Glos Homes,Permanent Nursing,Avon Lodge Care Centre,750.40, 08-Mar-2022
303,Revenue,CAHD,South Glos Users in South Glos Homes,Permanent Nursing,Avon Lodge Care Centre,750.40, 08-Mar-2022
304,Revenue,CAHD,South Glos Users in South Glos Homes,Permanent Nursing,Avon Lodge Care Centre,750.40, 08-Mar-2022
305,Revenue,CAHD,South Glos Users in South Glos Homes,Permanent Nursing,Avon Lodge Care Centre,750.40, 08-Mar-2022
306,Revenue,CAHD,South Glos Users in South Glos Homes,Permanent Nursing,Avon Lodge Care Centre,750.40, 08-Mar-2022
307,Revenue,CAHD,South Glos Users in South Glos Homes,Permanent Nursing,Avon Lodge Care Centre,750.40, 08-Mar-2022
308,Revenue,CAHD,South Glos Users in South Glos Homes,Permanent Nursing,Avon Lodge Care Centre,750.40, 08-Mar-2022
309,Revenue,CAHD,South Glos Users in South Glos Homes,Permanent Nursing,Avon Lodge Care Centre,750.40, 08-Mar-2022
310,Revenue,CAHD,South Glos Users in South Glos Homes,Permanent Nursing,Avon Lodge Care Centre,750.40, 08-Mar-2022
311,Revenue,CAHD,South Glos Users in South Glos Homes,Permanent Nursing,Avon Lodge Care Centre,750.40, 08-Mar-2022
312,Revenue,CAHD,South Glos Users in South Glos Homes,Permanent Nursing,Avon Lodge Care Centre,750.40, 08-Mar-2022
313,Revenue,CAHD,South Glos Users in South Glos Homes,Permanent Nursing,Avon Lodge Care Centre,750.40, 08-Mar-2022
314,Revenue,CAHD,South Glos Users in South Glos Homes,Permanent Nursing,Avon Lodge Care Centre,750.40, 08-Mar-2022
315,Revenue,CAHD,South Glos Users in South Glos Homes,Permanent Nursing,Avon Lodge Care Centre,750.40, 08-Mar-2022
316,Revenue,CAHD,South Glos Users in South Glos Homes,Permanent Nursing,Avon Lodge Care Centre,750.40, 08-Mar-2022
317,Revenue,CAHD,South Glos Users in South Glos Homes,Permanent Nursing,Avon Lodge Care Centre,750.40, 08-Mar-2022
318,Revenue,CAHD,South Glos Users in South Glos Homes,Permanent Nursing,Avon Lodge Care Centre,750.40, 08-Mar-2022
319,Revenue,CAHD,South Glos Users in South Glos Homes,Permanent Nursing,Avon Lodge Care Centre,750.40, 08-Mar-2022
320,Revenue,CAHD,Central - Commissioned Services,Respite Planned - Residential,Avon Lodge Care Centre,2307.15, 08-Mar-2022
321,Revenue,CAHD,Central - Commissioned Services,Permanent Nursing,Avon Lodge Care Centre,3974.16, 08-Mar-2022
322,Revenue,CAHD,Central - Commissioned Services,Permanent Nursing,Avon Lodge Care Centre,3887.40, 08-Mar-2022
323,Revenue,CAHD,Central - Commissioned Services,Respite Planned - Nursing,Avon Lodge Care Centre,8592.96, 08-Mar-2022
324,Revenue,CAHD,Central - Commissioned Services,Fees & Charges Income - General,Avon Lodge Care Centre,-677.56, 08-Mar-2022
325,Revenue,CAHD,Central - Commissioned Services,Fees & Charges Income - General,Avon Lodge Care Centre,-928.08, 08-Mar-2022
326,Revenue,CAHD,South - Commissioned Services,Permanent Residential,Avon Lodge Care Centre,3130.40, 08-Mar-2022
327,Revenue,CAHD,South - Commissioned Services,Permanent Residential,Avon Lodge Care Centre,3600.00, 08-Mar-2022
328,Revenue,CAHD,South - Commissioned Services,Permanent Residential,Avon Lodge Care Centre,3460.00, 08-Mar-2022
329,Revenue,CAHD,South - Commissioned Services,Permanent Nursing,Avon Lodge Care Centre,4296.48, 08-Mar-2022
330,Revenue,CAHD,South - Commissioned Services,Permanent Nursing,Avon Lodge Care Centre,3800.00, 08-Mar-2022
331,Revenue,CAHD,South - Commissioned Services,Permanent Nursing,Avon Lodge Care Centre,5046.88, 08-Mar-2022
332,Revenue,CAHD,South - Commissioned Services,Permanent Nursing,Avon Lodge Care Centre,3339.08, 08-Mar-2022
333,Revenue,CAHD,South - Commissioned Services,Permanent Nursing,Avon Lodge Care Centre,4296.00, 08-Mar-2022
334,Revenue,CAHD,South - Commissioned Services,Permanent Nursing,Avon Lodge Care Centre,3539.60, 08-Mar-2022
335,Revenue,CAHD,South - Commissioned Services,Permanent Nursing,Avon Lodge Care Centre,4447.88, 08-Mar-2022
336,Revenue,CAHD,South - Commissioned Services,Permanent Nursing,Avon Lodge Care Centre,4505.12, 08-Mar-2022
337,Revenue,CAHD,South - Commissioned Services,Permanent Nursing,Avon Lodge Care Centre,4410.32, 08-Mar-2022
338,Revenue,CAHD,South - Commissioned Services,Permanent Nursing,Avon Lodge Care Centre,3887.40, 08-Mar-2022
339,Revenue,CAHD,South - Commissioned Services,Permanent Nursing,Avon Lodge Care Centre,4296.48, 08-Mar-2022
340,Revenue,CAHD,South - Commissioned Services,Permanent Nursing,Avon Lodge Care Centre,4634.24, 08-Mar-2022
341,Revenue,CAHD,South - Commissioned Services,Fees & Charges Income - General,Avon Lodge Care Centre,-637.84, 08-Mar-2022
342,Revenue,CAHD,South - Commissioned Services,Fees & Charges Income - General,Avon Lodge Care Centre,-609.60, 08-Mar-2022
343,Revenue,CAHD,South - Commissioned Services,Fees & Charges Income - General,Avon Lodge Care Centre,-707.64, 08-Mar-2022
344,Revenue,CAHD,South - Commissioned Services,Fees & Charges Income - General,Avon Lodge Care Centre,-1479.04, 08-Mar-2022
345,Revenue,CAHD,South - Commissioned Services,Fees & Charges Income - General,Avon Lodge Care Centre,-425.60, 08-Mar-2022
346,Revenue,CAHD,South - Commissioned Services,Fees & Charges Income - General,Avon Lodge Care Centre,-1242.96, 08-Mar-2022
347,Revenue,CAHD,South - Commissioned Services,Fees & Charges Income - General,Avon Lodge Care Centre,-986.72, 08-Mar-2022
348,Revenue,CAHD,South - Commissioned Services,Fees & Charges Income - General,Avon Lodge Care Centre,-1603.75, 08-Mar-2022
349,Revenue,CAHD,South - Commissioned Services,Fees & Charges Income - General,Avon Lodge Care Centre,-1029.04, 08-Mar-2022
350,Revenue,CAHD,South - Commissioned Services,Fees & Charges Income - General,Avon Lodge Care Centre,-608.80, 08-Mar-2022
351,Revenue,CAHD,South - Commissioned Services,Fees & Charges Income - General,Avon Lodge Care Centre,-599.32, 08-Mar-2022
352,Revenue,CAHD,North - Community based support,Permanent Residential,Avon Lodge Care Centre,3539.60, 08-Mar-2022
353,Revenue,CAHD,North - Community based support,Permanent Nursing,Avon Lodge Care Centre,4296.00, 08-Mar-2022
354,Revenue,CAHD,North - Community based support,Permanent Nursing,Avon Lodge Care Centre,3887.40, 08-Mar-2022
355,Revenue,CAHD,North - Community based support,Fees & Charges Income - General,Avon Lodge Care Centre,-1448.16, 08-Mar-2022
356,Revenue,CAHD,North - Community based support,Fees & Charges Income - General,Avon Lodge Care Centre,-770.36, 08-Mar-2022
357,Revenue,CAHD,South - S117,Permanent Nursing,Avon Lodge Care Centre,3974.84, 08-Mar-2022
358,Revenue,CAHD,Covid  - Workforce capacity,Grants to Voluntary Bodies,Avon Lodge Care Centre,3899.50, 24-Mar-2022
359,Revenue,CAHD,South - Commissioned Services,Permanent Residential,Avon Valley Care Home,1878.24, 08-Mar-2022
360,Revenue,CAHD,Covid - ASC - Infection Control,Grants to Voluntary Bodies,Avon Valley Care Home,8722.71, 24-Mar-2022
361,Revenue,CAHD,Central - Commissioned Services,Permanent Residential,Avon Valley Care Home,4092.00, 08-Mar-2022
362,Revenue,CAHD,Central - Commissioned Services,Fees & Charges Income - General,Avon Valley Care Home,-640.04, 08-Mar-2022
363,Revenue,CAHD,South - Commissioned Services,Permanent Residential,Avon Valley Care Home,4092.00, 08-Mar-2022
364,Revenue,CAHD,South - Commissioned Services,Permanent Residential,Avon Valley Care Home,4092.00, 08-Mar-2022
365,Revenue,CAHD,South - Commissioned Services,Permanent Residential,Avon Valley Care Home,4270.00, 08-Mar-2022
366,Revenue,CAHD,South - Commissioned Services,Permanent Residential,Avon Valley Care Home,4270.00, 08-Mar-2022
367,Revenue,CAHD,South - Commissioned Services,Permanent Residential,Avon Valley Care Home,4051.08, 08-Mar-2022
368,Revenue,CAHD,South - Commissioned Services,Permanent Residential,Avon Valley Care Home,4230.00, 08-Mar-2022
369,Revenue,CAHD,South - Commissioned Services,Permanent Residential,Avon Valley Care Home,4051.08, 08-Mar-2022
370,Revenue,CAHD,South - Commissioned Services,Permanent Residential,Avon Valley Care Home,4270.00, 08-Mar-2022
371,Revenue,CAHD,South - Commissioned Services,Permanent Residential,Avon Valley Care Home,3032.16, 08-Mar-2022
372,Revenue,CAHD,South - Commissioned Services,Permanent Residential,Avon Valley Care Home,4230.00, 08-Mar-2022
373,Revenue,CAHD,South - Commissioned Services,Permanent Residential,Avon Valley Care Home,3641.88, 08-Mar-2022
374,Revenue,CAHD,South - Commissioned Services,Permanent Residential,Avon Valley Care Home,4230.00, 08-Mar-2022
375,Revenue,CAHD,South - Commissioned Services,Permanent Residential,Avon Valley Care Home,4178.92, 08-Mar-2022
376,Revenue,CAHD,South - Commissioned Services,Permanent Residential,Avon Valley Care Home,4230.00, 08-Mar-2022
377,Revenue,CAHD,South - Commissioned Services,Fees & Charges Income - General,Avon Valley Care Home,-967.20, 08-Mar-2022
378,Revenue,CAHD,South - Commissioned Services,Fees & Charges Income - General,Avon Valley Care Home,-584.80, 08-Mar-2022
379,Revenue,CAHD,South - Commissioned Services,Fees & Charges Income - General,Avon Valley Care Home,-1081.12, 08-Mar-2022
380,Revenue,CAHD,South - Commissioned Services,Fees & Charges Income - General,Avon Valley Care Home,-980.88, 08-Mar-2022
381,Revenue,CAHD,South - Commissioned Services,Fees & Charges Income - General,Avon Valley Care Home,-4230.00, 08-Mar-2022
382,Revenue,CAHD,South - Commissioned Services,Fees & Charges Income - General,Avon Valley Care Home,-1243.32, 08-Mar-2022
383,Revenue,CAHD,South - Commissioned Services,Fees & Charges Income - General,Avon Valley Care Home,-1013.24, 08-Mar-2022
384,Revenue,CAHD,South - Commissioned Services,Fees & Charges Income - General,Avon Valley Care Home,-1878.24, 08-Mar-2022
385,Revenue,CAHD,South - Commissioned Services,Fees & Charges Income - General,Avon Valley Care Home,-4230.00, 08-Mar-2022
386,Revenue,CAHD,South - Commissioned Services,Fees & Charges Income - General,Avon Valley Care Home,-1579.84, 08-Mar-2022
387,Revenue,CAHD,South - Commissioned Services,Fees & Charges Income - General,Avon Valley Care Home,-1174.36, 08-Mar-2022
388,Revenue,CAHD,South - Commissioned Services,Fees & Charges Income - General,Avon Valley Care Home,-1122.48, 08-Mar-2022
389,Revenue,CAHD,South - Commissioned Services,Fees & Charges Income - General,Avon Valley Care Home,-1144.80, 08-Mar-2022
390,Revenue,CAHD,South - S117,Permanent Residential,Avon Valley Care Home,4092.00, 08-Mar-2022
391,Revenue,CAHD,ASC Rapid Testing Fund,Grants to Voluntary Bodies,Avon Valley Care Home,6197.91, 24-Mar-2022
392,Revenue,CAHD,Covid - Vaccines,Grants to Voluntary Bodies,Avon Valley Care Home,762.03, 24-Mar-2022
393,Revenue,CAHD,Covid  - Workforce capacity,Grants to Voluntary Bodies,Avon Valley Care Home,2337.21, 30-Mar-2022
394,Revenue,CAHD,Covid  - Workforce capacity,Grants to Voluntary Bodies,Avon Valley Care Home,3090.17, 30-Mar-2022
395,Revenue,CAHD,Covid - ASC - Infection Control,Grants to Voluntary Bodies,Avonmere Care Home,8499.05, 24-Mar-2022
396,Revenue,CAHD,North - Community based support,Permanent Residential,Avonmere Care Home,4680.00, 08-Mar-2022
397,Revenue,CAHD,North - Community based support,Permanent Residential,Avonmere Care Home,4892.00, 08-Mar-2022
398,Revenue,CAHD,North - Community based support,Permanent Residential,Avonmere Care Home,4521.68, 08-Mar-2022
399,Revenue,CAHD,North - Community based support,Permanent Residential,Avonmere Care Home,4600.00, 08-Mar-2022
400,Revenue,CAHD,North - Community based support,Permanent Residential,Avonmere Care Home,4720.00, 08-Mar-2022
401,Revenue,CAHD,North - Community based support,Fees & Charges Income - General,Avonmere Care Home,-1060.56, 08-Mar-2022
402,Revenue,CAHD,North - Community based support,Fees & Charges Income - General,Avonmere Care Home,-608.80, 08-Mar-2022
403,Revenue,CAHD,North - Community based support,Fees & Charges Income - General,Avonmere Care Home,-972.72, 08-Mar-2022
404,Revenue,CAHD,North - Community based support,Fees & Charges Income - General,Avonmere Care Home,-1082.52, 08-Mar-2022
405,Revenue,CAHD,North - Community based support,Fees & Charges Income - General,Avonmere Care Home,-1140.00, 08-Mar-2022
406,Revenue,CAHD,ASC Rapid Testing Fund,Grants to Voluntary Bodies,Avonmere Care Home,6038.99, 24-Mar-2022
407,Revenue,CAHD,Covid - Vaccines,Grants to Voluntary Bodies,Avonmere Care Home,742.49, 24-Mar-2022
408,Revenue,CAHD,Covid  - Workforce capacity,Grants to Voluntary Bodies,Avonmere Care Home,1558.14, 30-Mar-2022
409,Revenue,CAHD,Covid  - Workforce capacity,Grants to Voluntary Bodies,Avonmere Care Home,2060.11, 30-Mar-2022
410,Revenue,CAHD,Post 16 High Needs Placements,Other Private Contractors,Axcis Education,440.00, 25-Mar-2022
411,Revenue,CAHD,Covid - ASC - Infection Control,Grants to Voluntary Bodies,Badminton Place,8163.57, 07-Mar-2022
412,Revenue,CAHD,South Glos Users in South Glos Homes,Permanent Nursing,Badminton Place,750.40, 08-Mar-2022
413,Revenue,CAHD,South Glos Users in South Glos Homes,Permanent Nursing,Badminton Place,750.40, 08-Mar-2022
414,Revenue,CAHD,South Glos Users in South Glos Homes,Permanent Nursing,Badminton Place,750.40, 08-Mar-2022
415,Revenue,CAHD,Central - Commissioned Services,Respite Planned - Nursing,Badminton Place,6600.00, 08-Mar-2022
416,Revenue,CAHD,Central - Commissioned Services,Respite Planned - Nursing,Badminton Place,514.29, 08-Mar-2022
417,Revenue,CAHD,North - Community based support,Respite Planned - Residential,Badminton Place,5571.42, 08-Mar-2022
418,Revenue,CAHD,North - Community based support,Permanent Nursing,Badminton Place,4864.32, 08-Mar-2022
419,Revenue,CAHD,North - Community based support,Permanent Nursing,Badminton Place,5800.00, 08-Mar-2022
420,Revenue,CAHD,North - Community based support,Fees & Charges Income - General,Badminton Place,-604.80, 08-Mar-2022
421,Revenue,CAHD,ASC Rapid Testing Fund,Grants to Voluntary Bodies,Badminton Place,5800.61, 07-Mar-2022
422,Revenue,CAHD,Covid - Vaccines,Grants to Voluntary Bodies,Badminton Place,713.18, 07-Mar-2022
423,Revenue,CAHD,CSC - Care Leavers Support Costs,Personal Needs of Clients,Barnardo Services Limited,3027.00, 25-Mar-2022
424,Revenue,CAHD,CSC - Care Leavers Support Costs,Personal Needs of Clients,Barnardo Services Limited,2964.00, 22-Mar-2022
425,Revenue,CAHD,Childrens - Safeguarding Board,Training Expenses,Barnardo Services Limited,900.00, 21-Mar-2022
426,Revenue,CAHD,Pensions - Non DSG,Annual Pension,Bath & North East Somerset Council,97998.09, 24-Mar-2022
427,Revenue,CAHD,Pensions - Non DSG,Annual Pension,Bath & North East Somerset Council,98028.15, 31-Mar-2022
428,Revenue,CAHD,KS2 Moderation,Other Public Bodies,Bath & North East Somerset Council,900.00, 02-Mar-2022
429,Revenue,CAHD,KS2 Moderation,Other Public Bodies,Bath & North East Somerset Council,900.00, 02-Mar-2022
430,Revenue,CAHD,Independent Special Placements - Post 16,Other Private Contractors,Bath Road Priory,37274.24, 04-Mar-2022
431,Revenue,CAHD,Central - Commissioned Services,Permanent Nursing,Beaufort Grange Care Home,15714.29, 16-Mar-2022
432,Revenue,CAHD,South Glos Users in South Glos Homes,Permanent Nursing,Beaufort Grange Care Home,750.40, 08-Mar-2022
433,Revenue,CAHD,South Glos Users in South Glos Homes,Permanent Nursing,Beaufort Grange Care Home,750.40, 08-Mar-2022
434,Revenue,CAHD,South Glos Users in South Glos Homes,Permanent Nursing,Beaufort Grange Care Home,750.40, 08-Mar-2022
435,Revenue,CAHD,South Glos Users in South Glos Homes,Permanent Nursing,Beaufort Grange Care Home,750.40, 08-Mar-2022
436,Revenue,CAHD,South Glos Users in South Glos Homes,Permanent Nursing,Beaufort Grange Care Home,750.40, 08-Mar-2022
437,Revenue,CAHD,South Glos Users in South Glos Homes,Permanent Nursing,Beaufort Grange Care Home,750.40, 08-Mar-2022
438,Revenue,CAHD,South Glos Users in South Glos Homes,Permanent Nursing,Beaufort Grange Care Home,750.40, 08-Mar-2022
439,Revenue,CAHD,South Glos Users in South Glos Homes,Permanent Nursing,Beaufort Grange Care Home,750.40, 08-Mar-2022
440,Revenue,CAHD,South Glos Users in South Glos Homes,Permanent Nursing,Beaufort Grange Care Home,750.40, 08-Mar-2022
441,Revenue,CAHD,South Glos Users in South Glos Homes,Permanent Nursing,Beaufort Grange Care Home,750.40, 08-Mar-2022
442,Revenue,CAHD,South Glos Users in South Glos Homes,Permanent Nursing,Beaufort Grange Care Home,750.40, 08-Mar-2022
443,Revenue,CAHD,South Glos Users in South Glos Homes,Permanent Nursing,Beaufort Grange Care Home,750.40, 08-Mar-2022
444,Revenue,CAHD,South Glos Users in South Glos Homes,Permanent Nursing,Beaufort Grange Care Home,750.40, 08-Mar-2022
445,Revenue,CAHD,South Glos Users in South Glos Homes,Permanent Nursing,Beaufort Grange Care Home,750.40, 08-Mar-2022
446,Revenue,CAHD,South Glos Users in South Glos Homes,Permanent Nursing,Beaufort Grange Care Home,750.40, 08-Mar-2022
447,Revenue,CAHD,South Glos Users in South Glos Homes,Permanent Nursing,Beaufort Grange Care Home,750.40, 08-Mar-2022
448,Revenue,CAHD,South Glos Users in South Glos Homes,Permanent Nursing,Beaufort Grange Care Home,750.40, 08-Mar-2022
449,Revenue,CAHD,South Glos Users in South Glos Homes,Permanent Nursing,Beaufort Grange Care Home,750.40, 08-Mar-2022
450,Revenue,CAHD,South Glos Users in South Glos Homes,Permanent Nursing,Beaufort Grange Care Home,750.40, 08-Mar-2022
451,Revenue,CAHD,South Glos Users in South Glos Homes,Permanent Nursing,Beaufort Grange Care Home,750.40, 08-Mar-2022
452,Revenue,CAHD,South Glos Users in South Glos Homes,Permanent Nursing,Beaufort Grange Care Home,750.40, 08-Mar-2022
453,Revenue,CAHD,South Glos Users in South Glos Homes,Permanent Nursing,Beaufort Grange Care Home,750.40, 08-Mar-2022
454,Revenue,CAHD,South Glos Users in South Glos Homes,Permanent Nursing,Beaufort Grange Care Home,750.40, 08-Mar-2022
455,Revenue,CAHD,South Glos Users in South Glos Homes,Permanent Nursing,Beaufort Grange Care Home,750.40, 08-Mar-2022
456,Revenue,CAHD,South Glos Users in South Glos Homes,Permanent Nursing,Beaufort Grange Care Home,750.40, 08-Mar-2022
457,Revenue,CAHD,South Glos Users in South Glos Homes,Permanent Nursing,Beaufort Grange Care Home,750.40, 08-Mar-2022
458,Revenue,CAHD,South Glos Users in South Glos Homes,Permanent Nursing,Beaufort Grange Care Home,750.40, 08-Mar-2022
459,Revenue,CAHD,South Glos Users in South Glos Homes,Permanent Nursing,Beaufort Grange Care Home,750.40, 08-Mar-2022
460,Revenue,CAHD,South Glos Users in South Glos Homes,Permanent Nursing,Beaufort Grange Care Home,750.40, 08-Mar-2022
461,Revenue,CAHD,South Glos Users in South Glos Homes,Permanent Nursing,Beaufort Grange Care Home,750.40, 08-Mar-2022
462,Revenue,CAHD,South Glos Users in South Glos Homes,Permanent Nursing,Beaufort Grange Care Home,750.40, 08-Mar-2022
463,Revenue,CAHD,South Glos Users in South Glos Homes,Permanent Nursing,Beaufort Grange Care Home,750.40, 08-Mar-2022
464,Revenue,CAHD,South Glos Users in South Glos Homes,Permanent Nursing,Beaufort Grange Care Home,750.40, 08-Mar-2022
465,Revenue,CAHD,Central - Commissioned Services,Permanent Residential,Beaufort Grange Care Home,23400.00, 08-Mar-2022
466,Revenue,CAHD,Central - Commissioned Services,Permanent Nursing,Beaufort Grange Care Home,5500.00, 08-Mar-2022
467,Revenue,CAHD,Central - Commissioned Services,Permanent Nursing,Beaufort Grange Care Home,11684.00, 08-Mar-2022
468,Revenue,CAHD,Central - Commissioned Services,Permanent Nursing,Beaufort Grange Care Home,5400.00, 08-Mar-2022
469,Revenue,CAHD,Central - Commissioned Services,Permanent Nursing,Beaufort Grange Care Home,5500.00, 08-Mar-2022
470,Revenue,CAHD,Central - Commissioned Services,Respite Planned - Nursing,Beaufort Grange Care Home,5012.57, 08-Mar-2022
471,Revenue,CAHD,Central - Commissioned Services,Fees & Charges Income - General,Beaufort Grange Care Home,-588.80, 08-Mar-2022
472,Revenue,CAHD,South - Commissioned Services,Respite Care,Beaufort Grange Care Home,0.00, 08-Mar-2022
473,Revenue,CAHD,South - Commissioned Services,Permanent Nursing,Beaufort Grange Care Home,4449.60, 08-Mar-2022
474,Revenue,CAHD,South - Commissioned Services,Respite Planned - Nursing,Beaufort Grange Care Home,914.29, 08-Mar-2022
475,Revenue,CAHD,South - Commissioned Services,Fees & Charges Income - General,Beaufort Grange Care Home,-608.80, 08-Mar-2022
476,Revenue,CAHD,North - Community based support,Permanent Nursing,Beaufort Grange Care Home,4369.60, 08-Mar-2022
477,Revenue,CAHD,North - Community based support,Permanent Nursing,Beaufort Grange Care Home,10620.00, 08-Mar-2022
478,Revenue,CAHD,North - Community based support,Fees & Charges Income - General,Beaufort Grange Care Home,-608.80, 08-Mar-2022
479,Revenue,CAHD,North - Community based support,Fees & Charges Income - General,Beaufort Grange Care Home,-425.60, 08-Mar-2022
480,Revenue,CAHD,North - S117,Permanent Nursing,Beaufort Grange Care Home,5400.00, 08-Mar-2022
481,Revenue,CAHD,Jointly Funded H&SC Packages,Respite Planned - Nursing,Beaufort Grange Care Home,914.29, 08-Mar-2022
482,Revenue,CAHD,Covid - ASC - Infection Control,Grants to Voluntary Bodies,Beaufort House,3131.23, 07-Mar-2022
483,Revenue,CAHD,Central - Commissioned Services,Permanent Residential,Beaufort House,2991.84, 08-Mar-2022
484,Revenue,CAHD,Central - Commissioned Services,Permanent Residential,Beaufort House,2896.24, 08-Mar-2022
485,Revenue,CAHD,Central - Commissioned Services,Permanent Residential,Beaufort House,3800.00, 08-Mar-2022
486,Revenue,CAHD,Central - Commissioned Services,Permanent Residential,Beaufort House,4000.00, 08-Mar-2022
487,Revenue,CAHD,Central - Commissioned Services,Permanent Residential,Beaufort House,3380.00, 08-Mar-2022
488,Revenue,CAHD,Central - Commissioned Services,Permanent Residential,Beaufort House,3200.00, 08-Mar-2022
489,Revenue,CAHD,Central - Commissioned Services,Permanent Residential,Beaufort House,4000.00, 08-Mar-2022
490,Revenue,CAHD,Central - Commissioned Services,Permanent Residential,Beaufort House,3600.00, 08-Mar-2022
491,Revenue,CAHD,Central - Commissioned Services,Fees & Charges Income - General,Beaufort House,-796.32, 08-Mar-2022
492,Revenue,CAHD,Central - Commissioned Services,Fees & Charges Income - General,Beaufort House,-914.36, 08-Mar-2022
493,Revenue,CAHD,Central - Commissioned Services,Fees & Charges Income - General,Beaufort House,-709.28, 08-Mar-2022
494,Revenue,CAHD,Central - Commissioned Services,Fees & Charges Income - General,Beaufort House,967.20, 08-Mar-2022
495,Revenue,CAHD,Central - Commissioned Services,Fees & Charges Income - General,Beaufort House,-1409.16, 08-Mar-2022
496,Revenue,CAHD,Central - Commissioned Services,Fees & Charges Income - General,Beaufort House,-728.64, 08-Mar-2022
497,Revenue,CAHD,Central - Commissioned Services,Fees & Charges Income - General,Beaufort House,-608.80, 08-Mar-2022
498,Revenue,CAHD,South - Commissioned Services,Respite Planned - Residential,Beaufort House,2200.00, 08-Mar-2022
499,Revenue,CAHD,North - Community based support,Permanent Residential,Beaufort House,4000.00, 08-Mar-2022
500,Revenue,CAHD,North - Community based support,Permanent Residential,Beaufort House,-2842.24, 08-Mar-2022
501,Revenue,CAHD,North - Community based support,Permanent Residential,Beaufort House,2817.28, 08-Mar-2022
502,Revenue,CAHD,North - Community based support,Permanent Residential,Beaufort House,4000.00, 08-Mar-2022
503,Revenue,CAHD,North - Community based support,Fees & Charges Income - General,Beaufort House,-1131.36, 08-Mar-2022
504,Revenue,CAHD,North - Community based support,Fees & Charges Income - General,Beaufort House,-608.80, 08-Mar-2022
505,Revenue,CAHD,North - Community based support,Fees & Charges Income - General,Beaufort House,-644.80, 08-Mar-2022
506,Revenue,CAHD,Covid - ASC - Infection Control,Grants to Voluntary Bodies,Beaufort House,23766.67, 29-Mar-2022
507,Revenue,CAHD,ASC Rapid Testing Fund,Grants to Voluntary Bodies,Beaufort House,2224.89, 07-Mar-2022
508,Revenue,CAHD,Covid  - Workforce capacity,Grants to Voluntary Bodies,Beaufort House,667.78, 30-Mar-2022
509,Revenue,CAHD,Covid  - Workforce capacity,Grants to Voluntary Bodies,Beaufort House,882.91, 30-Mar-2022
510,Revenue,CAHD,South Glos Users in South Glos Homes,Permanent Nursing,Beech House,750.40, 08-Mar-2022
511,Revenue,CAHD,South Glos Users in South Glos Homes,Permanent Nursing,Beech House,750.40, 08-Mar-2022
512,Revenue,CAHD,South Glos Users in South Glos Homes,Permanent Nursing,Beech House,750.40, 08-Mar-2022
513,Revenue,CAHD,South Glos Users in South Glos Homes,Permanent Nursing,Beech House,750.40, 08-Mar-2022
514,Revenue,CAHD,South Glos Users in South Glos Homes,Permanent Nursing,Beech House,750.40, 08-Mar-2022
515,Revenue,CAHD,South Glos Users in South Glos Homes,Permanent Nursing,Beech House,750.40, 08-Mar-2022
516,Revenue,CAHD,South Glos Users in South Glos Homes,Permanent Nursing,Beech House,750.40, 08-Mar-2022
517,Revenue,CAHD,South Glos Users in South Glos Homes,Permanent Nursing,Beech House,750.40, 08-Mar-2022
518,Revenue,CAHD,South Glos Users in South Glos Homes,Permanent Nursing,Beech House,750.40, 08-Mar-2022
519,Revenue,CAHD,South Glos Users in South Glos Homes,Permanent Nursing,Beech House,750.40, 08-Mar-2022
520,Revenue,CAHD,South Glos Users in South Glos Homes,Permanent Nursing,Beech House,750.40, 08-Mar-2022
521,Revenue,CAHD,South Glos Users in South Glos Homes,Permanent Nursing,Beech House,750.40, 08-Mar-2022
522,Revenue,CAHD,South Glos Users in South Glos Homes,Permanent Nursing,Beech House,750.40, 08-Mar-2022
523,Revenue,CAHD,South Glos Users in South Glos Homes,Permanent Nursing,Beech House,750.40, 08-Mar-2022
524,Revenue,CAHD,South Glos Users in South Glos Homes,Permanent Nursing,Beech House,750.40, 08-Mar-2022
525,Revenue,CAHD,South Glos Users in South Glos Homes,Permanent Nursing,Beech House,750.40, 08-Mar-2022
526,Revenue,CAHD,South - Commissioned Services,Permanent Residential,Beech House,4480.00, 08-Mar-2022
527,Revenue,CAHD,South - Commissioned Services,Fees & Charges Income - General,Beech House,-769.64, 08-Mar-2022
528,Revenue,CAHD,North - Community based support,Permanent Residential,Beech House,4460.28, 08-Mar-2022
529,Revenue,CAHD,North - Community based support,Permanent Residential,Beech House,4480.00, 08-Mar-2022
530,Revenue,CAHD,North - Community based support,Permanent Residential,Beech House,4480.00, 08-Mar-2022
531,Revenue,CAHD,North - Community based support,Permanent Residential,Beech House,34240.00, 08-Mar-2022
532,Revenue,CAHD,North - Community based support,Permanent Residential,Beech House,4480.00, 08-Mar-2022
533,Revenue,CAHD,North - Community based support,Permanent Nursing,Beech House,4400.00, 08-Mar-2022
534,Revenue,CAHD,North - Community based support,Permanent Nursing,Beech House,4378.44, 08-Mar-2022
535,Revenue,CAHD,North - Community based support,Permanent Nursing,Beech House,4407.12, 08-Mar-2022
536,Revenue,CAHD,North - Community based support,Fees & Charges Income - General,Beech House,-1012.32, 08-Mar-2022
537,Revenue,CAHD,North - Community based support,Fees & Charges Income - General,Beech House,-608.80, 08-Mar-2022
538,Revenue,CAHD,North - Community based support,Fees & Charges Income - General,Beech House,-644.80, 08-Mar-2022
539,Revenue,CAHD,North - Community based support,Fees & Charges Income - General,Beech House,-1803.04, 08-Mar-2022
540,Revenue,CAHD,North - Community based support,Fees & Charges Income - General,Beech House,-952.64, 08-Mar-2022
541,Revenue,CAHD,North - Community based support,Fees & Charges Income - General,Beech House,-610.08, 08-Mar-2022
542,Revenue,CAHD,North - Community based support,Fees & Charges Income - General,Beech House,-24610.96, 08-Mar-2022
543,Revenue,CAHD,North - Community based support,Fees & Charges Income - General,Beech House,-819.12, 08-Mar-2022
544,Revenue,CAHD,Covid - ASC - Infection Control,Grants to Voluntary Bodies,Beech House,30860.67, 29-Mar-2022
545,Revenue,CAHD,Covid  - Workforce capacity,Grants to Voluntary Bodies,Beech House,2671.10, 28-Mar-2022
546,Revenue,CAHD,Covid  - Workforce capacity,Grants to Voluntary Bodies,Beech House,3531.62, 24-Mar-2022
547,Revenue,CAHD,South Glos Users in South Glos Homes,Permanent Nursing,Beechwood Care Home,1122.40, 08-Mar-2022
548,Revenue,CAHD,18-25 Year Olds,Permanent Residential,Beechwood Court Ltd,14491.31, 25-Mar-2022
549,Revenue,CAHD,18-25 Year Olds,Permanent Residential,Beechwood Court Ltd,20867.62, 25-Mar-2022
550,Revenue,CAHD,Central - Commissioned Services,Permanent Nursing,Begbrook House Nursing Home,3400.00, 08-Mar-2022
551,Revenue,CAHD,Central - Commissioned Services,Fees & Charges Income - General,Begbrook House Nursing Home,155.89, 08-Mar-2022
552,Revenue,CAHD,South - Commissioned Services,Permanent Residential,Begbrook House Nursing Home,3400.00, 08-Mar-2022
553,Revenue,CAHD,South - Commissioned Services,Permanent Nursing,Begbrook House Nursing Home,3593.88, 08-Mar-2022
554,Revenue,CAHD,South - Commissioned Services,Fees & Charges Income - General,Begbrook House Nursing Home,-1048.96, 08-Mar-2022
555,Revenue,CAHD,South - Commissioned Services,Fees & Charges Income - General,Begbrook House Nursing Home,-872.28, 08-Mar-2022
556,Revenue,CAHD,North - Community based support,Permanent Nursing,Begbrook House Nursing Home,3234.72, 08-Mar-2022
557,Revenue,CAHD,North - Community based support,Fees & Charges Income - General,Begbrook House Nursing Home,-608.80, 08-Mar-2022
558,Revenue,CAHD,Schools Specific Grant Income,Other Public Bodies,Begbrook Primary Academy,500.00, 09-Mar-2022
559,Revenue,CAHD,Schools Specific Grant Income,Other Public Bodies,Begbrook Primary Academy,500.00, 09-Mar-2022
560,Revenue,CAHD,Schools Specific Grant Income,Other Public Bodies,Begbrook Primary Academy,500.00, 09-Mar-2022
561,Revenue,CAHD,Independent Special Placements - Pre 16,Other Private Contractors,Belgrave School,1206.00, 11-Mar-2022
562,Revenue,CAHD,Parent Partnership & Disagreement Resolutions,Fees - General,Bevan Brittan LLP,3621.00, 16-Mar-2022
563,Revenue,CAHD,Homeless - Private Sector Leasing,Legal Fees,Bevan Brittan LLP,2434.00, 17-Mar-2022
564,Revenue,CAHD,Parent Partnership & Disagreement Resolutions,Fees - General,Bevan Brittan LLP,1632.00, 17-Mar-2022
565,Revenue,CAHD,South - S117,Permanent Residential,Bidna House,3774.24, 08-Mar-2022
566,Revenue,CAHD,Tobacco Control,Other Supplies & Services,Bionical Solutions Limited,2025.00, 25-Mar-2022
567,Revenue,CAHD,Schools Specific Grant Income,Other Public Bodies,Blaise High School,500.00, 09-Mar-2022
568,Revenue,CAHD,Placements OLA Special Schools and RB,Other L.A.s - General,Blaise High School,834.88, 22-Mar-2022
569,Revenue,CAHD,Placements OLA Special Schools and RB,Other L.A.s - General,Blaise High School,792.41, 22-Mar-2022
570,Revenue,CAHD,Statemented Support Payments to OLAs,Other L.A.s - General,Blaise High School,907.83, 21-Mar-2022
571,Revenue,CAHD,Placements OLA Special Schools and RB,Other L.A.s - General,Blaise High School,792.41, 22-Mar-2022
572,Revenue,CAHD,North - Community based support,Other Small Contracts,Blakehill Healthcare Ltd,4319.89, 01-Mar-2022
573,Revenue,CAHD,South - Commissioned Services,Other Small Contracts,Blakehill Healthcare Ltd,4453.76, 01-Mar-2022
574,Revenue,CAHD,Central - Commissioned Services,Other Small Contracts,Blakehill Healthcare Ltd,5876.67, 01-Mar-2022
575,Revenue,CAHD,North - Community based support,Other Small Contracts,Blakehill Healthcare Ltd,4319.89, 09-Mar-2022
576,Revenue,CAHD,South - Commissioned Services,Other Small Contracts,Blakehill Healthcare Ltd,4453.76, 09-Mar-2022
577,Revenue,CAHD,Central - Commissioned Services,Other Small Contracts,Blakehill Healthcare Ltd,5876.67, 09-Mar-2022
578,Revenue,CAHD,North - Community based support,Other Small Contracts,Blakehill Healthcare Ltd,4319.89, 16-Mar-2022
579,Revenue,CAHD,South - Commissioned Services,Other Small Contracts,Blakehill Healthcare Ltd,4453.76, 16-Mar-2022
580,Revenue,CAHD,Central - Commissioned Services,Other Small Contracts,Blakehill Healthcare Ltd,5876.67, 16-Mar-2022
581,Revenue,CAHD,North - Community based support,Other Small Contracts,Blakehill Healthcare Ltd,4319.89, 23-Mar-2022
582,Revenue,CAHD,South - Commissioned Services,Other Small Contracts,Blakehill Healthcare Ltd,4453.76, 23-Mar-2022
583,Revenue,CAHD,Central - Commissioned Services,Other Small Contracts,Blakehill Healthcare Ltd,5876.67, 23-Mar-2022
584,Revenue,CAHD,North - Community based support,Other Small Contracts,Blakehill Healthcare Ltd,4319.89, 30-Mar-2022
585,Revenue,CAHD,South - Commissioned Services,Other Small Contracts,Blakehill Healthcare Ltd,4453.76, 30-Mar-2022
586,Revenue,CAHD,Central - Commissioned Services,Other Small Contracts,Blakehill Healthcare Ltd,5876.67, 30-Mar-2022
587,Revenue,CAHD,Covid - ASC - Infection Control,Grants to Voluntary Bodies,Blakehill Healthcare Ltd,877.53, 30-Mar-2022
588,Revenue,CAHD,ASC Rapid Testing Fund,Grants to Voluntary Bodies,Blakehill Healthcare Ltd,643.73, 30-Mar-2022
589,Revenue,CAHD,Covid  - Workforce capacity,Grants to Voluntary Bodies,Blakehill Healthcare Ltd,2587.63, 07-Mar-2022
590,Revenue,CAHD,Covid  - Workforce capacity,Grants to Voluntary Bodies,Blakehill Healthcare Ltd,7382.08, 25-Mar-2022
591,Revenue,CAHD,North - Community based support,Permanent Residential,Blossom Fields Nursing Home,1603.64, 08-Mar-2022
592,Revenue,CAHD,South Glos Users in South Glos Homes,Permanent Nursing,Blossom Fields Nursing Home,750.40, 08-Mar-2022
593,Revenue,CAHD,South Glos Users in South Glos Homes,Permanent Nursing,Blossom Fields Nursing Home,750.40, 08-Mar-2022
594,Revenue,CAHD,South Glos Users in South Glos Homes,Permanent Nursing,Blossom Fields Nursing Home,750.40, 08-Mar-2022
595,Revenue,CAHD,South Glos Users in South Glos Homes,Permanent Nursing,Blossom Fields Nursing Home,750.40, 08-Mar-2022
596,Revenue,CAHD,South Glos Users in South Glos Homes,Permanent Nursing,Blossom Fields Nursing Home,750.40, 08-Mar-2022
597,Revenue,CAHD,South Glos Users in South Glos Homes,Permanent Nursing,Blossom Fields Nursing Home,750.40, 08-Mar-2022
598,Revenue,CAHD,South Glos Users in South Glos Homes,Permanent Nursing,Blossom Fields Nursing Home,750.40, 08-Mar-2022
599,Revenue,CAHD,South Glos Users in South Glos Homes,Permanent Nursing,Blossom Fields Nursing Home,750.40, 08-Mar-2022
600,Revenue,CAHD,South Glos Users in South Glos Homes,Permanent Nursing,Blossom Fields Nursing Home,750.40, 08-Mar-2022
601,Revenue,CAHD,South Glos Users in South Glos Homes,Permanent Nursing,Blossom Fields Nursing Home,750.40, 08-Mar-2022
602,Revenue,CAHD,South Glos Users in South Glos Homes,Permanent Nursing,Blossom Fields Nursing Home,750.40, 08-Mar-2022
603,Revenue,CAHD,South Glos Users in South Glos Homes,Permanent Nursing,Blossom Fields Nursing Home,750.40, 08-Mar-2022
604,Revenue,CAHD,South Glos Users in South Glos Homes,Permanent Nursing,Blossom Fields Nursing Home,-509.20, 08-Mar-2022
605,Revenue,CAHD,South Glos Users in South Glos Homes,Permanent Nursing,Blossom Fields Nursing Home,750.40, 08-Mar-2022
606,Revenue,CAHD,South Glos Users in South Glos Homes,Permanent Nursing,Blossom Fields Nursing Home,750.40, 08-Mar-2022
607,Revenue,CAHD,South Glos Users in South Glos Homes,Permanent Nursing,Blossom Fields Nursing Home,750.40, 08-Mar-2022
608,Revenue,CAHD,South Glos Users in South Glos Homes,Permanent Nursing,Blossom Fields Nursing Home,750.40, 08-Mar-2022
609,Revenue,CAHD,South Glos Users in South Glos Homes,Permanent Nursing,Blossom Fields Nursing Home,750.40, 08-Mar-2022
610,Revenue,CAHD,South Glos Users in South Glos Homes,Permanent Nursing,Blossom Fields Nursing Home,750.40, 08-Mar-2022
611,Revenue,CAHD,South Glos Users in South Glos Homes,Permanent Nursing,Blossom Fields Nursing Home,750.40, 08-Mar-2022
612,Revenue,CAHD,South Glos Users in South Glos Homes,Permanent Nursing,Blossom Fields Nursing Home,-777.20, 08-Mar-2022
613,Revenue,CAHD,South Glos Users in South Glos Homes,Permanent Nursing,Blossom Fields Nursing Home,750.40, 08-Mar-2022
614,Revenue,CAHD,South Glos Users in South Glos Homes,Permanent Nursing,Blossom Fields Nursing Home,750.40, 08-Mar-2022
615,Revenue,CAHD,South Glos Users in South Glos Homes,Permanent Nursing,Blossom Fields Nursing Home,750.40, 08-Mar-2022
616,Revenue,CAHD,South Glos Users in South Glos Homes,Permanent Nursing,Blossom Fields Nursing Home,750.40, 08-Mar-2022
617,Revenue,CAHD,South Glos Users in South Glos Homes,Permanent Nursing,Blossom Fields Nursing Home,750.40, 08-Mar-2022
618,Revenue,CAHD,Central - Commissioned Services,Permanent Nursing,Blossom Fields Nursing Home,14167.27, 08-Mar-2022
619,Revenue,CAHD,Central - Commissioned Services,Permanent Nursing,Blossom Fields Nursing Home,1313.20, 08-Mar-2022
620,Revenue,CAHD,South - Commissioned Services,Permanent Nursing,Blossom Fields Nursing Home,17828.57, 08-Mar-2022
621,Revenue,CAHD,South - Commissioned Services,Permanent Nursing,Blossom Fields Nursing Home,16804.79, 08-Mar-2022
622,Revenue,CAHD,South - Commissioned Services,Fees & Charges Income - General,Blossom Fields Nursing Home,-2669.42, 08-Mar-2022
623,Revenue,CAHD,South - Commissioned Services,Fees & Charges Income - General,Blossom Fields Nursing Home,-3348.24, 08-Mar-2022
624,Revenue,CAHD,North - Community based support,Permanent Residential,Blossom Fields Nursing Home,-1444.84, 08-Mar-2022
625,Revenue,CAHD,North - Community based support,Permanent Nursing,Blossom Fields Nursing Home,4910.28, 08-Mar-2022
626,Revenue,CAHD,North - Community based support,Permanent Nursing,Blossom Fields Nursing Home,3792.92, 08-Mar-2022
627,Revenue,CAHD,North - Community based support,Permanent Nursing,Blossom Fields Nursing Home,1710.99, 08-Mar-2022
628,Revenue,CAHD,North - Community based support,Permanent Nursing,Blossom Fields Nursing Home,4132.12, 08-Mar-2022
629,Revenue,CAHD,North - Community based support,Permanent Nursing,Blossom Fields Nursing Home,18151.29, 08-Mar-2022
630,Revenue,CAHD,North - Community based support,Permanent Nursing,Blossom Fields Nursing Home,4132.12, 08-Mar-2022
631,Revenue,CAHD,North - Community based support,Permanent Nursing,Blossom Fields Nursing Home,442.84, 08-Mar-2022
632,Revenue,CAHD,North - Community based support,Permanent Nursing,Blossom Fields Nursing Home,738.07, 08-Mar-2022
633,Revenue,CAHD,North - Community based support,Fees & Charges Income - General,Blossom Fields Nursing Home,-608.80, 08-Mar-2022
634,Revenue,CAHD,North - Community based support,Fees & Charges Income - General,Blossom Fields Nursing Home,-660.48, 08-Mar-2022
635,Revenue,CAHD,North - Community based support,Fees & Charges Income - General,Blossom Fields Nursing Home,-644.80, 08-Mar-2022
636,Revenue,CAHD,North - Community based support,Fees & Charges Income - General,Blossom Fields Nursing Home,1892.94, 08-Mar-2022
637,Revenue,CAHD,North - Community based support,Fees & Charges Income - General,Blossom Fields Nursing Home,-4381.91, 08-Mar-2022
638,Revenue,CAHD,North - Community based support,Fees & Charges Income - General,Blossom Fields Nursing Home,-65.23, 08-Mar-2022
639,Revenue,CAHD,Covid - ASC - Infection Control,Grants to Voluntary Bodies,Blossom Fields Nursing Home,875.00, 29-Mar-2022
640,Revenue,CAHD,Covid  - Workforce capacity,Grants to Voluntary Bodies,Blossom Fields Nursing Home,2949.34, 30-Mar-2022
641,Revenue,CAHD,Covid  - Workforce capacity,Grants to Voluntary Bodies,Blossom Fields Nursing Home,3899.50, 30-Mar-2022
642,Revenue,CAHD,North - Community based support,Permanent Residential,Blossom Fields Nursing Home,500.00, 08-Mar-2022
643,Revenue,CAHD,South Glos Users in South Glos Homes,Permanent Nursing,Blossom Fields Nursing Home,750.40, 08-Mar-2022
644,Revenue,CAHD,South Glos Users in South Glos Homes,Permanent Nursing,Blossom Fields Nursing Home,750.40, 08-Mar-2022
645,Revenue,CAHD,South Glos Users in South Glos Homes,Permanent Nursing,Blossom Fields Nursing Home,750.40, 08-Mar-2022
646,Revenue,CAHD,South Glos Users in South Glos Homes,Permanent Nursing,Blossom Fields Nursing Home,750.40, 08-Mar-2022
647,Revenue,CAHD,South Glos Users in South Glos Homes,Permanent Nursing,Blossom Fields Nursing Home,750.40, 08-Mar-2022
648,Revenue,CAHD,South Glos Users in South Glos Homes,Permanent Nursing,Blossom Fields Nursing Home,750.40, 08-Mar-2022
649,Revenue,CAHD,South Glos Users in South Glos Homes,Permanent Nursing,Blossom Fields Nursing Home,750.40, 08-Mar-2022
650,Revenue,CAHD,South Glos Users in South Glos Homes,Permanent Nursing,Blossom Fields Nursing Home,750.40, 08-Mar-2022
651,Revenue,CAHD,South Glos Users in South Glos Homes,Permanent Nursing,Blossom Fields Nursing Home,750.40, 08-Mar-2022
652,Revenue,CAHD,South Glos Users in South Glos Homes,Permanent Nursing,Blossom Fields Nursing Home,750.40, 08-Mar-2022
653,Revenue,CAHD,South Glos Users in South Glos Homes,Permanent Nursing,Blossom Fields Nursing Home,750.40, 08-Mar-2022
654,Revenue,CAHD,South Glos Users in South Glos Homes,Permanent Nursing,Blossom Fields Nursing Home,750.40, 08-Mar-2022
655,Revenue,CAHD,South Glos Users in South Glos Homes,Permanent Nursing,Blossom Fields Nursing Home,750.40, 08-Mar-2022
656,Revenue,CAHD,South Glos Users in South Glos Homes,Permanent Nursing,Blossom Fields Nursing Home,750.40, 08-Mar-2022
657,Revenue,CAHD,South Glos Users in South Glos Homes,Permanent Nursing,Blossom Fields Nursing Home,750.40, 08-Mar-2022
658,Revenue,CAHD,South Glos Users in South Glos Homes,Permanent Nursing,Blossom Fields Nursing Home,750.40, 08-Mar-2022
659,Revenue,CAHD,South Glos Users in South Glos Homes,Permanent Nursing,Blossom Fields Nursing Home,750.40, 08-Mar-2022
660,Revenue,CAHD,South Glos Users in South Glos Homes,Permanent Nursing,Blossom Fields Nursing Home,750.40, 08-Mar-2022
661,Revenue,CAHD,South Glos Users in South Glos Homes,Permanent Nursing,Blossom Fields Nursing Home,750.40, 08-Mar-2022
662,Revenue,CAHD,South Glos Users in South Glos Homes,Permanent Nursing,Blossom Fields Nursing Home,750.40, 08-Mar-2022
663,Revenue,CAHD,South Glos Users in South Glos Homes,Permanent Nursing,Blossom Fields Nursing Home,750.40, 08-Mar-2022
664,Revenue,CAHD,South Glos Users in South Glos Homes,Permanent Nursing,Blossom Fields Nursing Home,750.40, 08-Mar-2022
665,Revenue,CAHD,South Glos Users in South Glos Homes,Permanent Nursing,Blossom Fields Nursing Home,750.40, 08-Mar-2022
666,Revenue,CAHD,South Glos Users in South Glos Homes,Permanent Nursing,Blossom Fields Nursing Home,750.40, 08-Mar-2022
667,Revenue,CAHD,South Glos Users in South Glos Homes,Permanent Nursing,Blossom Fields Nursing Home,750.40, 08-Mar-2022
668,Revenue,CAHD,South Glos Users in South Glos Homes,Permanent Nursing,Blossom Fields Nursing Home,750.40, 08-Mar-2022
669,Revenue,CAHD,South Glos Users in South Glos Homes,Permanent Nursing,Blossom Fields Nursing Home,750.40, 08-Mar-2022
670,Revenue,CAHD,South Glos Users in South Glos Homes,Permanent Nursing,Blossom Fields Nursing Home,750.40, 08-Mar-2022
671,Revenue,CAHD,South Glos Users in South Glos Homes,Permanent Nursing,Blossom Fields Nursing Home,750.40, 08-Mar-2022
672,Revenue,CAHD,South Glos Users in South Glos Homes,Permanent Nursing,Blossom Fields Nursing Home,750.40, 08-Mar-2022
673,Revenue,CAHD,South Glos Users in South Glos Homes,Permanent Nursing,Blossom Fields Nursing Home,750.40, 08-Mar-2022
674,Revenue,CAHD,South Glos Users in South Glos Homes,Permanent Nursing,Blossom Fields Nursing Home,750.40, 08-Mar-2022
675,Revenue,CAHD,South Glos Users in South Glos Homes,Permanent Nursing,Blossom Fields Nursing Home,750.40, 08-Mar-2022
676,Revenue,CAHD,South Glos Users in South Glos Homes,Permanent Nursing,Blossom Fields Nursing Home,750.40, 08-Mar-2022
677,Revenue,CAHD,South Glos Users in South Glos Homes,Permanent Nursing,Blossom Fields Nursing Home,750.40, 08-Mar-2022
678,Revenue,CAHD,South Glos Users in South Glos Homes,Permanent Nursing,Blossom Fields Nursing Home,750.40, 08-Mar-2022
679,Revenue,CAHD,South Glos Users in South Glos Homes,Permanent Nursing,Blossom Fields Nursing Home,-884.40, 08-Mar-2022
680,Revenue,CAHD,South Glos Users in South Glos Homes,Permanent Nursing,Blossom Fields Nursing Home,750.40, 08-Mar-2022
681,Revenue,CAHD,South Glos Users in South Glos Homes,Permanent Nursing,Blossom Fields Nursing Home,750.40, 08-Mar-2022
682,Revenue,CAHD,South Glos Users in South Glos Homes,Permanent Nursing,Blossom Fields Nursing Home,750.40, 08-Mar-2022
683,Revenue,CAHD,South Glos Users in South Glos Homes,Permanent Nursing,Blossom Fields Nursing Home,750.40, 08-Mar-2022
684,Revenue,CAHD,South Glos Users in South Glos Homes,Permanent Nursing,Blossom Fields Nursing Home,-964.80, 08-Mar-2022
685,Revenue,CAHD,South Glos Users in South Glos Homes,Permanent Nursing,Blossom Fields Nursing Home,750.40, 08-Mar-2022
686,Revenue,CAHD,South Glos Users in South Glos Homes,Permanent Nursing,Blossom Fields Nursing Home,750.40, 08-Mar-2022
687,Revenue,CAHD,South Glos Users in South Glos Homes,Permanent Nursing,Blossom Fields Nursing Home,750.40, 08-Mar-2022
688,Revenue,CAHD,South Glos Users in South Glos Homes,Permanent Nursing,Blossom Fields Nursing Home,750.40, 08-Mar-2022
689,Revenue,CAHD,South Glos Users in South Glos Homes,Permanent Nursing,Blossom Fields Nursing Home,750.40, 08-Mar-2022
690,Revenue,CAHD,South Glos Users in South Glos Homes,Permanent Nursing,Blossom Fields Nursing Home,750.40, 08-Mar-2022
691,Revenue,CAHD,South Glos Users in South Glos Homes,Permanent Nursing,Blossom Fields Nursing Home,750.40, 08-Mar-2022
692,Revenue,CAHD,Central - Commissioned Services,Permanent Residential,Blossom Fields Nursing Home,3800.00, 08-Mar-2022
693,Revenue,CAHD,Central - Commissioned Services,Permanent Residential,Blossom Fields Nursing Home,3600.00, 08-Mar-2022
694,Revenue,CAHD,Central - Commissioned Services,Permanent Nursing,Blossom Fields Nursing Home,5123.80, 08-Mar-2022
695,Revenue,CAHD,Central - Commissioned Services,Permanent Nursing,Blossom Fields Nursing Home,4132.12, 08-Mar-2022
696,Revenue,CAHD,Central - Commissioned Services,Permanent Nursing,Blossom Fields Nursing Home,4132.12, 08-Mar-2022
697,Revenue,CAHD,Central - Commissioned Services,Permanent Nursing,Blossom Fields Nursing Home,4790.76, 08-Mar-2022
698,Revenue,CAHD,Central - Commissioned Services,Permanent Nursing,Blossom Fields Nursing Home,4818.72, 08-Mar-2022
699,Revenue,CAHD,Central - Commissioned Services,Permanent Nursing,Blossom Fields Nursing Home,4132.12, 08-Mar-2022
700,Revenue,CAHD,Central - Commissioned Services,Permanent Nursing,Blossom Fields Nursing Home,4600.00, 08-Mar-2022
701,Revenue,CAHD,Central - Commissioned Services,Permanent Nursing,Blossom Fields Nursing Home,5115.00, 08-Mar-2022
702,Revenue,CAHD,Central - Commissioned Services,Permanent Nursing,Blossom Fields Nursing Home,13635.71, 08-Mar-2022
703,Revenue,CAHD,Central - Commissioned Services,Permanent Nursing,Blossom Fields Nursing Home,4132.12, 08-Mar-2022
704,Revenue,CAHD,Central - Commissioned Services,Respite Emergency - Nursing,Blossom Fields Nursing Home,-4133.20, 08-Mar-2022
705,Revenue,CAHD,Central - Commissioned Services,Fees & Charges Income - General,Blossom Fields Nursing Home,-608.80, 08-Mar-2022
706,Revenue,CAHD,Central - Commissioned Services,Fees & Charges Income - General,Blossom Fields Nursing Home,-1204.96, 08-Mar-2022
707,Revenue,CAHD,Central - Commissioned Services,Fees & Charges Income - General,Blossom Fields Nursing Home,-2529.00, 08-Mar-2022
708,Revenue,CAHD,Central - Commissioned Services,Fees & Charges Income - General,Blossom Fields Nursing Home,-473.60, 08-Mar-2022
709,Revenue,CAHD,Central - Commissioned Services,Fees & Charges Income - General,Blossom Fields Nursing Home,-1173.24, 08-Mar-2022
710,Revenue,CAHD,Central - Commissioned Services,Fees & Charges Income - General,Blossom Fields Nursing Home,-1150.40, 08-Mar-2022
711,Revenue,CAHD,Central - Commissioned Services,Fees & Charges Income - General,Blossom Fields Nursing Home,-1667.72, 08-Mar-2022
712,Revenue,CAHD,Central - Commissioned Services,Fees & Charges Income - General,Blossom Fields Nursing Home,-5865.40, 08-Mar-2022
713,Revenue,CAHD,Central - Commissioned Services,Fees & Charges Income - General,Blossom Fields Nursing Home,-2500.79, 08-Mar-2022
714,Revenue,CAHD,South - Commissioned Services,Permanent Nursing,Blossom Fields Nursing Home,4790.76, 08-Mar-2022
715,Revenue,CAHD,South - Commissioned Services,Permanent Nursing,Blossom Fields Nursing Home,3943.04, 08-Mar-2022
716,Revenue,CAHD,South - Commissioned Services,Permanent Nursing,Blossom Fields Nursing Home,4133.20, 08-Mar-2022
717,Revenue,CAHD,South - Commissioned Services,Permanent Nursing,Blossom Fields Nursing Home,5000.00, 08-Mar-2022
718,Revenue,CAHD,South - Commissioned Services,Permanent Nursing,Blossom Fields Nursing Home,3600.00, 08-Mar-2022
719,Revenue,CAHD,South - Commissioned Services,Fees & Charges Income - General,Blossom Fields Nursing Home,-993.60, 08-Mar-2022
720,Revenue,CAHD,South - Commissioned Services,Fees & Charges Income - General,Blossom Fields Nursing Home,-1112.52, 08-Mar-2022
721,Revenue,CAHD,South - Commissioned Services,Fees & Charges Income - General,Blossom Fields Nursing Home,-903.68, 08-Mar-2022
722,Revenue,CAHD,North - Community based support,Permanent Residential,Blossom Fields Nursing Home,3300.00, 08-Mar-2022
723,Revenue,CAHD,North - Community based support,Respite Planned - Residential,Blossom Fields Nursing Home,10414.28, 08-Mar-2022
724,Revenue,CAHD,North - Community based support,Permanent Nursing,Blossom Fields Nursing Home,4133.20, 08-Mar-2022
725,Revenue,CAHD,North - Community based support,Fees & Charges Income - General,Blossom Fields Nursing Home,-1356.44, 08-Mar-2022
726,Revenue,CAHD,North - Community based support,Fees & Charges Income - General,Blossom Fields Nursing Home,-608.80, 08-Mar-2022
727,Revenue,CAHD,North - S117,Permanent Residential,Blossom Fields Nursing Home,4910.40, 08-Mar-2022
728,Revenue,CAHD,North - S117,Permanent Residential,Blossom Fields Nursing Home,5115.00, 08-Mar-2022
729,Revenue,CAHD,North - S117,Permanent Nursing,Blossom Fields Nursing Home,4132.12, 08-Mar-2022
730,Revenue,CAHD,Covid - ASC - Infection Control,Grants to Voluntary Bodies,Blossom Fields Nursing Home,875.00, 29-Mar-2022
731,Revenue,CAHD,Covid  - Workforce capacity,Grants to Voluntary Bodies,Blossom Fields Nursing Home,3672.76, 30-Mar-2022
732,Revenue,CAHD,Covid  - Workforce capacity,Grants to Voluntary Bodies,Blossom Fields Nursing Home,4855.98, 30-Mar-2022
733,Revenue,CAHD,Statemented Support Payments to OLAs,Other L.A.s - General,Blue Coat CE VA Primary School,837.09, 21-Mar-2022
734,Revenue,CAHD,Statemented Support Payments to OLAs,Other L.A.s - General,Blue Coat CE VA Primary School,1292.50, 21-Mar-2022
735,Revenue,CAHD,North - Community based support,Permanent Residential,Bluebells,3699.60, 08-Mar-2022
736,Revenue,CAHD,North - Community based support,Fees & Charges Income - General,Bluebells,-835.00, 08-Mar-2022
737,Revenue,CAHD,EARLY YEARS DISABILITY  ACCES FUND,Preventative Assistance,Bluebells Pre School,615.00, 11-Mar-2022
738,Revenue,CAHD,Early Years Pupil Premium Grant,Preventative Assistance,Bluebells Pre School,572.40, 15-Mar-2022
739,Revenue,CAHD,EARLY YEARS DEPRIVATION PAYMENT,Preventative Assistance,Bluebells Pre School,647.76, 15-Mar-2022
740,Revenue,CAHD,North - Community based support,Other Small Contracts,Bluebird Care (South Gloucestershire),4656.41, 01-Mar-2022
741,Revenue,CAHD,South - Commissioned Services,Other Small Contracts,Bluebird Care (South Gloucestershire),3832.17, 01-Mar-2022
742,Revenue,CAHD,Central - Commissioned Services,Other Small Contracts,Bluebird Care (South Gloucestershire),12920.21, 01-Mar-2022
743,Revenue,CAHD,North - Community based support,Other Small Contracts,Bluebird Care (South Gloucestershire),4656.41, 09-Mar-2022
744,Revenue,CAHD,South - Commissioned Services,Other Small Contracts,Bluebird Care (South Gloucestershire),3832.17, 09-Mar-2022
745,Revenue,CAHD,Central - Commissioned Services,Other Small Contracts,Bluebird Care (South Gloucestershire),12920.21, 09-Mar-2022
746,Revenue,CAHD,North - Community based support,Other Small Contracts,Bluebird Care (South Gloucestershire),4656.41, 16-Mar-2022
747,Revenue,CAHD,South - Commissioned Services,Other Small Contracts,Bluebird Care (South Gloucestershire),3832.17, 16-Mar-2022
748,Revenue,CAHD,Central - Commissioned Services,Other Small Contracts,Bluebird Care (South Gloucestershire),12920.21, 16-Mar-2022
749,Revenue,CAHD,North - Community based support,Other Small Contracts,Bluebird Care (South Gloucestershire),4656.41, 23-Mar-2022
750,Revenue,CAHD,South - Commissioned Services,Other Small Contracts,Bluebird Care (South Gloucestershire),3832.17, 23-Mar-2022
751,Revenue,CAHD,Central - Commissioned Services,Other Small Contracts,Bluebird Care (South Gloucestershire),12920.21, 23-Mar-2022
752,Revenue,CAHD,North - Community based support,Other Small Contracts,Bluebird Care (South Gloucestershire),4656.41, 30-Mar-2022
753,Revenue,CAHD,South - Commissioned Services,Other Small Contracts,Bluebird Care (South Gloucestershire),3832.17, 30-Mar-2022
754,Revenue,CAHD,Central - Commissioned Services,Other Small Contracts,Bluebird Care (South Gloucestershire),12920.21, 30-Mar-2022
755,Revenue,CAHD,Covid - ASC - Infection Control,Grants to Voluntary Bodies,Bluebird Care (South Gloucestershire),4252.65, 07-Mar-2022
756,Revenue,CAHD,ASC Rapid Testing Fund,Grants to Voluntary Bodies,Bluebird Care (South Gloucestershire),3119.62, 07-Mar-2022
757,Revenue,CAHD,Covid - Vaccines,Grants to Voluntary Bodies,Bluebird Care (South Gloucestershire),1137.25, 07-Mar-2022
758,Revenue,CAHD,Covid  - Workforce capacity,Grants to Voluntary Bodies,Bluebird Care (South Gloucestershire),13905.77, 07-Mar-2022
759,Revenue,CAHD,Covid  - Workforce capacity,Grants to Voluntary Bodies,Bluebird Care (South Gloucestershire),5959.62, 30-Mar-2022
760,Revenue,CAHD,Covid  - Workforce capacity,Grants to Voluntary Bodies,Bluebird Care (South Gloucestershire),4897.02, 30-Mar-2022
761,Revenue,CAHD,CSC - Asylum Seekers - Unaccompanied,Independent Living,Blueline Healthcare Solutions Ltd T/A Blueline Car,3702.86, 11-Mar-2022
762,Revenue,CAHD,CSC - Asylum Seekers - Unaccompanied,Independent Living,Blueline Healthcare Solutions Ltd T/A Blueline Car,2742.00, 11-Mar-2022
763,Revenue,CAHD,CSC - Asylum Seekers - Unaccompanied,Independent Living,Blueline Healthcare Solutions Ltd T/A Blueline Car,2742.00, 11-Mar-2022
764,Revenue,CAHD,Social Lettings Agency,Prop.Serv. General Repairs,BPM Contracting Services Limited,612.00, 16-Mar-2022
765,Revenue,CAHD,S28A cases,Permanent Residential,Bradbury House,6505.16, 08-Mar-2022
766,Revenue,CAHD,S28A cases,Fees & Charges Income - General,Bradbury House,-425.60, 08-Mar-2022
767,Revenue,CAHD,North - S117,Permanent Residential,Bradbury House,7106.96, 08-Mar-2022
768,Revenue,CAHD,Jointly Funded H&SC Packages,Permanent Residential,Bradbury House,7106.96, 08-Mar-2022
769,Revenue,CAHD,"Drugs, Alcohol and Sexual Health",Other Small Contracts,Bradley Stoke Surgery,2173.50, 24-Mar-2022
770,Revenue,CAHD,Contain Outbreak Mgmt Fund,Project Funding,Bradley Stoke Town Council,500.00, 09-Mar-2022
771,Revenue,CAHD,CSC - Residential Placements,Permanent Residential,Branas ISAF Ltd,21921.34, 28-Mar-2022
772,Revenue,CAHD,Central - Commissioned Services,Permanent Residential,Breadstone House Care Centre,10062.27, 08-Mar-2022
773,Revenue,CAHD,Central - Commissioned Services,Fees & Charges Income - General,Breadstone House Care Centre,-2259.32, 08-Mar-2022
774,Revenue,CAHD,Social Lettings Agency,Rent,Individual,822.73, 25-Mar-2022
775,Revenue,CAHD,Social Lettings Agency,Fees & Charges Income - General,Individual,-102.80, 25-Mar-2022
776,Revenue,CAHD,South - Commissioned Services,One-off Planned Direct Payment,Individual,500.00, 18-Mar-2022
777,Revenue,CAHD,Social Lettings Agency,Rent,Individual,915.00, 03-Mar-2022
778,Revenue,CAHD,Social Lettings Agency,Fees & Charges Income - General,Individual,-73.20, 03-Mar-2022
779,Revenue,CAHD,Placements OLA Special Schools and RB,Other L.A.s - General,Briarwood School,2774.71, 22-Mar-2022
780,Revenue,CAHD,Placements OLA Special Schools and RB,Other L.A.s - General,Briarwood School,792.40, 22-Mar-2022
781,Revenue,CAHD,North - Community based support,Permanent Residential,Bridge House Care Home,3100.00, 08-Mar-2022
782,Revenue,CAHD,North - Community based support,Permanent Residential,Bridge House Care Home,2913.52, 08-Mar-2022
783,Revenue,CAHD,North - Community based support,Fees & Charges Income - General,Bridge House Care Home,-608.80, 08-Mar-2022
784,Revenue,CAHD,North - Community based support,Fees & Charges Income - General,Bridge House Care Home,-1629.84, 08-Mar-2022
785,Revenue,CAHD,Covid  - Workforce capacity,Grants to Voluntary Bodies,Bridge House Care Home,779.07, 28-Mar-2022
786,Revenue,CAHD,Covid  - Workforce capacity,Grants to Voluntary Bodies,Bridge House Care Home,956.48, 24-Mar-2022
787,Revenue,CAHD,North - Community based support,Permanent Residential,Bridgwater Court Care Home,10773.64, 08-Mar-2022
788,Revenue,CAHD,EARLY YEARS DEPRIVATION PAYMENT,Preventative Assistance,Bright Sparks Pre School Ltd,539.80, 15-Mar-2022
789,Revenue,CAHD,Statemented Support Payments to OLAs,Other L.A.s - General,Bristol Cathedral Choir School,942.58, 21-Mar-2022
790,Revenue,CAHD,Statemented Support Payments to OLAs,Other L.A.s - General,Bristol Cathedral Choir School,880.08, 21-Mar-2022
791,Revenue,CAHD,Schools Specific Grant Income,Other Public Bodies,Bristol Cathedral Choir School,500.00, 09-Mar-2022
792,Revenue,CAHD,Statemented Support Payments to OLAs,Other L.A.s - General,Bristol Cathedral Choir School,978.57, 21-Mar-2022
793,Revenue,CAHD,Statemented Support Payments to OLAs,Other L.A.s - General,Bristol City Council Schools General,897.42, 21-Mar-2022
794,Revenue,CAHD,Statemented Support Payments to OLAs,Other L.A.s - General,Bristol City Council Schools General,635.33, 21-Mar-2022
795,Revenue,CAHD,South Hub Offices,"Holidays, Outings & Visits",Bristol Clifton & West of England Zoological,672.00, 28-Mar-2022
796,Revenue,CAHD,Placements OLA Special Schools and RB,Other L.A.s - General,Bristol Hospital Education,6040.93, 22-Mar-2022
797,Revenue,CAHD,Other Alternative Provision Services,Other Private Contractors,Bristol Tuition Limited,560.00, 11-Mar-2022
798,Revenue,CAHD,Statemented Support Payments to OLAs,Other L.A.s - General,Broadlands Academy,835.17, 21-Mar-2022
799,Revenue,CAHD,North - Community based support,Permanent Residential,Brockhills Farm,3200.00, 08-Mar-2022
800,Revenue,CAHD,North - Community based support,Fees & Charges Income - General,Brockhills Farm,-639.08, 08-Mar-2022
801,Revenue,CAHD,Supporting People Programme,Grants to Voluntary Bodies,Bromford  :  Merlin Housing Society,15637.00, 01-Mar-2022
802,Revenue,CAHD,Supporting People Programme,Grants to Voluntary Bodies,Bromford  :  Merlin Housing Society,2741.00, 01-Mar-2022
803,Revenue,CAHD,Supporting People Programme,Grants to Voluntary Bodies,Bromford  :  Merlin Housing Society,22940.00, 01-Mar-2022
804,Revenue,CAHD,Supporting People Programme,Grants to Voluntary Bodies,Bromford  :  Merlin Housing Society,1113.00, 01-Mar-2022
805,Revenue,CAHD,Parent Partnership & Disagreement Resolutions,Fees - General,Browne Jacobson,688.00, 25-Mar-2022
806,Revenue,CAHD,Parent Partnership & Disagreement Resolutions,Fees - General,Browne Jacobson,1697.00, 25-Mar-2022
807,Revenue,CAHD,Community Support - South,Preventative Assistance,Brunel Abba Cars Limited,676.00, 02-Mar-2022
808,Revenue,CAHD,Community Support - South,Preventative Assistance,Brunel Abba Cars Limited,524.00, 30-Mar-2022
809,Revenue,CAHD,South - Commissioned Services,Other Small Contracts,Brunelcare,13503.64, 01-Mar-2022
810,Revenue,CAHD,South - Commissioned Services,Other Small Contracts,Brunelcare,13503.64, 09-Mar-2022
811,Revenue,CAHD,South - Commissioned Services,Other Small Contracts,Brunelcare,13503.64, 16-Mar-2022
812,Revenue,CAHD,South - Commissioned Services,Other Small Contracts,Brunelcare,13503.64, 23-Mar-2022
813,Revenue,CAHD,South - Commissioned Services,Other Small Contracts,Brunelcare,13503.64, 30-Mar-2022
814,Revenue,CAHD,Covid - ASC - Infection Control,Grants to Voluntary Bodies,Brunelcare,2000.00, 29-Mar-2022
815,Revenue,CAHD,North - S117,Permanent Residential,Buckland Care,3600.00, 08-Mar-2022
816,Revenue,CAHD,CSC - Vinney Green Secure Unit,R & M by Departments,BWS Standfast Fire & Security Systems,50000.00, 23-Mar-2022
817,Revenue,CAHD,CSC - Vinney Green Secure Unit,R & M by Departments,BWS Standfast Fire & Security Systems,1653.20, 02-Mar-2022
818,Revenue,CAHD,CSC - Vinney Green Secure Unit,R & M by Departments,BWS Standfast Fire & Security Systems,1239.00, 30-Mar-2022
819,Revenue,CAHD,CSC - Agency Fostering,Foster Parent Allowances,By the Bridge Ltd,3321.34, 03-Mar-2022
820,Revenue,CAHD,CSC - Agency Fostering,Foster Parent Allowances,By the Bridge Ltd,4242.66, 03-Mar-2022
821,Revenue,CAHD,CSC - Asylum Seekers - Unaccompanied,Foster Parent Allowances,By the Bridge Ltd,2998.41, 31-Mar-2022
822,Revenue,CAHD,CSC - Asylum Seekers - Unaccompanied,Foster Parent Allowances,By the Bridge Ltd,2998.41, 31-Mar-2022
823,Revenue,CAHD,CSC - Agency Fostering,Foster Parent Allowances,By the Bridge Ltd,2999.92, 31-Mar-2022
824,Revenue,CAHD,CSC - Agency Fostering,Foster Parent Allowances,By the Bridge Ltd,2326.62, 31-Mar-2022
825,Revenue,CAHD,CSC - Agency Fostering,Foster Parent Allowances,By the Bridge Ltd,1505.35, 31-Mar-2022
826,Revenue,CAHD,Social Lettings Agency,Rent,Individual,947.40, 11-Mar-2022
827,Revenue,CAHD,Social Lettings Agency,Fees & Charges Income - General,Individual,-94.74, 11-Mar-2022
828,Revenue,CAHD,North - Community based support,Permanent Nursing,Clevedon Court Nursing Home,3448.16, 08-Mar-2022
829,Revenue,CAHD,Support for Improving Educational Outcomes,Membership Fees,Cabot Learning Federation,1526.00, 14-Mar-2022
830,Revenue,CAHD,Schools Specific Grant Income,Other Public Bodies,Cabot Learning Federation,500.00, 09-Mar-2022
831,Revenue,CAHD,Statemented Support Academies,Other Public Bodies,Cabot Learning Federation,2038.66, 22-Mar-2022
832,Revenue,CAHD,Statemented Support Academies,Other Public Bodies,Cabot Learning Federation,1179.67, 22-Mar-2022
833,Revenue,CAHD,Statemented Support Academies,Other Public Bodies,Cabot Learning Federation,646.67, 22-Mar-2022
834,Revenue,CAHD,Statemented Support Academies,Other Public Bodies,Cabot Learning Federation,836.67, 22-Mar-2022
835,Revenue,CAHD,Statemented Support Academies,Other Public Bodies,Cabot Learning Federation,2227.06, 22-Mar-2022
836,Revenue,CAHD,Statemented Support Academies,Other Public Bodies,Cabot Learning Federation,1103.25, 22-Mar-2022
837,Revenue,CAHD,Statemented Support Academies,Other Public Bodies,Cabot Learning Federation,1899.58, 22-Mar-2022
838,Revenue,CAHD,Statemented Support Academies,Other Public Bodies,Cabot Learning Federation,1654.33, 22-Mar-2022
839,Revenue,CAHD,Statemented Support Academies,Other Public Bodies,Cabot Learning Federation,11697.56, 22-Mar-2022
840,Revenue,CAHD,Academy Resource Base Funding,Other Public Bodies,Cabot Learning Federation,8076.25, 18-Mar-2022
841,Revenue,CAHD,Statemented Support Academies,Other Public Bodies,Cabot Learning Federation,658.75, 22-Mar-2022
842,Revenue,CAHD,Statemented Support Academies,Other Public Bodies,Cabot Learning Federation,632.67, 22-Mar-2022
843,Revenue,CAHD,Statemented Support Academies,Other Public Bodies,Cabot Learning Federation,695.61, 22-Mar-2022
844,Revenue,CAHD,Statemented Support Academies,Other Public Bodies,Cabot Learning Federation,918.75, 22-Mar-2022
845,Revenue,CAHD,Statemented Support Academies,Other Public Bodies,Cabot Learning Federation,975.58, 22-Mar-2022
846,Revenue,CAHD,Statemented Support Academies,Other Public Bodies,Cabot Learning Federation,705.00, 22-Mar-2022
847,Revenue,CAHD,Statemented Support Academies,Other Public Bodies,Cabot Learning Federation,3332.97, 22-Mar-2022
848,Revenue,CAHD,Statemented Support Academies,Other Public Bodies,Cabot Learning Federation,1084.17, 22-Mar-2022
849,Revenue,CAHD,Academy Resource Base Funding,Other Public Bodies,Cabot Learning Federation,7589.08, 21-Mar-2022
850,Revenue,CAHD,Academy Resource Base Funding,Other Public Bodies,Cabot Learning Federation,1702.97, 21-Mar-2022
851,Revenue,CAHD,Academy Resource Base Funding,Other Public Bodies,Cabot Learning Federation,1540.84, 21-Mar-2022
852,Revenue,CAHD,Academy Resource Base Funding,Other Public Bodies,Cabot Learning Federation,1540.84, 21-Mar-2022
853,Revenue,CAHD,Academy Resource Base Funding,Other Public Bodies,Cabot Learning Federation,1175.88, 21-Mar-2022
854,Revenue,CAHD,Academy Resource Base Funding,Other Public Bodies,Cabot Learning Federation,1175.88, 21-Mar-2022
855,Revenue,CAHD,Academy Resource Base Funding,Other Public Bodies,Cabot Learning Federation,1175.88, 21-Mar-2022
856,Revenue,CAHD,Academy Resource Base Funding,Other Public Bodies,Cabot Learning Federation,1540.84, 21-Mar-2022
857,Revenue,CAHD,Academy Resource Base Funding,Other Public Bodies,Cabot Learning Federation,1013.75, 21-Mar-2022
858,Revenue,CAHD,Academy Resource Base Funding,Other Public Bodies,Cabot Learning Federation,1702.97, 21-Mar-2022
859,Revenue,CAHD,Academy Resource Base Funding,Other Public Bodies,Cabot Learning Federation,1175.88, 21-Mar-2022
860,Revenue,CAHD,Academy Resource Base Funding,Other Public Bodies,Cabot Learning Federation,1175.88, 21-Mar-2022
861,Revenue,CAHD,Academy Resource Base Funding,Other Public Bodies,Cabot Learning Federation,1702.97, 21-Mar-2022
862,Revenue,CAHD,Academy Resource Base Funding,Other Public Bodies,Cabot Learning Federation,648.69, 21-Mar-2022
863,Revenue,CAHD,Academy Resource Base Funding,Other Public Bodies,Cabot Learning Federation,1175.88, 21-Mar-2022
864,Revenue,CAHD,Academy Resource Base Funding,Other Public Bodies,Cabot Learning Federation,2513.88, 21-Mar-2022
865,Revenue,CAHD,Academy Resource Base Funding,Other Public Bodies,Cabot Learning Federation,1702.97, 21-Mar-2022
866,Revenue,CAHD,Academy Resource Base Funding,Other Public Bodies,Cabot Learning Federation,1175.88, 21-Mar-2022
867,Revenue,CAHD,Academy Resource Base Funding,Other Public Bodies,Cabot Learning Federation,1702.97, 21-Mar-2022
868,Revenue,CAHD,Academy Resource Base Funding,Other Public Bodies,Cabot Learning Federation,1702.97, 21-Mar-2022
869,Revenue,CAHD,Academy Resource Base Funding,Other Public Bodies,Cabot Learning Federation,648.69, 21-Mar-2022
870,Revenue,CAHD,Academy Resource Base Funding,Other Public Bodies,Cabot Learning Federation,1540.84, 21-Mar-2022
871,Revenue,CAHD,Academy Resource Base Funding,Other Public Bodies,Cabot Learning Federation,1175.88, 21-Mar-2022
872,Revenue,CAHD,Academy Resource Base Funding,Other Public Bodies,Cabot Learning Federation,2189.53, 21-Mar-2022
873,Revenue,CAHD,Academy Resource Base Funding,Other Public Bodies,Cabot Learning Federation,1175.88, 21-Mar-2022
874,Revenue,CAHD,Statemented Support Academies,Other Public Bodies,Cabot Learning Federation,1626.67, 22-Mar-2022
875,Revenue,CAHD,Statemented Support Academies,Other Public Bodies,Cabot Learning Federation,710.58, 22-Mar-2022
876,Revenue,CAHD,Statemented Support Academies,Other Public Bodies,Cabot Learning Federation,804.08, 22-Mar-2022
877,Revenue,CAHD,Statemented Support Academies,Other Public Bodies,Cabot Learning Federation,855.08, 22-Mar-2022
878,Revenue,CAHD,Statemented Support Academies,Other Public Bodies,Cabot Learning Federation,554.13, 22-Mar-2022
879,Revenue,CAHD,Statemented Support Academies,Other Public Bodies,Cabot Learning Federation,742.77, 22-Mar-2022
880,Revenue,CAHD,Statemented Support Academies,Other Public Bodies,Cabot Learning Federation,778.14, 22-Mar-2022
881,Revenue,CAHD,Statemented Support Academies,Other Public Bodies,Cabot Learning Federation,1202.67, 22-Mar-2022
882,Revenue,CAHD,Statemented Support Academies,Other Public Bodies,Cabot Learning Federation,813.51, 22-Mar-2022
883,Revenue,CAHD,Schools Specific Grant Income,Other Public Bodies,Cabot Learning Federation,576.00, 04-Mar-2022
884,Revenue,CAHD,Schools Specific Grant Income,Other Public Bodies,Cabot Learning Federation,500.00, 09-Mar-2022
885,Revenue,CAHD,Schools Specific Grant Income,Other Public Bodies,Cabot Learning Federation,500.00, 09-Mar-2022
886,Revenue,CAHD,Schools Specific Grant Income,Other Public Bodies,Cabot Learning Federation,500.00, 09-Mar-2022
887,Revenue,CAHD,Schools Specific Grant Income,Other Public Bodies,Cabot Learning Federation,500.00, 09-Mar-2022
888,Revenue,CAHD,Schools Specific Grant Income,Other Public Bodies,Cabot Learning Federation,500.00, 09-Mar-2022
889,Revenue,CAHD,Schools Specific Grant Income,Other Public Bodies,Cabot Learning Federation,500.00, 09-Mar-2022
890,Revenue,CAHD,Schools Specific Grant Income,Other Public Bodies,Cabot Learning Federation,500.00, 09-Mar-2022
891,Revenue,CAHD,Statemented Support Payments to OLAs,Other L.A.s - General,Cabot Learning Federation,601.29, 21-Mar-2022
892,Revenue,CAHD,Statemented Support Academies,Other Public Bodies,Cabot Learning Federation,661.33, 22-Mar-2022
893,Revenue,CAHD,Statemented Support Academies,Other Public Bodies,Cabot Learning Federation,1131.84, 22-Mar-2022
894,Revenue,CAHD,Statemented Support Academies,Other Public Bodies,Cabot Learning Federation,1202.67, 22-Mar-2022
895,Revenue,CAHD,Statemented Support Academies,Other Public Bodies,Cabot Learning Federation,554.13, 22-Mar-2022
896,Revenue,CAHD,Statemented Support Academies,Other Public Bodies,Cabot Learning Federation,1028.08, 22-Mar-2022
897,Revenue,CAHD,Statemented Support Academies,Other Public Bodies,Cabot Learning Federation,1096.47, 22-Mar-2022
898,Revenue,CAHD,Statemented Support Academies,Other Public Bodies,Cabot Learning Federation,1429.42, 22-Mar-2022
899,Revenue,CAHD,Statemented Support Academies,Other Public Bodies,Cabot Learning Federation,730.98, 22-Mar-2022
900,Revenue,CAHD,Statemented Support Academies,Other Public Bodies,Cabot Learning Federation,680.42, 22-Mar-2022
901,Revenue,CAHD,Statemented Support Academies,Other Public Bodies,Cabot Learning Federation,1150.25, 22-Mar-2022
902,Revenue,CAHD,Statemented Support Academies,Other Public Bodies,Cabot Learning Federation,685.33, 22-Mar-2022
903,Revenue,CAHD,Statemented Support Academies,Other Public Bodies,Cabot Learning Federation,530.55, 22-Mar-2022
904,Revenue,CAHD,Statemented Support Payments to OLAs,Other L.A.s - General,Cabot Learning Federation,1062.33, 21-Mar-2022
905,Revenue,CAHD,Statemented Support Payments to OLAs,Other L.A.s - General,Cabot Learning Federation,809.75, 21-Mar-2022
906,Revenue,CAHD,Statemented Support Payments to OLAs,Other L.A.s - General,Cabot Learning Federation,888.33, 21-Mar-2022
907,Revenue,CAHD,Statemented Support Academies,Other Public Bodies,Cabot Learning Federation,577.50, 22-Mar-2022
908,Revenue,CAHD,Statemented Support Academies,Other Public Bodies,Cabot Learning Federation,1297.08, 22-Mar-2022
909,Revenue,CAHD,Statemented Support Academies,Other Public Bodies,Cabot Learning Federation,966.83, 22-Mar-2022
910,Revenue,CAHD,Statemented Support Academies,Other Public Bodies,Cabot Learning Federation,526.00, 22-Mar-2022
911,Revenue,CAHD,Statemented Support Academies,Other Public Bodies,Cabot Learning Federation,671.71, 22-Mar-2022
912,Revenue,CAHD,Schools Specific Grant Income,Other Public Bodies,Cabot Learning Federation,500.00, 09-Mar-2022
913,Revenue,CAHD,Schools Specific Grant Income,Other Public Bodies,Cabot Learning Federation,500.00, 09-Mar-2022
914,Revenue,CAHD,Statemented Support Payments to OLAs,Other L.A.s - General,Cabot Learning Federation,665.33, 21-Mar-2022
915,Revenue,CAHD,CSC - YOT Pooled Budget,Software Support & Maintenance,CACI Limited,8717.90, 02-Mar-2022
916,Revenue,CAHD,CSC - YOT Pooled Budget,Training Expenses,CACI Limited,4150.00, 09-Mar-2022
917,Revenue,CAHD,"Drugs, Alcohol and Sexual Health",Other Small Contracts,Cadbury Heath Healthcare,1610.00, 24-Mar-2022
918,Revenue,CAHD,Early Years High Needs Support,Other Private Contractors,Caerleon Childcare,515.70, 21-Mar-2022
919,Revenue,CAHD,Early Years Pupil Premium Grant,Preventative Assistance,Caerleon Childcare,572.40, 15-Mar-2022
920,Revenue,CAHD,EARLY YEARS DEPRIVATION PAYMENT,Preventative Assistance,Caerleon Childcare,647.76, 15-Mar-2022
921,Revenue,CAHD,South - Commissioned Services,Permanent Nursing,Caernarvon House,1371.43, 08-Mar-2022
922,Revenue,CAHD,South - Commissioned Services,Permanent Nursing,Caernarvon House,4915.20, 08-Mar-2022
923,Revenue,CAHD,South - Commissioned Services,Permanent Nursing,Caernarvon House,6360.64, 08-Mar-2022
924,Revenue,CAHD,South - Commissioned Services,Permanent Nursing,Caernarvon House,2960.00, 08-Mar-2022
925,Revenue,CAHD,South - Commissioned Services,Fees & Charges Income - General,Caernarvon House,-275.47, 08-Mar-2022
926,Revenue,CAHD,South - Commissioned Services,Fees & Charges Income - General,Caernarvon House,-1229.56, 08-Mar-2022
927,Revenue,CAHD,South - Commissioned Services,Fees & Charges Income - General,Caernarvon House,-750.24, 08-Mar-2022
928,Revenue,CAHD,North - Community based support,Permanent Nursing,Caernarvon House,4710.40, 08-Mar-2022
929,Revenue,CAHD,North - Community based support,Permanent Nursing,Caernarvon House,3339.08, 08-Mar-2022
930,Revenue,CAHD,North - Community based support,Fees & Charges Income - General,Caernarvon House,-608.80, 08-Mar-2022
931,Revenue,CAHD,North - Community based support,Fees & Charges Income - General,Caernarvon House,-1009.72, 08-Mar-2022
932,Revenue,CAHD,South - S117,Permanent Nursing,Caernarvon House,4915.20, 08-Mar-2022
933,Revenue,CAHD,North - S117,Permanent Nursing,Caernarvon House,3990.24, 08-Mar-2022
934,Revenue,CAHD,Post 16 High Needs Placements,Other Private Contractors,Candle Ltd,12357.00, 30-Mar-2022
935,Revenue,CAHD,Post 16 High Needs Placements,Other Private Contractors,Candle Ltd,6000.00, 30-Mar-2022
936,Revenue,CAHD,MH Purchasing - Younger,Permanent Residential,Canonbury Residential Home,3400.00, 08-Mar-2022
937,Revenue,CAHD,MH Purchasing - Younger,Fees & Charges Income - General,Canonbury Residential Home,-608.80, 08-Mar-2022
938,Revenue,CAHD,CSC - Agency Fostering,Foster Parent Allowances,Capstone Foster Care (South West) Limited,3160.08, 03-Mar-2022
939,Revenue,CAHD,CSC - Agency Fostering,Foster Parent Allowances,Capstone Foster Care (South West) Limited,3160.08, 03-Mar-2022
940,Revenue,CAHD,CSC - Agency Fostering,Foster Parent Allowances,Capstone Foster Care (South West) Limited,3316.04, 03-Mar-2022
941,Revenue,CAHD,CSC - Agency Fostering,Foster Parent Allowances,Capstone Foster Care (South West) Limited,3498.66, 31-Mar-2022
942,Revenue,CAHD,CSC - Agency Fostering,Foster Parent Allowances,Capstone Foster Care (South West) Limited,3498.66, 31-Mar-2022
943,Revenue,CAHD,CSC - Agency Fostering,Foster Parent Allowances,Capstone Foster Care (South West) Limited,3671.33, 31-Mar-2022
944,Revenue,CAHD,North - Community based support,Other Small Contracts,Care 1st Homecare,597.02, 01-Mar-2022
945,Revenue,CAHD,Central - Commissioned Services,Other Small Contracts,Care 1st Homecare,3523.25, 01-Mar-2022
946,Revenue,CAHD,North - Community based support,Other Small Contracts,Care 1st Homecare,597.02, 09-Mar-2022
947,Revenue,CAHD,Central - Commissioned Services,Other Small Contracts,Care 1st Homecare,3523.25, 09-Mar-2022
948,Revenue,CAHD,North - Community based support,Other Small Contracts,Care 1st Homecare,597.02, 16-Mar-2022
949,Revenue,CAHD,Central - Commissioned Services,Other Small Contracts,Care 1st Homecare,3523.25, 16-Mar-2022
950,Revenue,CAHD,North - Community based support,Other Small Contracts,Care 1st Homecare,597.02, 23-Mar-2022
951,Revenue,CAHD,Central - Commissioned Services,Other Small Contracts,Care 1st Homecare,3523.25, 23-Mar-2022
952,Revenue,CAHD,North - Community based support,Other Small Contracts,Care 1st Homecare,597.02, 30-Mar-2022
953,Revenue,CAHD,Central - Commissioned Services,Other Small Contracts,Care 1st Homecare,3523.25, 30-Mar-2022
954,Revenue,CAHD,Covid  - Workforce capacity,Grants to Voluntary Bodies,Care Futures,2726.75, 25-Mar-2022
955,Revenue,CAHD,South - Commissioned Services,Mentoring,Care Horizons,322.56, 08-Mar-2022
956,Revenue,CAHD,North - Community based support,Respite Care,Care Horizons,0.00, 08-Mar-2022
957,Revenue,CAHD,North - Community based support,Respite Care,Care Horizons,0.00, 08-Mar-2022
958,Revenue,CAHD,North - Community based support,Supported Living,Care Horizons,5560.28, 08-Mar-2022
959,Revenue,CAHD,North - Community based support,Supported Living,Care Horizons,5560.28, 08-Mar-2022
960,Revenue,CAHD,North - Community based support,Other Small Contracts,Care Horizons Limited,3479.19, 01-Mar-2022
961,Revenue,CAHD,Central - Commissioned Services,Other Small Contracts,Care Horizons Limited,4777.24, 01-Mar-2022
962,Revenue,CAHD,North - Community based support,Other Small Contracts,Care Horizons Limited,3479.19, 09-Mar-2022
963,Revenue,CAHD,Central - Commissioned Services,Other Small Contracts,Care Horizons Limited,4777.24, 09-Mar-2022
964,Revenue,CAHD,North - Community based support,Other Small Contracts,Care Horizons Limited,3479.19, 16-Mar-2022
965,Revenue,CAHD,Central - Commissioned Services,Other Small Contracts,Care Horizons Limited,4777.24, 16-Mar-2022
966,Revenue,CAHD,North - Community based support,Other Small Contracts,Care Horizons Limited,3479.19, 23-Mar-2022
967,Revenue,CAHD,Central - Commissioned Services,Other Small Contracts,Care Horizons Limited,4777.24, 23-Mar-2022
968,Revenue,CAHD,North - Community based support,Other Small Contracts,Care Horizons Limited,3479.19, 30-Mar-2022
969,Revenue,CAHD,Central - Commissioned Services,Other Small Contracts,Care Horizons Limited,4777.24, 30-Mar-2022
970,Revenue,CAHD,Covid - ASC - Infection Control,Grants to Voluntary Bodies,Care Horizons Limited,1350.05, 25-Mar-2022
971,Revenue,CAHD,Central - Commissioned Services,Other Small Contracts,Care Horizons Limited,665.28, 10-Mar-2022
972,Revenue,CAHD,ASC Rapid Testing Fund,Grants to Voluntary Bodies,Care Horizons Limited,990.36, 25-Mar-2022
973,Revenue,CAHD,Covid  - Workforce capacity,Grants to Voluntary Bodies,Care Horizons Limited,1613.79, 22-Mar-2022
974,Revenue,CAHD,Covid  - Workforce capacity,Grants to Voluntary Bodies,Care Horizons Limited,2427.99, 30-Mar-2022
975,Revenue,CAHD,Alexandra Way,Licences,Care Quality Commission,8021.00, 24-Mar-2022
976,Revenue,CAHD,South - Commissioned Services,Other Small Contracts,Care Unite Ltd t/a Home Instead Senior Care,825.44, 01-Mar-2022
977,Revenue,CAHD,South - Commissioned Services,Other Small Contracts,Care Unite Ltd t/a Home Instead Senior Care,1503.48, 07-Mar-2022
978,Revenue,CAHD,South - Commissioned Services,Other Small Contracts,Care Unite Ltd t/a Home Instead Senior Care,619.08, 01-Mar-2022
979,Revenue,CAHD,Covid - ASC - Infection Control,Grants to Voluntary Bodies,Care Unite Ltd t/a Home Instead Senior Care,1000.00, 29-Mar-2022
980,Revenue,CAHD,Covid  - Workforce capacity,Grants to Voluntary Bodies,Care Unite Ltd t/a Home Instead Senior Care,1725.09, 22-Mar-2022
981,Revenue,CAHD,Covid  - Workforce capacity,Grants to Voluntary Bodies,Care Unite Ltd t/a Home Instead Senior Care,2427.99, 24-Mar-2022
982,Revenue,CAHD,Central - Commissioned Services,Other Small Contracts,Care Unite Ltd t/a Home Instead Senior Care,737.00, 24-Mar-2022
983,Revenue,CAHD,South - Commissioned Services,Other Small Contracts,Care Unite Ltd t/a Home Instead Senior Care,825.44, 24-Mar-2022
984,Revenue,CAHD,South - Commissioned Services,Other Small Contracts,Care Unite Ltd t/a Home Instead Senior Care,619.08, 24-Mar-2022
985,Revenue,CAHD,South - Commissioned Services,Other Small Contracts,Care Unite Ltd t/a Home Instead Senior Care,1525.59, 24-Mar-2022
986,Revenue,CAHD,Covid  - Workforce capacity,Grants to Voluntary Bodies,Caremark (Bristol & South Gloucestershire),500.83, 22-Mar-2022
987,Revenue,CAHD,Covid  - Workforce capacity,Grants to Voluntary Bodies,Caremark (Bristol & South Gloucestershire),662.18, 24-Mar-2022
988,Revenue,CAHD,Covid - ASC - Infection Control,Grants to Voluntary Bodies,Carepride Ltd,655.00, 29-Mar-2022
989,Revenue,CAHD,Covid  - Workforce capacity,Grants to Voluntary Bodies,Carepride Ltd,2615.45, 22-Mar-2022
990,Revenue,CAHD,Covid  - Workforce capacity,Grants to Voluntary Bodies,Carepride Ltd,3384.47, 24-Mar-2022
991,Revenue,CAHD,Covid  - Workforce capacity,Grants to Voluntary Bodies,Caring Comes 1st Limited,1613.79, 22-Mar-2022
992,Revenue,CAHD,Covid  - Workforce capacity,Grants to Voluntary Bodies,Caring Comes 1st Limited,2575.14, 24-Mar-2022
993,Revenue,CAHD,CSC - Care Leavers Independent Living,Independent Living,Caring for Communities and People,4118.80, 11-Mar-2022
994,Revenue,CAHD,CSC - Asylum Seekers - Unaccompanied,Adults - Family Support,Caring for Communities and People,854.60, 11-Mar-2022
995,Revenue,CAHD,Supporting People Programme,Grants to Voluntary Bodies,Caring for Communities and People,12256.75, 04-Mar-2022
996,Revenue,CAHD,School Improvement and Support,Consultants Fees,Carter Leadership Consultancy,450.00, 16-Mar-2022
997,Revenue,CAHD,Statemented Support Academies,Other Public Bodies,Castle School Education Trust,530.55, 22-Mar-2022
998,Revenue,CAHD,Statemented Support Academies,Other Public Bodies,Castle School Education Trust,778.14, 22-Mar-2022
999,Revenue,CAHD,Statemented Support Academies,Other Public Bodies,Castle School Education Trust,821.50, 22-Mar-2022
1000,Revenue,CAHD,Statemented Support Academies,Other Public Bodies,Castle School Education Trust,947.08, 22-Mar-2022
1001,Revenue,CAHD,Statemented Support Academies,Other Public Bodies,Castle School Education Trust,577.71, 22-Mar-2022
1002,Revenue,CAHD,Statemented Support Academies,Other Public Bodies,Castle School Education Trust,505.08, 22-Mar-2022
1003,Revenue,CAHD,Statemented Support Academies,Other Public Bodies,Castle School Education Trust,672.03, 22-Mar-2022
1004,Revenue,CAHD,Statemented Support Academies,Other Public Bodies,Castle School Education Trust,636.66, 22-Mar-2022
1005,Revenue,CAHD,Statemented Support Academies,Other Public Bodies,Castle School Education Trust,554.13, 22-Mar-2022
1006,Revenue,CAHD,Statemented Support Academies,Other Public Bodies,Castle School Education Trust,543.42, 22-Mar-2022
1007,Revenue,CAHD,Statemented Support Academies,Other Public Bodies,Castle School Education Trust,954.99, 22-Mar-2022
1008,Revenue,CAHD,Statemented Support Academies,Other Public Bodies,Castle School Education Trust,577.71, 22-Mar-2022
1009,Revenue,CAHD,Statemented Support Academies,Other Public Bodies,Castle School Education Trust,1248.33, 22-Mar-2022
1010,Revenue,CAHD,Statemented Support Academies,Other Public Bodies,Castle School Education Trust,1190.79, 22-Mar-2022
1011,Revenue,CAHD,Statemented Support Academies,Other Public Bodies,Castle School Education Trust,691.92, 22-Mar-2022
1012,Revenue,CAHD,Statemented Support Academies,Other Public Bodies,Castle School Education Trust,1071.67, 22-Mar-2022
1013,Revenue,CAHD,Statemented Support Academies,Other Public Bodies,Castle School Education Trust,1061.10, 22-Mar-2022
1014,Revenue,CAHD,Statemented Support Academies,Other Public Bodies,Castle School Education Trust,577.71, 22-Mar-2022
1015,Revenue,CAHD,Statemented Support Academies,Other Public Bodies,Castle School Education Trust,1143.63, 22-Mar-2022
1016,Revenue,CAHD,Statemented Support Academies,Other Public Bodies,Castle School Education Trust,943.33, 22-Mar-2022
1017,Revenue,CAHD,Statemented Support Academies,Other Public Bodies,Castle School Education Trust,754.25, 22-Mar-2022
1018,Revenue,CAHD,Statemented Support Academies,Other Public Bodies,Castle School Education Trust,906.75, 22-Mar-2022
1019,Revenue,CAHD,Statemented Support Academies,Other Public Bodies,Castle School Education Trust,1202.67, 22-Mar-2022
1020,Revenue,CAHD,Statemented Support Academies,Other Public Bodies,Castle School Education Trust,1485.54, 22-Mar-2022
1021,Revenue,CAHD,Statemented Support Academies,Other Public Bodies,Castle School Education Trust,1177.50, 22-Mar-2022
1022,Revenue,CAHD,Statemented Support Academies,Other Public Bodies,Castle School Education Trust,888.75, 22-Mar-2022
1023,Revenue,CAHD,Statemented Support Academies,Other Public Bodies,Castle School Education Trust,1261.75, 22-Mar-2022
1024,Revenue,CAHD,Statemented Support Academies,Other Public Bodies,Castle School Education Trust,1202.92, 22-Mar-2022
1025,Revenue,CAHD,Statemented Support Academies,Other Public Bodies,Castle School Education Trust,896.08, 22-Mar-2022
1026,Revenue,CAHD,Statemented Support Academies,Other Public Bodies,Castle School Education Trust,1244.58, 22-Mar-2022
1027,Revenue,CAHD,Statemented Support Academies,Other Public Bodies,Castle School Education Trust,908.00, 22-Mar-2022
1028,Revenue,CAHD,Statemented Support Academies,Other Public Bodies,Castle School Education Trust,801.92, 22-Mar-2022
1029,Revenue,CAHD,Statemented Support Academies,Other Public Bodies,Castle School Education Trust,943.17, 22-Mar-2022
1030,Revenue,CAHD,Statemented Support Academies,Other Public Bodies,Castle School Education Trust,1267.50, 22-Mar-2022
1031,Revenue,CAHD,Academy Resource Base Funding,Other Public Bodies,Castle School Education Trust,3397.28, 21-Mar-2022
1032,Revenue,CAHD,Academy Resource Base Funding,Other Public Bodies,Castle School Education Trust,1702.97, 21-Mar-2022
1033,Revenue,CAHD,Academy Resource Base Funding,Other Public Bodies,Castle School Education Trust,2513.88, 21-Mar-2022
1034,Revenue,CAHD,Academy Resource Base Funding,Other Public Bodies,Castle School Education Trust,1702.97, 21-Mar-2022
1035,Revenue,CAHD,Academy Resource Base Funding,Other Public Bodies,Castle School Education Trust,1702.97, 21-Mar-2022
1036,Revenue,CAHD,Academy Resource Base Funding,Other Public Bodies,Castle School Education Trust,1702.97, 21-Mar-2022
1037,Revenue,CAHD,Academy Resource Base Funding,Other Public Bodies,Castle School Education Trust,2513.88, 21-Mar-2022
1038,Revenue,CAHD,Academy Resource Base Funding,Other Public Bodies,Castle School Education Trust,2513.88, 21-Mar-2022
1039,Revenue,CAHD,Academy Resource Base Funding,Other Public Bodies,Castle School Education Trust,2513.88, 21-Mar-2022
1040,Revenue,CAHD,Academy Resource Base Funding,Other Public Bodies,Castle School Education Trust,1702.97, 21-Mar-2022
1041,Revenue,CAHD,Academy Resource Base Funding,Other Public Bodies,Castle School Education Trust,1702.97, 21-Mar-2022
1042,Revenue,CAHD,Academy Resource Base Funding,Other Public Bodies,Castle School Education Trust,1702.97, 21-Mar-2022
1043,Revenue,CAHD,Academy Resource Base Funding,Other Public Bodies,Castle School Education Trust,1702.97, 21-Mar-2022
1044,Revenue,CAHD,Academy Resource Base Funding,Other Public Bodies,Castle School Education Trust,1702.97, 21-Mar-2022
1045,Revenue,CAHD,Academy Resource Base Funding,Other Public Bodies,Castle School Education Trust,1702.97, 21-Mar-2022
1046,Revenue,CAHD,Academy Resource Base Funding,Other Public Bodies,Castle School Education Trust,2189.53, 21-Mar-2022
1047,Revenue,CAHD,Schools Specific Grant Income,Other Public Bodies,Castle School Education Trust,500.00, 09-Mar-2022
1048,Revenue,CAHD,Statemented Support Academies,Other Public Bodies,Castle School Education Trust,672.03, 22-Mar-2022
1049,Revenue,CAHD,Statemented Support Academies,Other Public Bodies,Castle School Education Trust,822.50, 22-Mar-2022
1050,Revenue,CAHD,Statemented Support Academies,Other Public Bodies,Castle School Education Trust,872.46, 22-Mar-2022
1051,Revenue,CAHD,Statemented Support Academies,Other Public Bodies,Castle School Education Trust,848.88, 22-Mar-2022
1052,Revenue,CAHD,Statemented Support Academies,Other Public Bodies,Castle School Education Trust,541.58, 22-Mar-2022
1053,Revenue,CAHD,Statemented Support Academies,Other Public Bodies,Castle School Education Trust,723.17, 22-Mar-2022
1054,Revenue,CAHD,Statemented Support Academies,Other Public Bodies,Castle School Education Trust,956.00, 22-Mar-2022
1055,Revenue,CAHD,Statemented Support Academies,Other Public Bodies,Castle School Education Trust,560.17, 22-Mar-2022
1056,Revenue,CAHD,Schools Specific Grant Income,Other Public Bodies,Castle School Education Trust,500.00, 09-Mar-2022
1057,Revenue,CAHD,Schools Specific Grant Income,Other Public Bodies,Castle School Education Trust,500.00, 09-Mar-2022
1058,Revenue,CAHD,Schools Specific Grant Income,Other Public Bodies,Castle School Education Trust,500.00, 09-Mar-2022
1059,Revenue,CAHD,Support for Improving Educational Outcomes,Other Public Bodies,Castle School Education Trust,5000.00, 25-Mar-2022
1060,Revenue,CAHD,Statemented Support Academies,Other Public Bodies,Castle School Education Trust,1202.67, 22-Mar-2022
1061,Revenue,CAHD,Statemented Support Academies,Other Public Bodies,Castle School Education Trust,630.58, 22-Mar-2022
1062,Revenue,CAHD,Statemented Support Academies,Other Public Bodies,Castle School Education Trust,778.14, 22-Mar-2022
1063,Revenue,CAHD,Statemented Support Academies,Other Public Bodies,Castle School Education Trust,941.58, 22-Mar-2022
1064,Revenue,CAHD,Schools Specific Grant Income,Other Public Bodies,Castle School Education Trust,500.00, 09-Mar-2022
1065,Revenue,CAHD,Schools Specific Grant Income,Other Public Bodies,Castle School Education Trust,500.00, 09-Mar-2022
1066,Revenue,CAHD,Schools Specific Grant Income,Other Public Bodies,Castle School Education Trust,500.00, 09-Mar-2022
1067,Revenue,CAHD,Schools Specific Grant Income,Other Public Bodies,Castle School Education Trust,500.00, 09-Mar-2022
1068,Revenue,CAHD,Statemented Support Academies,Other Public Bodies,Castle School Educational Academy Trust,1129.92, 22-Mar-2022
1069,Revenue,CAHD,Statemented Support Academies,Other Public Bodies,Castle School Educational Academy Trust,854.00, 22-Mar-2022
1070,Revenue,CAHD,Statemented Support Academies,Other Public Bodies,Castle School Educational Academy Trust,2005.17, 22-Mar-2022
1071,Revenue,CAHD,Statemented Support Academies,Other Public Bodies,Castle School Educational Academy Trust,940.75, 22-Mar-2022
1072,Revenue,CAHD,Statemented Support Academies,Other Public Bodies,Castle School Educational Academy Trust,790.58, 22-Mar-2022
1073,Revenue,CAHD,Statemented Support Academies,Other Public Bodies,Castle School Educational Academy Trust,508.67, 22-Mar-2022
1074,Revenue,CAHD,Statemented Support Academies,Other Public Bodies,Castle School Educational Academy Trust,1148.20, 22-Mar-2022
1075,Revenue,CAHD,Statemented Support Academies,Other Public Bodies,Castle School Educational Academy Trust,1097.25, 22-Mar-2022
1076,Revenue,CAHD,Statemented Support Academies,Other Public Bodies,Castle School Educational Academy Trust,580.67, 22-Mar-2022
1077,Revenue,CAHD,Statemented Support Academies,Other Public Bodies,Castle School Educational Academy Trust,925.08, 22-Mar-2022
1078,Revenue,CAHD,Statemented Support Academies,Other Public Bodies,Castle School Educational Academy Trust,652.58, 22-Mar-2022
1079,Revenue,CAHD,Schools Specific Grant Income,Other Public Bodies,Castle School Educational Academy Trust,500.00, 09-Mar-2022
1080,Revenue,CAHD,Schools Specific Grant Income,Other Public Bodies,Castle School Educational Academy Trust,500.00, 09-Mar-2022
1081,Revenue,CAHD,CSC - Legal Fees,Legal Fees,Castlebridge SPV Limited,525.00, 16-Mar-2022
1082,Revenue,CAHD,CSC - Legal Fees,Legal Fees,Cater Walsh Reporting Limited,699.75, 11-Mar-2022
1083,Revenue,CAHD,Social Lettings Agency,Rent,Individual,658.30, 01-Mar-2022
1084,Revenue,CAHD,Social Lettings Agency,Fees & Charges Income - General,Individual,-52.66, 01-Mar-2022
1085,Revenue,CAHD,18-25 Year Olds,Day Care / Social Activities,Causeway House,4606.60, 08-Mar-2022
1086,Revenue,CAHD,Central - Commissioned Services,Day Care / Social Activities,Causeway House,3811.00, 08-Mar-2022
1087,Revenue,CAHD,Central - Commissioned Services,Day Care / Social Activities,Causeway House,4060.80, 08-Mar-2022
1088,Revenue,CAHD,South - Commissioned Services,Day Care / Social Activities,Causeway House,5481.60, 08-Mar-2022
1089,Revenue,CAHD,North - Community based support,Day Care / Social Activities,Causeway House,5015.40, 08-Mar-2022
1090,Revenue,CAHD,North - Community based support,Day Care / Social Activities,Causeway House,593.04, 08-Mar-2022
1091,Revenue,CAHD,North - Community based support,Day Care / Social Activities,Causeway House,3366.40, 08-Mar-2022
1092,Revenue,CAHD,North - Community based support,Day Care / Social Activities,Causeway House,3286.00, 08-Mar-2022
1093,Revenue,CAHD,North - S117,Permanent Residential,Cavendish Care Home,2340.00, 08-Mar-2022
1094,Revenue,CAHD,Jointly Funded H&SC Packages,Permanent Residential,Cavendish Care Home,1560.00, 08-Mar-2022
1095,Revenue,CAHD,Central - Commissioned Services,Permanent Nursing,Cedar Court Care Home,4000.00, 08-Mar-2022
1096,Revenue,CAHD,Central - Commissioned Services,Fees & Charges Income - General,Cedar Court Care Home,-391.92, 08-Mar-2022
1097,Revenue,CAHD,Community Support - Central,Preventative Assistance,Cedarleigh Ltd,15900.00, 02-Mar-2022
1098,Revenue,CAHD,CSC - Care Leavers Independent Living,Independent Living,Centrepeacehomes Ltd,2960.00, 01-Mar-2022
1099,Revenue,CAHD,CSC - Care Leavers Independent Living,Independent Living,Centrepeacehomes Ltd,2850.00, 01-Mar-2022
1100,Revenue,CAHD,CSC - Care Leavers Independent Living,Independent Living,Centrepeacehomes Ltd,2850.00, 04-Mar-2022
1101,Revenue,CAHD,CSC - Care Leavers Independent Living,Independent Living,Centrepeacehomes Ltd,2960.00, 11-Mar-2022
1102,Revenue,CAHD,CSC - Care Leavers Independent Living,Independent Living,Centrepeacehomes Ltd,11400.00, 25-Mar-2022
1103,Revenue,CAHD,CSC - Care Leavers Independent Living,Independent Living,Centrepeacehomes Ltd,2960.00, 23-Mar-2022
1104,Revenue,CAHD,South - Commissioned Services,Permanent Residential,Challenge House,2894.80, 08-Mar-2022
1105,Revenue,CAHD,South - Commissioned Services,Fees & Charges Income - General,Challenge House,-1571.60, 08-Mar-2022
1106,Revenue,CAHD,Central - Commissioned Services,Permanent Residential,Challenge House,2452.44, 08-Mar-2022
1107,Revenue,CAHD,Central - Commissioned Services,Permanent Residential,Challenge House,2819.84, 08-Mar-2022
1108,Revenue,CAHD,Central - Commissioned Services,Fees & Charges Income - General,Challenge House,210.98, 08-Mar-2022
1109,Revenue,CAHD,Central - Commissioned Services,Fees & Charges Income - General,Challenge House,-811.36, 08-Mar-2022
1110,Revenue,CAHD,North - Community based support,Permanent Residential,Challenge House,2314.96, 08-Mar-2022
1111,Revenue,CAHD,North - Community based support,Permanent Residential,Challenge House,2902.76, 08-Mar-2022
1112,Revenue,CAHD,North - Community based support,Fees & Charges Income - General,Challenge House,-590.04, 08-Mar-2022
1113,Revenue,CAHD,North - Community based support,Permanent Residential,Challenge House,2894.76, 08-Mar-2022
1114,Revenue,CAHD,North - Community based support,Fees & Charges Income - General,Challenge House,-1025.88, 08-Mar-2022
1115,Revenue,CAHD,North - Community based support,Permanent Nursing,Challenge House,2505.52, 08-Mar-2022
1116,Revenue,CAHD,North - Community based support,Permanent Nursing,Challenge House,3205.48, 08-Mar-2022
1117,Revenue,CAHD,North - Community based support,Fees & Charges Income - General,Challenge House,-608.80, 08-Mar-2022
1118,Revenue,CAHD,North - Community based support,Fees & Charges Income - General,Challenge House,-608.80, 08-Mar-2022
1119,Revenue,CAHD,North - S117,Permanent Nursing,Challenge House,2505.52, 08-Mar-2022
1120,Revenue,CAHD,South - Commissioned Services,Permanent Nursing,Challenge House,958.00, 08-Mar-2022
1121,Revenue,CAHD,South Glos Users in South Glos Homes,Permanent Nursing,Challenge House,750.40, 08-Mar-2022
1122,Revenue,CAHD,South Glos Users in South Glos Homes,Permanent Nursing,Challenge House,750.40, 08-Mar-2022
1123,Revenue,CAHD,South Glos Users in South Glos Homes,Permanent Nursing,Challenge House,750.40, 08-Mar-2022
1124,Revenue,CAHD,South Glos Users in South Glos Homes,Permanent Nursing,Challenge House,750.40, 08-Mar-2022
1125,Revenue,CAHD,South Glos Users in South Glos Homes,Permanent Nursing,Challenge House,750.40, 08-Mar-2022
1126,Revenue,CAHD,South Glos Users in South Glos Homes,Permanent Nursing,Challenge House,750.40, 08-Mar-2022
1127,Revenue,CAHD,South Glos Users in South Glos Homes,Permanent Nursing,Challenge House,750.40, 08-Mar-2022
1128,Revenue,CAHD,South Glos Users in South Glos Homes,Permanent Nursing,Challenge House,750.40, 08-Mar-2022
1129,Revenue,CAHD,South Glos Users in South Glos Homes,Permanent Nursing,Challenge House,750.40, 08-Mar-2022
1130,Revenue,CAHD,South Glos Users in South Glos Homes,Permanent Nursing,Challenge House,750.40, 08-Mar-2022
1131,Revenue,CAHD,South Glos Users in South Glos Homes,Permanent Nursing,Challenge House,750.40, 08-Mar-2022
1132,Revenue,CAHD,South Glos Users in South Glos Homes,Permanent Nursing,Challenge House,750.40, 08-Mar-2022
1133,Revenue,CAHD,South Glos Users in South Glos Homes,Permanent Nursing,Challenge House,750.40, 08-Mar-2022
1134,Revenue,CAHD,South Glos Users in South Glos Homes,Permanent Nursing,Challenge House,750.40, 08-Mar-2022
1135,Revenue,CAHD,South Glos Users in South Glos Homes,Permanent Nursing,Challenge House,750.40, 08-Mar-2022
1136,Revenue,CAHD,South Glos Users in South Glos Homes,Permanent Nursing,Challenge House,750.40, 08-Mar-2022
1137,Revenue,CAHD,South Glos Users in South Glos Homes,Permanent Nursing,Challenge House,750.40, 08-Mar-2022
1138,Revenue,CAHD,South - Commissioned Services,Permanent Residential,Challenge House,3400.00, 08-Mar-2022
1139,Revenue,CAHD,South - Commissioned Services,Permanent Residential,Challenge House,3400.00, 08-Mar-2022
1140,Revenue,CAHD,South - Commissioned Services,Permanent Residential,Challenge House,3600.00, 08-Mar-2022
1141,Revenue,CAHD,South - Commissioned Services,Permanent Nursing,Challenge House,2051.56, 08-Mar-2022
1142,Revenue,CAHD,South - Commissioned Services,Permanent Nursing,Challenge House,3400.00, 08-Mar-2022
1143,Revenue,CAHD,South - Commissioned Services,Fees & Charges Income - General,Challenge House,-1909.36, 08-Mar-2022
1144,Revenue,CAHD,South - Commissioned Services,Fees & Charges Income - General,Challenge House,-599.96, 08-Mar-2022
1145,Revenue,CAHD,South - Commissioned Services,Fees & Charges Income - General,Challenge House,-608.80, 08-Mar-2022
1146,Revenue,CAHD,South - Commissioned Services,Fees & Charges Income - General,Challenge House,-619.68, 08-Mar-2022
1147,Revenue,CAHD,North - Community based support,Permanent Residential,Challenge House,3193.00, 08-Mar-2022
1148,Revenue,CAHD,North - Community based support,Permanent Residential,Challenge House,3200.00, 08-Mar-2022
1149,Revenue,CAHD,North - Community based support,Permanent Residential,Challenge House,3500.00, 08-Mar-2022
1150,Revenue,CAHD,North - Community based support,Permanent Residential,Challenge House,3478.20, 08-Mar-2022
1151,Revenue,CAHD,North - Community based support,Permanent Residential,Challenge House,3500.00, 08-Mar-2022
1152,Revenue,CAHD,North - Community based support,Permanent Residential,Challenge House,3800.00, 08-Mar-2022
1153,Revenue,CAHD,North - Community based support,Respite Planned - Residential,Challenge House,5100.00, 08-Mar-2022
1154,Revenue,CAHD,North - Community based support,Respite Planned - Residential,Challenge House,2550.00, 08-Mar-2022
1155,Revenue,CAHD,North - Community based support,Respite Planned - Residential,Challenge House,3400.00, 08-Mar-2022
1156,Revenue,CAHD,North - Community based support,Respite Planned - Residential,Challenge House,5100.00, 08-Mar-2022
1157,Revenue,CAHD,North - Community based support,Respite Planned - Residential,Challenge House,5828.57, 08-Mar-2022
1158,Revenue,CAHD,North - Community based support,Permanent Nursing,Challenge House,3478.20, 08-Mar-2022
1159,Revenue,CAHD,North - Community based support,Permanent Nursing,Challenge House,3347.92, 08-Mar-2022
1160,Revenue,CAHD,North - Community based support,Permanent Nursing,Challenge House,3400.00, 08-Mar-2022
1161,Revenue,CAHD,North - Community based support,Permanent Nursing,Challenge House,2950.40, 08-Mar-2022
1162,Revenue,CAHD,North - Community based support,Permanent Nursing,Challenge House,3318.20, 08-Mar-2022
1163,Revenue,CAHD,North - Community based support,Fees & Charges Income - General,Challenge House,-725.40, 08-Mar-2022
1164,Revenue,CAHD,North - Community based support,Fees & Charges Income - General,Challenge House,192.93, 08-Mar-2022
1165,Revenue,CAHD,North - Community based support,Fees & Charges Income - General,Challenge House,-713.56, 08-Mar-2022
1166,Revenue,CAHD,North - Community based support,Fees & Charges Income - General,Challenge House,-1785.20, 08-Mar-2022
1167,Revenue,CAHD,North - Community based support,Fees & Charges Income - General,Challenge House,-3478.20, 08-Mar-2022
1168,Revenue,CAHD,North - Community based support,Fees & Charges Income - General,Challenge House,-1101.92, 08-Mar-2022
1169,Revenue,CAHD,North - Community based support,Fees & Charges Income - General,Challenge House,-608.80, 08-Mar-2022
1170,Revenue,CAHD,North - Community based support,Fees & Charges Income - General,Challenge House,-1008.72, 08-Mar-2022
1171,Revenue,CAHD,North - Community based support,Fees & Charges Income - General,Challenge House,-728.80, 08-Mar-2022
1172,Revenue,CAHD,North - Community based support,Fees & Charges Income - General,Challenge House,-893.12, 08-Mar-2022
1173,Revenue,CAHD,South - Commissioned Services,Respite Planned - Nursing,Challenge House,12600.00, 08-Mar-2022
1174,Revenue,CAHD,Covid - ASC - Infection Control,Grants to Voluntary Bodies,Challenge House,2750.00, 29-Mar-2022
1175,Revenue,CAHD,Covid  - Workforce capacity,Grants to Voluntary Bodies,Challenge House,1725.09, 28-Mar-2022
1176,Revenue,CAHD,Covid  - Workforce capacity,Grants to Voluntary Bodies,Challenge House,2280.84, 24-Mar-2022
1177,Revenue,CAHD,Central - Commissioned Services,Permanent Nursing,Challenge House,2490.00, 08-Mar-2022
1178,Revenue,CAHD,Central - Commissioned Services,Permanent Nursing,Challenge House,3200.00, 08-Mar-2022
1179,Revenue,CAHD,Central - Commissioned Services,Fees & Charges Income - General,Challenge House,-2088.52, 08-Mar-2022
1180,Revenue,CAHD,Central - Commissioned Services,Fees & Charges Income - General,Challenge House,-957.64, 08-Mar-2022
1181,Revenue,CAHD,North - Community based support,Respite Care,Challenge House,0.00, 08-Mar-2022
1182,Revenue,CAHD,North - Community based support,Permanent Residential,Challenge House,3136.52, 08-Mar-2022
1183,Revenue,CAHD,North - Community based support,Respite Planned - Residential,Challenge House,1080.00, 08-Mar-2022
1184,Revenue,CAHD,KS2 Moderation,Other Public Bodies,Chandag Infants School,1200.00, 11-Mar-2022
1185,Revenue,CAHD,CSC - Age Related Allowances,Foster Parent Allowances,Individual,173.00, 11-Mar-2022
1186,Revenue,CAHD,CSC - Professional Fees Foster Carers,Band 1 Foster Care,Individual,390.00, 11-Mar-2022
1187,Revenue,CAHD,CSC - Professional Fees Foster Carers,Therapeutic Fostering Fee,Individual,577.00, 11-Mar-2022
1188,Revenue,CAHD,CSC - Age Related Allowances,Foster Parent Allowances,Individual,173.00, 18-Mar-2022
1189,Revenue,CAHD,CSC - Professional Fees Foster Carers,Band 1 Foster Care,Individual,390.00, 18-Mar-2022
1190,Revenue,CAHD,CSC - Professional Fees Foster Carers,Therapeutic Fostering Fee,Individual,577.00, 18-Mar-2022
1191,Revenue,CAHD,CSC - Age Related Allowances,Foster Parent Allowances,Individual,173.00, 25-Mar-2022
1192,Revenue,CAHD,CSC - Professional Fees Foster Carers,Band 1 Foster Care,Individual,390.00, 25-Mar-2022
1193,Revenue,CAHD,CSC - Professional Fees Foster Carers,Therapeutic Fostering Fee,Individual,577.00, 25-Mar-2022
1194,Revenue,CAHD,Training - Adult Services,Training Expenses,Individual,600.00, 02-Mar-2022
1195,Revenue,CAHD,Schools Specific Grant Income,Other Public Bodies,Charlton Wood Primary Academy,500.00, 09-Mar-2022
1196,Revenue,CAHD,Statemented Support Academies,Other Public Bodies,Charlton Wood Primary Academy,1202.67, 22-Mar-2022
1197,Revenue,CAHD,Statemented Support Academies,Other Public Bodies,Charlton Wood Primary Academy,702.17, 22-Mar-2022
1198,Revenue,CAHD,Statemented Support Academies,Other Public Bodies,Charlton Wood Primary Academy,1202.67, 22-Mar-2022
1199,Revenue,CAHD,North - Community based support,Other Small Contracts,Cherish Able Care Limited,647.23, 01-Mar-2022
1200,Revenue,CAHD,South - Commissioned Services,Other Small Contracts,Cherish Able Care Limited,8956.77, 01-Mar-2022
1201,Revenue,CAHD,Central - Commissioned Services,Other Small Contracts,Cherish Able Care Limited,636.99, 01-Mar-2022
1202,Revenue,CAHD,North - Community based support,Other Small Contracts,Cherish Able Care Limited,647.23, 09-Mar-2022
1203,Revenue,CAHD,South - Commissioned Services,Other Small Contracts,Cherish Able Care Limited,8956.77, 09-Mar-2022
1204,Revenue,CAHD,Central - Commissioned Services,Other Small Contracts,Cherish Able Care Limited,636.99, 09-Mar-2022
1205,Revenue,CAHD,North - Community based support,Other Small Contracts,Cherish Able Care Limited,647.23, 16-Mar-2022
1206,Revenue,CAHD,South - Commissioned Services,Other Small Contracts,Cherish Able Care Limited,8956.77, 16-Mar-2022
1207,Revenue,CAHD,Central - Commissioned Services,Other Small Contracts,Cherish Able Care Limited,636.99, 16-Mar-2022
1208,Revenue,CAHD,North - Community based support,Other Small Contracts,Cherish Able Care Limited,647.23, 23-Mar-2022
1209,Revenue,CAHD,South - Commissioned Services,Other Small Contracts,Cherish Able Care Limited,8956.77, 23-Mar-2022
1210,Revenue,CAHD,Central - Commissioned Services,Other Small Contracts,Cherish Able Care Limited,636.99, 23-Mar-2022
1211,Revenue,CAHD,North - Community based support,Other Small Contracts,Cherish Able Care Limited,647.23, 30-Mar-2022
1212,Revenue,CAHD,South - Commissioned Services,Other Small Contracts,Cherish Able Care Limited,8956.77, 30-Mar-2022
1213,Revenue,CAHD,Central - Commissioned Services,Other Small Contracts,Cherish Able Care Limited,636.99, 30-Mar-2022
1214,Revenue,CAHD,Covid - ASC - Infection Control,Grants to Voluntary Bodies,Cherish Able Care Limited,1417.55, 25-Mar-2022
1215,Revenue,CAHD,ASC Rapid Testing Fund,Grants to Voluntary Bodies,Cherish Able Care Limited,1039.87, 25-Mar-2022
1216,Revenue,CAHD,Covid  - Workforce capacity,Grants to Voluntary Bodies,Cherish Able Care Limited,6695.37, 07-Mar-2022
1217,Revenue,CAHD,South - Commissioned Services,Other Small Contracts,Cherry Orchards,6639.36, 14-Mar-2022
1218,Revenue,CAHD,18-25 Year Olds,Respite Care,Cherry Orchards,0.00, 08-Mar-2022
1219,Revenue,CAHD,18-25 Year Olds,Supported Living,Cherry Orchards,2077.24, 08-Mar-2022
1220,Revenue,CAHD,Central - Commissioned Services,Respite Care,Cherry Orchards,0.00, 08-Mar-2022
1221,Revenue,CAHD,Central - Commissioned Services,Supported Living,Cherry Orchards,2367.92, 08-Mar-2022
1222,Revenue,CAHD,South - Commissioned Services,Respite Care,Cherry Orchards,0.00, 08-Mar-2022
1223,Revenue,CAHD,South - Commissioned Services,Respite Care,Cherry Orchards,0.00, 08-Mar-2022
1224,Revenue,CAHD,South - Commissioned Services,Supported Living,Cherry Orchards,1049.08, 08-Mar-2022
1225,Revenue,CAHD,South - Commissioned Services,Supported Living,Cherry Orchards,1938.52, 08-Mar-2022
1226,Revenue,CAHD,North - Community based support,Respite Care,Cherry Orchards,0.00, 08-Mar-2022
1227,Revenue,CAHD,North - Community based support,Respite Care,Cherry Orchards,0.00, 08-Mar-2022
1228,Revenue,CAHD,North - Community based support,Supported Living,Cherry Orchards,1066.96, 08-Mar-2022
1229,Revenue,CAHD,North - Community based support,Supported Living,Cherry Orchards,1938.52, 08-Mar-2022
1230,Revenue,CAHD,Younger MH non-res purchasing,Respite Care,Cherry Orchards,0.00, 08-Mar-2022
1231,Revenue,CAHD,Younger MH non-res purchasing,Supported Living,Cherry Orchards,1958.12, 08-Mar-2022
1232,Revenue,CAHD,18-25 Year Olds,Supported Living,Cherry Orchards,1590.68, 30-Mar-2022
1233,Revenue,CAHD,South - Commissioned Services,Supported Living,Cherry Orchards,1887.08, 30-Mar-2022
1234,Revenue,CAHD,North - Community based support,Other Small Contracts,Cherry Orchards,6639.36, 30-Mar-2022
1235,Revenue,CAHD,South - Commissioned Services,Supported Living,Cherry Orchards,1946.36, 28-Mar-2022
1236,Revenue,CAHD,South - Commissioned Services,Supported Living,Cherry Orchards,1620.32, 28-Mar-2022
1237,Revenue,CAHD,North - Community based support,Supported Living,Cherry Orchards,1936.48, 28-Mar-2022
1238,Revenue,CAHD,North - Community based support,Supported Living,Cherry Orchards,790.40, 28-Mar-2022
1239,Revenue,CAHD,Central - Commissioned Services,Permanent Residential,Chescombe Trust Ltd,8910.48, 08-Mar-2022
1240,Revenue,CAHD,Central - Commissioned Services,Fees & Charges Income - General,Chescombe Trust Ltd,-425.60, 08-Mar-2022
1241,Revenue,CAHD,S28A cases,Permanent Residential,Chescombe Trust Ltd,10188.80, 08-Mar-2022
1242,Revenue,CAHD,S28A cases,Fees & Charges Income - General,Chescombe Trust Ltd,-425.60, 08-Mar-2022
1243,Revenue,CAHD,Covid - ASC - Infection Control,Grants to Voluntary Bodies,Chescombe Trust Ltd,4733.99, 29-Mar-2022
1244,Revenue,CAHD,Covid  - Workforce capacity,Grants to Voluntary Bodies,Chescombe Trust Ltd,2949.34, 28-Mar-2022
1245,Revenue,CAHD,Covid  - Workforce capacity,Grants to Voluntary Bodies,Chescombe Trust Ltd,3899.50, 24-Mar-2022
1246,Revenue,CAHD,CSC - Special Guardianship Orders,"Holidays, Outings & Visits",Childrens Contact Services Ltd,440.00, 17-Mar-2022
1247,Revenue,CAHD,CSC - Emergency Duty Team,Preventative Assistance,Childrens Contact Services Ltd,1919.50, 23-Mar-2022
1248,Revenue,CAHD,CSC - Section 17 - NORTH,Personal Needs of Clients,Childrens Contact Services Ltd,814.10, 10-Mar-2022
1249,Revenue,CAHD,CSC - Through & Leaving Care Team,Training Expenses,Christine Ashton Ltd,1100.00, 04-Mar-2022
1250,Revenue,CAHD,CSC - Child Arrangement Orders (prev RO),"Holidays, Outings & Visits",Individual,213.79, 04-Mar-2022
1251,Revenue,CAHD,CSC - Child Arrangement Orders (prev RO),Residence Order Allowances,Individual,519.07, 04-Mar-2022
1252,Revenue,CAHD,CSC - Post Ofsted Implementation,Consultants Fees,Christopher Baird,900.00, 23-Mar-2022
1253,Revenue,CAHD,Statemented Support Payments to OLAs,Other L.A.s - General,Churchill Academy,1085.75, 21-Mar-2022
1254,Revenue,CAHD,South - Commissioned Services,Other Small Contracts,Cintre,1196.90, 01-Mar-2022
1255,Revenue,CAHD,Younger MH non-res purchasing,Other Small Contracts,Cintre,917.83, 01-Mar-2022
1256,Revenue,CAHD,South - Commissioned Services,Other Small Contracts,Cintre,1196.90, 09-Mar-2022
1257,Revenue,CAHD,Younger MH non-res purchasing,Other Small Contracts,Cintre,917.83, 09-Mar-2022
1258,Revenue,CAHD,South - Commissioned Services,Other Small Contracts,Cintre,1196.90, 16-Mar-2022
1259,Revenue,CAHD,Younger MH non-res purchasing,Other Small Contracts,Cintre,917.83, 16-Mar-2022
1260,Revenue,CAHD,South - Commissioned Services,Other Small Contracts,Cintre,1196.90, 23-Mar-2022
1261,Revenue,CAHD,Younger MH non-res purchasing,Other Small Contracts,Cintre,917.83, 23-Mar-2022
1262,Revenue,CAHD,South - Commissioned Services,Other Small Contracts,Cintre,1196.90, 30-Mar-2022
1263,Revenue,CAHD,Younger MH non-res purchasing,Other Small Contracts,Cintre,917.83, 30-Mar-2022
1264,Revenue,CAHD,18-25 Year Olds,Permanent Residential,Cintre,6188.60, 08-Mar-2022
1265,Revenue,CAHD,18-25 Year Olds,Fees & Charges Income - General,Cintre,-49.60, 08-Mar-2022
1266,Revenue,CAHD,Planning and Partnerships Procurement,Training Expenses,CIPFA Business Limited,311.66, 25-Mar-2022
1267,Revenue,CAHD,Learning Difficulties,Premises Hire,Circadian Trust,882.00, 04-Mar-2022
1268,Revenue,CAHD,Learning Difficulties,Premises Hire,Circadian Trust,882.00, 04-Mar-2022
1269,Revenue,CAHD,Placements OLA Special Schools and RB,Other L.A.s - General,Claremont School,1981.42, 22-Mar-2022
1270,Revenue,CAHD,Placements OLA Special Schools and RB,Other L.A.s - General,Claremont School,646.00, 22-Mar-2022
1271,Revenue,CAHD,Schools Specific Grant Income,Other Public Bodies,Claremont School,500.00, 24-Mar-2022
1272,Revenue,CAHD,Placements OLA Special Schools and RB,Other L.A.s - General,Claremont School,2774.71, 22-Mar-2022
1273,Revenue,CAHD,Placements OLA Special Schools and RB,Other L.A.s - General,Claremont School,646.00, 22-Mar-2022
1274,Revenue,CAHD,Placements OLA Special Schools and RB,Other L.A.s - General,Claremont School,1981.42, 22-Mar-2022
1275,Revenue,CAHD,Placements OLA Special Schools and RB,Other L.A.s - General,Claremont School,646.00, 22-Mar-2022
1276,Revenue,CAHD,Placements OLA Special Schools and RB,Other L.A.s - General,Claremont School,1981.42, 22-Mar-2022
1277,Revenue,CAHD,Placements OLA Special Schools and RB,Other L.A.s - General,Claremont School,646.00, 22-Mar-2022
1278,Revenue,CAHD,Placements OLA Special Schools and RB,Other L.A.s - General,Claremont School,792.57, 22-Mar-2022
1279,Revenue,CAHD,Placements OLA Special Schools and RB,Other L.A.s - General,Claremont School,2774.71, 22-Mar-2022
1280,Revenue,CAHD,Placements OLA Special Schools and RB,Other L.A.s - General,Claremont School,1981.42, 22-Mar-2022
1281,Revenue,CAHD,Placements OLA Special Schools and RB,Other L.A.s - General,Claremont School,646.00, 22-Mar-2022
1282,Revenue,CAHD,Placements OLA Special Schools and RB,Other L.A.s - General,Claremont School,2774.71, 22-Mar-2022
1283,Revenue,CAHD,Placements OLA Special Schools and RB,Other L.A.s - General,Claremont School,646.00, 22-Mar-2022
1284,Revenue,CAHD,Placements OLA Special Schools and RB,Other L.A.s - General,Claremont School,1585.17, 22-Mar-2022
1285,Revenue,CAHD,Placements OLA Special Schools and RB,Other L.A.s - General,Claremont School,516.77, 22-Mar-2022
1286,Revenue,CAHD,Placements OLA Special Schools and RB,Other L.A.s - General,Claremont School,1981.42, 22-Mar-2022
1287,Revenue,CAHD,Placements OLA Special Schools and RB,Other L.A.s - General,Claremont School,646.00, 22-Mar-2022
1288,Revenue,CAHD,South - Commissioned Services,Permanent Residential,Cleeve Lodge,600.00, 08-Mar-2022
1289,Revenue,CAHD,Central - Commissioned Services,Permanent Residential,Cleeve Lodge,3273.60, 08-Mar-2022
1290,Revenue,CAHD,Central - Commissioned Services,Fees & Charges Income - General,Cleeve Lodge,-1031.64, 08-Mar-2022
1291,Revenue,CAHD,South - Commissioned Services,Permanent Residential,Cleeve Lodge,3492.00, 08-Mar-2022
1292,Revenue,CAHD,South - Commissioned Services,Permanent Residential,Cleeve Lodge,4910.40, 08-Mar-2022
1293,Revenue,CAHD,South - Commissioned Services,Permanent Residential,Cleeve Lodge,3739.76, 08-Mar-2022
1294,Revenue,CAHD,South - Commissioned Services,Permanent Residential,Cleeve Lodge,1365.28, 08-Mar-2022
1295,Revenue,CAHD,South - Commissioned Services,Permanent Residential,Cleeve Lodge,4501.20, 08-Mar-2022
1296,Revenue,CAHD,South - Commissioned Services,Permanent Residential,Cleeve Lodge,3018.76, 08-Mar-2022
1297,Revenue,CAHD,South - Commissioned Services,Permanent Nursing,Cleeve Lodge,3273.60, 08-Mar-2022
1298,Revenue,CAHD,South - Commissioned Services,Fees & Charges Income - General,Cleeve Lodge,-1360.92, 08-Mar-2022
1299,Revenue,CAHD,South - Commissioned Services,Fees & Charges Income - General,Cleeve Lodge,-848.80, 08-Mar-2022
1300,Revenue,CAHD,South - Commissioned Services,Fees & Charges Income - General,Cleeve Lodge,-715.64, 08-Mar-2022
1301,Revenue,CAHD,South - Commissioned Services,Fees & Charges Income - General,Cleeve Lodge,-612.80, 08-Mar-2022
1302,Revenue,CAHD,South - Commissioned Services,Fees & Charges Income - General,Cleeve Lodge,-636.80, 08-Mar-2022
1303,Revenue,CAHD,South - Commissioned Services,Fees & Charges Income - General,Cleeve Lodge,-901.12, 08-Mar-2022
1304,Revenue,CAHD,South - Commissioned Services,Fees & Charges Income - General,Cleeve Lodge,-641.36, 08-Mar-2022
1305,Revenue,CAHD,North - Community based support,Permanent Residential,Cleeve Lodge,4400.00, 08-Mar-2022
1306,Revenue,CAHD,North - Community based support,Fees & Charges Income - General,Cleeve Lodge,-895.60, 08-Mar-2022
1307,Revenue,CAHD,North - S117,Permanent Residential,Cleeve Lodge,3273.60, 08-Mar-2022
1308,Revenue,CAHD,Covid - ASC - Infection Control,Grants to Voluntary Bodies,Cleeve Lodge,22827.94, 29-Mar-2022
1309,Revenue,CAHD,Covid  - Workforce capacity,Grants to Voluntary Bodies,Cleeve Lodge,1001.66, 28-Mar-2022
1310,Revenue,CAHD,Covid  - Workforce capacity,Grants to Voluntary Bodies,Cleeve Lodge,1250.78, 24-Mar-2022
1311,Revenue,CAHD,"Drugs, Alcohol and Sexual Health",Other Small Contracts,Close Farm Surgery,805.00, 24-Mar-2022
1312,Revenue,CAHD,Central - Commissioned Services,Other Small Contracts,Clover Health and Home Care Ltd,1050.56, 04-Mar-2022
1313,Revenue,CAHD,Central - Commissioned Services,Other Small Contracts,Clover Health and Home Care Ltd,1050.56, 25-Mar-2022
1314,Revenue,CAHD,Central - Commissioned Services,Other Small Contracts,Clover Health and Home Care Ltd,1157.76, 04-Mar-2022
1315,Revenue,CAHD,Central - Commissioned Services,Other Small Contracts,Clover Health and Home Care Ltd,836.16, 07-Mar-2022
1316,Revenue,CAHD,Central - Commissioned Services,Other Small Contracts,Clover Health and Home Care Ltd,900.48, 07-Mar-2022
1317,Revenue,CAHD,Covid - ASC - Infection Control,Grants to Voluntary Bodies,Clover Health and Home Care Ltd,1500.00, 29-Mar-2022
1318,Revenue,CAHD,Covid  - Workforce capacity,Grants to Voluntary Bodies,Clover Health and Home Care Ltd,1001.66, 22-Mar-2022
1319,Revenue,CAHD,Covid  - Workforce capacity,Grants to Voluntary Bodies,Clover Health and Home Care Ltd,1618.66, 24-Mar-2022
1320,Revenue,CAHD,Central - Commissioned Services,Other Small Contracts,Clover Health and Home Care Ltd,868.32, 30-Mar-2022
1321,Revenue,CAHD,Central - Commissioned Services,Other Small Contracts,Clover Health and Home Care Ltd,257.28, 30-Mar-2022
1322,Revenue,CAHD,Central - Commissioned Services,Other Small Contracts,Clover Health and Home Care Ltd,1050.56, 30-Mar-2022
1323,Revenue,CAHD,Central - Commissioned Services,Other Small Contracts,Clover Health and Home Care Ltd,986.24, 17-Mar-2022
1324,Revenue,CAHD,Central - Commissioned Services,Other Small Contracts,Clover Health and Home Care Ltd,257.28, 17-Mar-2022
1325,Revenue,CAHD,Covid - ASC - Infection Control,Grants to Voluntary Bodies,Collingwood Care Home,2907.57, 07-Mar-2022
1326,Revenue,CAHD,South - Commissioned Services,Permanent Residential,Collingwood Care Home,19314.29, 08-Mar-2022
1327,Revenue,CAHD,South - Commissioned Services,Permanent Residential,Collingwood Care Home,3580.00, 08-Mar-2022
1328,Revenue,CAHD,South - Commissioned Services,Fees & Charges Income - General,Collingwood Care Home,-5434.44, 08-Mar-2022
1329,Revenue,CAHD,South - Commissioned Services,Fees & Charges Income - General,Collingwood Care Home,-693.24, 08-Mar-2022
1330,Revenue,CAHD,North - Community based support,Permanent Residential,Collingwood Care Home,3069.00, 08-Mar-2022
1331,Revenue,CAHD,North - Community based support,Fees & Charges Income - General,Collingwood Care Home,-972.84, 08-Mar-2022
1332,Revenue,CAHD,ASC Rapid Testing Fund,Grants to Voluntary Bodies,Collingwood Care Home,2065.97, 07-Mar-2022
1333,Revenue,CAHD,Covid  - Workforce capacity,Grants to Voluntary Bodies,Collingwood Care Home,5150.29, 07-Mar-2022
1334,Revenue,CAHD,Statemented Support Payments to OLAs,Other L.A.s - General,Colston`s Girls School Trust,1582.50, 21-Mar-2022
1335,Revenue,CAHD,South - Commissioned Services,Permanent Residential,Community Theraputic Services,7776.36, 08-Mar-2022
1336,Revenue,CAHD,South - Commissioned Services,Fees & Charges Income - General,Community Theraputic Services,-425.60, 08-Mar-2022
1337,Revenue,CAHD,North - Community based support,Permanent Residential,Community Theraputic Services,8071.08, 08-Mar-2022
1338,Revenue,CAHD,North - Community based support,Fees & Charges Income - General,Community Theraputic Services,-608.80, 08-Mar-2022
1339,Revenue,CAHD,Jointly Funded H&SC Packages,Permanent Residential,Community Theraputic Services,4992.88, 08-Mar-2022
1340,Revenue,CAHD,Jointly Funded H&SC Packages,Permanent Residential,Community Theraputic Services,2076.20, 08-Mar-2022
1341,Revenue,CAHD,CSC - Agency Fostering,Foster Parent Allowances,Compass Fostering West Ltd,3268.44, 24-Mar-2022
1342,Revenue,CAHD,CSC - Agency Fostering,Foster Parent Allowances,Compass Fostering West Ltd,3268.44, 24-Mar-2022
1343,Revenue,CAHD,CSC - Agency Fostering,Foster Parent Allowances,Compass Fostering West Ltd,3618.63, 24-Mar-2022
1344,Revenue,CAHD,CSC - Agency Fostering,Foster Parent Allowances,Compass Fostering West Ltd,3618.63, 24-Mar-2022
1345,Revenue,CAHD,CSC - Fostering Carer Support,DBS Check Fees,Complete Background Screening Ltd,901.00, 09-Mar-2022
1346,Revenue,CAHD,"Drugs, Alcohol and Sexual Health",Other Small Contracts,Concord Medical Centre,2012.50, 24-Mar-2022
1347,Revenue,CAHD,Statemented Support Equipment,Educational Supplies & Equipment,Connevans Limited,1040.00, 04-Mar-2022
1348,Revenue,CAHD,Statemented Support Equipment,Educational Supplies & Equipment,Connevans Limited,1806.00, 04-Mar-2022
1349,Revenue,CAHD,Bed and Breakfast,Bed & Breakfast,Connolly & Callaghan Limited,727.30, 01-Mar-2022
1350,Revenue,CAHD,Bed and Breakfast,Bed & Breakfast,Connolly & Callaghan Limited,422.80, 14-Mar-2022
1351,Revenue,CAHD,Bed and Breakfast,Bed & Breakfast,Connolly & Callaghan Limited,807.10, 14-Mar-2022
1352,Revenue,CAHD,CSC - Care Leavers Independent Living,Adults - Family Support,Connolly & Callaghan Limited,436.80, 16-Mar-2022
1353,Revenue,CAHD,CSC - Care Leavers Independent Living,Adults - Family Support,Connolly & Callaghan Limited,436.80, 16-Mar-2022
1354,Revenue,CAHD,CSC - Care Leavers Independent Living,Adults - Family Support,Connolly & Callaghan Limited,436.80, 16-Mar-2022
1355,Revenue,CAHD,Bed and Breakfast,Bed & Breakfast,Connolly & Callaghan Limited,422.80, 01-Mar-2022
1356,Revenue,CAHD,CSC - CLA Placements,Personal Needs of Clients,Connolly & Callaghan Limited,436.80, 08-Mar-2022
1357,Revenue,CAHD,Bed and Breakfast,Bed & Breakfast,Connolly & Callaghan Limited,583.80, 01-Mar-2022
1358,Revenue,CAHD,Bed and Breakfast,Bed & Breakfast,Connolly & Callaghan Limited,548.80, 01-Mar-2022
1359,Revenue,CAHD,Bed and Breakfast,Bed & Breakfast,Connolly & Callaghan Limited,422.80, 01-Mar-2022
1360,Revenue,CAHD,Bed and Breakfast,Bed & Breakfast,Connolly & Callaghan Limited,463.40, 01-Mar-2022
1361,Revenue,CAHD,Bed and Breakfast,Bed & Breakfast,Connolly & Callaghan Limited,583.80, 01-Mar-2022
1362,Revenue,CAHD,Bed and Breakfast,Bed & Breakfast,Connolly & Callaghan Limited,548.80, 01-Mar-2022
1363,Revenue,CAHD,Bed and Breakfast,Bed & Breakfast,Connolly & Callaghan Limited,548.80, 16-Mar-2022
1364,Revenue,CAHD,Bed and Breakfast,Bed & Breakfast,Connolly & Callaghan Limited,942.90, 01-Mar-2022
1365,Revenue,CAHD,Bed and Breakfast,Bed & Breakfast,Connolly & Callaghan Limited,548.80, 01-Mar-2022
1366,Revenue,CAHD,Bed and Breakfast,Bed & Breakfast,Connolly & Callaghan Limited,422.80, 03-Mar-2022
1367,Revenue,CAHD,Bed and Breakfast,Bed & Breakfast,Connolly & Callaghan Limited,508.20, 01-Mar-2022
1368,Revenue,CAHD,Bed and Breakfast,Bed & Breakfast,Connolly & Callaghan Limited,420.00, 01-Mar-2022
1369,Revenue,CAHD,Bed and Breakfast,Bed & Breakfast,Connolly & Callaghan Limited,422.80, 01-Mar-2022
1370,Revenue,CAHD,Bed and Breakfast,Bed & Breakfast,Connolly & Callaghan Limited,463.40, 01-Mar-2022
1371,Revenue,CAHD,Bed and Breakfast,Bed & Breakfast,Connolly & Callaghan Limited,508.20, 01-Mar-2022
1372,Revenue,CAHD,Bed and Breakfast,Bed & Breakfast,Connolly & Callaghan Limited,522.27, 01-Mar-2022
1373,Revenue,CAHD,Bed and Breakfast,Bed & Breakfast,Connolly & Callaghan Limited,508.20, 01-Mar-2022
1374,Revenue,CAHD,Bed and Breakfast,Bed & Breakfast,Connolly & Callaghan Limited,422.80, 01-Mar-2022
1375,Revenue,CAHD,Bed and Breakfast,Bed & Breakfast,Connolly & Callaghan Limited,508.20, 01-Mar-2022
1376,Revenue,CAHD,Bed and Breakfast,Bed & Breakfast,Connolly & Callaghan Limited,422.80, 01-Mar-2022
1377,Revenue,CAHD,CSC - Care Leavers Independent Living,Adults - Family Support,Connolly & Callaghan Limited,436.80, 01-Mar-2022
1378,Revenue,CAHD,Bed and Breakfast,Bed & Breakfast,Connolly & Callaghan Limited,422.80, 15-Mar-2022
1379,Revenue,CAHD,Bed and Breakfast,Bed & Breakfast,Connolly & Callaghan Limited,548.80, 11-Mar-2022
1380,Revenue,CAHD,Bed and Breakfast,Bed & Breakfast,Connolly & Callaghan Limited,548.80, 16-Mar-2022
1381,Revenue,CAHD,Bed and Breakfast,Other Supplies & Services,Connolly & Callaghan Limited,512.40, 11-Mar-2022
1382,Revenue,CAHD,Bed and Breakfast,Bed & Breakfast,Connolly & Callaghan Limited,942.90, 11-Mar-2022
1383,Revenue,CAHD,Bed and Breakfast,Bed & Breakfast,Connolly & Callaghan Limited,548.80, 11-Mar-2022
1384,Revenue,CAHD,Bed and Breakfast,Bed & Breakfast,Connolly & Callaghan Limited,422.80, 11-Mar-2022
1385,Revenue,CAHD,Bed and Breakfast,Bed & Breakfast,Connolly & Callaghan Limited,508.20, 11-Mar-2022
1386,Revenue,CAHD,Bed and Breakfast,Bed & Breakfast,Connolly & Callaghan Limited,420.00, 11-Mar-2022
1387,Revenue,CAHD,Bed and Breakfast,Bed & Breakfast,Connolly & Callaghan Limited,422.80, 11-Mar-2022
1388,Revenue,CAHD,Bed and Breakfast,Bed & Breakfast,Connolly & Callaghan Limited,508.20, 11-Mar-2022
1389,Revenue,CAHD,Bed and Breakfast,Bed & Breakfast,Connolly & Callaghan Limited,522.27, 15-Mar-2022
1390,Revenue,CAHD,Bed and Breakfast,Bed & Breakfast,Connolly & Callaghan Limited,508.20, 11-Mar-2022
1391,Revenue,CAHD,Bed and Breakfast,Bed & Breakfast,Connolly & Callaghan Limited,508.20, 15-Mar-2022
1392,Revenue,CAHD,Bed and Breakfast,Bed & Breakfast,Connolly & Callaghan Limited,422.80, 15-Mar-2022
1393,Revenue,CAHD,Bed and Breakfast,Bed & Breakfast,Connolly & Callaghan Limited,508.20, 11-Mar-2022
1394,Revenue,CAHD,Bed and Breakfast,Bed & Breakfast,Connolly & Callaghan Limited,422.80, 11-Mar-2022
1395,Revenue,CAHD,CSC - Care Leavers Independent Living,Adults - Family Support,Connolly & Callaghan Limited,436.80, 17-Mar-2022
1396,Revenue,CAHD,Bed and Breakfast,Bed & Breakfast,Connolly & Callaghan Limited,422.80, 17-Mar-2022
1397,Revenue,CAHD,Bed and Breakfast,Bed & Breakfast,Connolly & Callaghan Limited,548.80, 17-Mar-2022
1398,Revenue,CAHD,Bed and Breakfast,Bed & Breakfast,Connolly & Callaghan Limited,548.80, 22-Mar-2022
1399,Revenue,CAHD,Bed and Breakfast,Other Supplies & Services,Connolly & Callaghan Limited,597.80, 21-Mar-2022
1400,Revenue,CAHD,Bed and Breakfast,Bed & Breakfast,Connolly & Callaghan Limited,942.90, 18-Mar-2022
1401,Revenue,CAHD,Bed and Breakfast,Bed & Breakfast,Connolly & Callaghan Limited,548.80, 22-Mar-2022
1402,Revenue,CAHD,Bed and Breakfast,Bed & Breakfast,Connolly & Callaghan Limited,422.80, 17-Mar-2022
1403,Revenue,CAHD,Bed and Breakfast,Bed & Breakfast,Connolly & Callaghan Limited,508.20, 17-Mar-2022
1404,Revenue,CAHD,Bed and Breakfast,Bed & Breakfast,Connolly & Callaghan Limited,420.00, 17-Mar-2022
1405,Revenue,CAHD,Bed and Breakfast,Bed & Breakfast,Connolly & Callaghan Limited,422.80, 17-Mar-2022
1406,Revenue,CAHD,Bed and Breakfast,Bed & Breakfast,Connolly & Callaghan Limited,508.20, 17-Mar-2022
1407,Revenue,CAHD,Bed and Breakfast,Bed & Breakfast,Connolly & Callaghan Limited,522.27, 17-Mar-2022
1408,Revenue,CAHD,Bed and Breakfast,Bed & Breakfast,Connolly & Callaghan Limited,508.20, 17-Mar-2022
1409,Revenue,CAHD,Bed and Breakfast,Bed & Breakfast,Connolly & Callaghan Limited,508.20, 17-Mar-2022
1410,Revenue,CAHD,Bed and Breakfast,Bed & Breakfast,Connolly & Callaghan Limited,422.80, 18-Mar-2022
1411,Revenue,CAHD,Bed and Breakfast,Bed & Breakfast,Connolly & Callaghan Limited,508.20, 17-Mar-2022
1412,Revenue,CAHD,Bed and Breakfast,Bed & Breakfast,Connolly & Callaghan Limited,422.80, 17-Mar-2022
1413,Revenue,CAHD,CSC - Care Leavers Independent Living,Adults - Family Support,Connolly & Callaghan Limited,436.80, 25-Mar-2022
1414,Revenue,CAHD,Bed and Breakfast,Bed & Breakfast,Connolly & Callaghan Limited,422.80, 28-Mar-2022
1415,Revenue,CAHD,Bed and Breakfast,Bed & Breakfast,Connolly & Callaghan Limited,548.80, 28-Mar-2022
1416,Revenue,CAHD,Bed and Breakfast,Bed & Breakfast,Connolly & Callaghan Limited,548.80, 28-Mar-2022
1417,Revenue,CAHD,Bed and Breakfast,Other Supplies & Services,Connolly & Callaghan Limited,597.80, 25-Mar-2022
1418,Revenue,CAHD,Bed and Breakfast,Bed & Breakfast,Connolly & Callaghan Limited,538.80, 23-Mar-2022
1419,Revenue,CAHD,Bed and Breakfast,Bed & Breakfast,Connolly & Callaghan Limited,419.20, 29-Mar-2022
1420,Revenue,CAHD,Bed and Breakfast,Bed & Breakfast,Connolly & Callaghan Limited,548.80, 29-Mar-2022
1421,Revenue,CAHD,Bed and Breakfast,Bed & Breakfast,Connolly & Callaghan Limited,422.80, 23-Mar-2022
1422,Revenue,CAHD,Bed and Breakfast,Bed & Breakfast,Connolly & Callaghan Limited,508.20, 23-Mar-2022
1423,Revenue,CAHD,Bed and Breakfast,Bed & Breakfast,Connolly & Callaghan Limited,508.20, 23-Mar-2022
1424,Revenue,CAHD,Bed and Breakfast,Bed & Breakfast,Connolly & Callaghan Limited,522.27, 23-Mar-2022
1425,Revenue,CAHD,Bed and Breakfast,Bed & Breakfast,Connolly & Callaghan Limited,508.20, 23-Mar-2022
1426,Revenue,CAHD,Bed and Breakfast,Bed & Breakfast,Connolly & Callaghan Limited,508.20, 23-Mar-2022
1427,Revenue,CAHD,Bed and Breakfast,Bed & Breakfast,Connolly & Callaghan Limited,422.80, 23-Mar-2022
1428,Revenue,CAHD,Bed and Breakfast,Bed & Breakfast,Connolly & Callaghan Limited,686.70, 23-Mar-2022
1429,Revenue,CAHD,Bed and Breakfast,Bed & Breakfast,Connolly & Callaghan Limited,422.80, 23-Mar-2022
1430,Revenue,CAHD,CSC - Care Leavers Independent Living,Adults - Family Support,Connolly & Callaghan Limited,436.80, 30-Mar-2022
1431,Revenue,CAHD,North - Community based support,Non Residential Care Income,Individual,9415.68, 18-Mar-2022
1432,Revenue,CAHD,Independent Special Placements - Pre 16,Other Private Contractors,Cotswold Chine School,52309.09, 07-Mar-2022
1433,Revenue,CAHD,Independent Special Placements - Pre 16,Other Private Contractors,Cotswold Chine School,26216.54, 07-Mar-2022
1434,Revenue,CAHD,Independent Special Placements - Pre 16,Other Private Contractors,Cotswold Chine School,26283.70, 07-Mar-2022
1435,Revenue,CAHD,Central - Commissioned Services,Permanent Nursing,Cotswold House Care Home,3484.32, 08-Mar-2022
1436,Revenue,CAHD,Alexandra Way,Cleaning & Domestic Services,Countrywide Healthcare Supplies Ltd,1519.93, 23-Mar-2022
1437,Revenue,CAHD,Alexandra Way,Cleaning & Domestic Services,Countrywide Healthcare Supplies Ltd,659.56, 23-Mar-2022
1438,Revenue,CAHD,North - Community based support,Permanent Residential,Court House Residential C.H.,3400.00, 08-Mar-2022
1439,Revenue,CAHD,North - Community based support,Fees & Charges Income - General,Court House Residential C.H.,-658.88, 08-Mar-2022
1440,Revenue,CAHD,North - Community based support,Permanent Residential,Court House Retirement Home,3600.00, 08-Mar-2022
1441,Revenue,CAHD,North - Community based support,Fees & Charges Income - General,Court House Retirement Home,-848.80, 08-Mar-2022
1442,Revenue,CAHD,North - Community based support,Other Small Contracts,Courtfield Healthcare Ltd,2598.96, 07-Mar-2022
1443,Revenue,CAHD,Central - Commissioned Services,Other Small Contracts,Courtfield Healthcare Ltd,6497.40, 07-Mar-2022
1444,Revenue,CAHD,North - Community based support,Other Small Contracts,Courtfield Healthcare Ltd,5847.66, 07-Mar-2022
1445,Revenue,CAHD,South - Commissioned Services,Other Small Contracts,Courtfield Healthcare Ltd,4773.60, 09-Mar-2022
1446,Revenue,CAHD,North - Community based support,Other Small Contracts,Courtfield Healthcare Ltd,13657.80, 07-Mar-2022
1447,Revenue,CAHD,Central - Commissioned Services,Other Small Contracts,Courtfield Healthcare Ltd,36787.44, 14-Mar-2022
1448,Revenue,CAHD,Central - Commissioned Services,Other Small Contracts,Courtfield Healthcare Ltd,7956.00, 07-Mar-2022
1449,Revenue,CAHD,Central - Commissioned Services,Other Small Contracts,Courtfield Healthcare Ltd,23868.00, 07-Mar-2022
1450,Revenue,CAHD,North - Community based support,Other Small Contracts,Courtfield Healthcare Ltd,5569.20, 07-Mar-2022
1451,Revenue,CAHD,South - Commissioned Services,Other Small Contracts,Courtfield Healthcare Ltd,5516.16, 14-Mar-2022
1452,Revenue,CAHD,Covid - ASC - Infection Control,Grants to Voluntary Bodies,Courtfield Healthcare Ltd,1123.50, 29-Mar-2022
1453,Revenue,CAHD,North - Community based support,Other Small Contracts,Courtfield Healthcare Ltd,3712.80, 24-Mar-2022
1454,Revenue,CAHD,EARLY YEARS DEPRIVATION PAYMENT,Preventative Assistance,Courtney Ladybirds Pre-School,500.22, 15-Mar-2022
1455,Revenue,CAHD,"Drugs, Alcohol and Sexual Health",Other Small Contracts,Courtside Surgery,2012.50, 24-Mar-2022
1456,Revenue,CAHD,S28A cases,Permanent Residential,Creedy Court,10597.96, 08-Mar-2022
1457,Revenue,CAHD,S28A cases,Permanent Residential,Creedy Court,9384.92, 08-Mar-2022
1458,Revenue,CAHD,S28A cases,Fees & Charges Income - General,Creedy Court,-606.80, 08-Mar-2022
1459,Revenue,CAHD,S28A cases,Fees & Charges Income - General,Creedy Court,-608.80, 08-Mar-2022
1460,Revenue,CAHD,North - Community based support,Permanent Residential,Creedy Court,14534.00, 08-Mar-2022
1461,Revenue,CAHD,North - Community based support,Fees & Charges Income - General,Creedy Court,-425.60, 08-Mar-2022
1462,Revenue,CAHD,Central - Commissioned Services,Respite Care,Cygnet Healthcare Limited,0.00, 08-Mar-2022
1463,Revenue,CAHD,Central - Commissioned Services,Supported Living,Cygnet Healthcare Limited,3380.00, 08-Mar-2022
1464,Revenue,CAHD,CSC - Vinney Green Secure Unit,Printing & Stationery,Daemon Print Supplies,927.08, 11-Mar-2022
1465,Revenue,CAHD,South - Commissioned Services,Permanent Residential,Daneswood,12759.56, 08-Mar-2022
1466,Revenue,CAHD,South - Commissioned Services,Fees & Charges Income - General,Daneswood,-425.60, 08-Mar-2022
1467,Revenue,CAHD,North - Community based support,Permanent Residential,Daneswood,13579.68, 08-Mar-2022
1468,Revenue,CAHD,North - Community based support,Fees & Charges Income - General,Daneswood,-425.60, 08-Mar-2022
1469,Revenue,CAHD,South - Commissioned Services,Day Care / Social Activities,Daneswood,737.36, 08-Mar-2022
1470,Revenue,CAHD,Learning Difficulties PSL,Rent,Individual,2400.00, 22-Mar-2022
1471,Revenue,CAHD,Alexandra Way,Premises Maintenance by Contractor,Davis Roofing Limited,4633.00, 02-Mar-2022
1472,Revenue,CAHD,Alexandra Way,Premises Maintenance by Contractor,Davis Roofing Limited,3284.00, 02-Mar-2022
1473,Revenue,CAHD,CSC - Corporate Parenting,Conference Expenses,De Vere Tortworth Court,1317.50, 18-Mar-2022
1474,Revenue,CAHD,Central - Commissioned Services,Permanent Residential,Debt Recovery,4786.48, 08-Mar-2022
1475,Revenue,CAHD,Central - Commissioned Services,Permanent Residential,Debt Recovery,4326.88, 08-Mar-2022
1476,Revenue,CAHD,Central - Commissioned Services,Fees & Charges Income - General,Debt Recovery,-425.60, 08-Mar-2022
1477,Revenue,CAHD,Central - Commissioned Services,Fees & Charges Income - General,Debt Recovery,-608.80, 08-Mar-2022
1478,Revenue,CAHD,South - Commissioned Services,Permanent Residential,Debt Recovery,4422.88, 08-Mar-2022
1479,Revenue,CAHD,South - Commissioned Services,Fees & Charges Income - General,Debt Recovery,-425.60, 08-Mar-2022
1480,Revenue,CAHD,North - Community based support,Permanent Nursing,Debt Recovery,3822.52, 08-Mar-2022
1481,Revenue,CAHD,North - Community based support,Permanent Nursing,Debt Recovery,4642.48, 08-Mar-2022
1482,Revenue,CAHD,North - Community based support,Fees & Charges Income - General,Debt Recovery,-356.80, 08-Mar-2022
1483,Revenue,CAHD,North - Community based support,Fees & Charges Income - General,Debt Recovery,-425.60, 08-Mar-2022
1484,Revenue,CAHD,North - Community based support,Permanent Residential,Debt Recovery,3702.24, 08-Mar-2022
1485,Revenue,CAHD,North - Community based support,Permanent Nursing,Debt Recovery,4187.16, 08-Mar-2022
1486,Revenue,CAHD,North - Community based support,Permanent Nursing,Debt Recovery,3643.52, 08-Mar-2022
1487,Revenue,CAHD,North - Community based support,Permanent Nursing,Debt Recovery,5735.40, 08-Mar-2022
1488,Revenue,CAHD,North - Community based support,Fees & Charges Income - General,Debt Recovery,-578.76, 08-Mar-2022
1489,Revenue,CAHD,North - Community based support,Fees & Charges Income - General,Debt Recovery,-425.60, 08-Mar-2022
1490,Revenue,CAHD,North - Community based support,Fees & Charges Income - General,Debt Recovery,-449.60, 08-Mar-2022
1491,Revenue,CAHD,North - Community based support,Fees & Charges Income - General,Debt Recovery,-425.60, 08-Mar-2022
1492,Revenue,CAHD,North - Community based support,Permanent Nursing,Debt Recovery,5723.32, 08-Mar-2022
1493,Revenue,CAHD,North - Community based support,Fees & Charges Income - General,Debt Recovery,-832.20, 08-Mar-2022
1494,Revenue,CAHD,Jointly Funded H&SC Packages,Permanent Nursing,Debt Recovery,393.48, 08-Mar-2022
1495,Revenue,CAHD,Covid - ASC - Infection Control,Grants to Voluntary Bodies,Deerhurst Nursing Home,7380.76, 07-Mar-2022
1496,Revenue,CAHD,South Glos Users in South Glos Homes,Permanent Nursing,Deerhurst Nursing Home,750.40, 08-Mar-2022
1497,Revenue,CAHD,South Glos Users in South Glos Homes,Permanent Nursing,Deerhurst Nursing Home,750.40, 08-Mar-2022
1498,Revenue,CAHD,South Glos Users in South Glos Homes,Permanent Nursing,Deerhurst Nursing Home,750.40, 08-Mar-2022
1499,Revenue,CAHD,South Glos Users in South Glos Homes,Permanent Nursing,Deerhurst Nursing Home,750.40, 08-Mar-2022
1500,Revenue,CAHD,South Glos Users in South Glos Homes,Permanent Nursing,Deerhurst Nursing Home,750.40, 08-Mar-2022
1501,Revenue,CAHD,South Glos Users in South Glos Homes,Permanent Nursing,Deerhurst Nursing Home,750.40, 08-Mar-2022
1502,Revenue,CAHD,South Glos Users in South Glos Homes,Permanent Nursing,Deerhurst Nursing Home,750.40, 08-Mar-2022
1503,Revenue,CAHD,South Glos Users in South Glos Homes,Permanent Nursing,Deerhurst Nursing Home,750.40, 08-Mar-2022
1504,Revenue,CAHD,South Glos Users in South Glos Homes,Permanent Nursing,Deerhurst Nursing Home,750.40, 08-Mar-2022
1505,Revenue,CAHD,South Glos Users in South Glos Homes,Permanent Nursing,Deerhurst Nursing Home,750.40, 08-Mar-2022
1506,Revenue,CAHD,South Glos Users in South Glos Homes,Permanent Nursing,Deerhurst Nursing Home,750.40, 08-Mar-2022
1507,Revenue,CAHD,South Glos Users in South Glos Homes,Permanent Nursing,Deerhurst Nursing Home,750.40, 08-Mar-2022
1508,Revenue,CAHD,South Glos Users in South Glos Homes,Permanent Nursing,Deerhurst Nursing Home,750.40, 08-Mar-2022
1509,Revenue,CAHD,South Glos Users in South Glos Homes,Permanent Nursing,Deerhurst Nursing Home,750.40, 08-Mar-2022
1510,Revenue,CAHD,South Glos Users in South Glos Homes,Permanent Nursing,Deerhurst Nursing Home,750.40, 08-Mar-2022
1511,Revenue,CAHD,South Glos Users in South Glos Homes,Permanent Nursing,Deerhurst Nursing Home,750.40, 08-Mar-2022
1512,Revenue,CAHD,South Glos Users in South Glos Homes,Permanent Nursing,Deerhurst Nursing Home,750.40, 08-Mar-2022
1513,Revenue,CAHD,South Glos Users in South Glos Homes,Permanent Nursing,Deerhurst Nursing Home,750.40, 08-Mar-2022
1514,Revenue,CAHD,South Glos Users in South Glos Homes,Permanent Nursing,Deerhurst Nursing Home,750.40, 08-Mar-2022
1515,Revenue,CAHD,South Glos Users in South Glos Homes,Permanent Nursing,Deerhurst Nursing Home,750.40, 08-Mar-2022
1516,Revenue,CAHD,South Glos Users in South Glos Homes,Permanent Nursing,Deerhurst Nursing Home,750.40, 08-Mar-2022
1517,Revenue,CAHD,South Glos Users in South Glos Homes,Permanent Nursing,Deerhurst Nursing Home,750.40, 08-Mar-2022
1518,Revenue,CAHD,South Glos Users in South Glos Homes,Permanent Nursing,Deerhurst Nursing Home,750.40, 08-Mar-2022
1519,Revenue,CAHD,South Glos Users in South Glos Homes,Permanent Nursing,Deerhurst Nursing Home,750.40, 08-Mar-2022
1520,Revenue,CAHD,South Glos Users in South Glos Homes,Permanent Nursing,Deerhurst Nursing Home,750.40, 08-Mar-2022
1521,Revenue,CAHD,South Glos Users in South Glos Homes,Permanent Nursing,Deerhurst Nursing Home,750.40, 08-Mar-2022
1522,Revenue,CAHD,South Glos Users in South Glos Homes,Permanent Nursing,Deerhurst Nursing Home,750.40, 08-Mar-2022
1523,Revenue,CAHD,South Glos Users in South Glos Homes,Permanent Nursing,Deerhurst Nursing Home,750.40, 08-Mar-2022
1524,Revenue,CAHD,South Glos Users in South Glos Homes,Permanent Nursing,Deerhurst Nursing Home,750.40, 08-Mar-2022
1525,Revenue,CAHD,South Glos Users in South Glos Homes,Permanent Nursing,Deerhurst Nursing Home,750.40, 08-Mar-2022
1526,Revenue,CAHD,South Glos Users in South Glos Homes,Permanent Nursing,Deerhurst Nursing Home,750.40, 08-Mar-2022
1527,Revenue,CAHD,South Glos Users in South Glos Homes,Permanent Nursing,Deerhurst Nursing Home,750.40, 08-Mar-2022
1528,Revenue,CAHD,South Glos Users in South Glos Homes,Permanent Nursing,Deerhurst Nursing Home,750.40, 08-Mar-2022
1529,Revenue,CAHD,South Glos Users in South Glos Homes,Permanent Nursing,Deerhurst Nursing Home,750.40, 08-Mar-2022
1530,Revenue,CAHD,South Glos Users in South Glos Homes,Permanent Nursing,Deerhurst Nursing Home,750.40, 08-Mar-2022
1531,Revenue,CAHD,South Glos Users in South Glos Homes,Permanent Nursing,Deerhurst Nursing Home,750.40, 08-Mar-2022
1532,Revenue,CAHD,South Glos Users in South Glos Homes,Permanent Nursing,Deerhurst Nursing Home,750.40, 08-Mar-2022
1533,Revenue,CAHD,South Glos Users in South Glos Homes,Permanent Nursing,Deerhurst Nursing Home,750.40, 08-Mar-2022
1534,Revenue,CAHD,South Glos Users in South Glos Homes,Permanent Nursing,Deerhurst Nursing Home,750.40, 08-Mar-2022
1535,Revenue,CAHD,South - Commissioned Services,Permanent Nursing,Deerhurst Nursing Home,3970.68, 08-Mar-2022
1536,Revenue,CAHD,South - Commissioned Services,Permanent Nursing,Deerhurst Nursing Home,4501.20, 08-Mar-2022
1537,Revenue,CAHD,South - Commissioned Services,Permanent Nursing,Deerhurst Nursing Home,4762.80, 08-Mar-2022
1538,Revenue,CAHD,South - Commissioned Services,Permanent Nursing,Deerhurst Nursing Home,4800.00, 08-Mar-2022
1539,Revenue,CAHD,South - Commissioned Services,Permanent Nursing,Deerhurst Nursing Home,4182.12, 08-Mar-2022
1540,Revenue,CAHD,South - Commissioned Services,Permanent Nursing,Deerhurst Nursing Home,4180.04, 08-Mar-2022
1541,Revenue,CAHD,South - Commissioned Services,Permanent Nursing,Deerhurst Nursing Home,4060.32, 08-Mar-2022
1542,Revenue,CAHD,South - Commissioned Services,Permanent Nursing,Deerhurst Nursing Home,4760.00, 08-Mar-2022
1543,Revenue,CAHD,South - Commissioned Services,Permanent Nursing,Deerhurst Nursing Home,4760.00, 08-Mar-2022
1544,Revenue,CAHD,South - Commissioned Services,Permanent Nursing,Deerhurst Nursing Home,4760.00, 08-Mar-2022
1545,Revenue,CAHD,South - Commissioned Services,Permanent Nursing,Deerhurst Nursing Home,4762.80, 08-Mar-2022
1546,Revenue,CAHD,South - Commissioned Services,Fees & Charges Income - General,Deerhurst Nursing Home,-608.80, 08-Mar-2022
1547,Revenue,CAHD,South - Commissioned Services,Fees & Charges Income - General,Deerhurst Nursing Home,-611.00, 08-Mar-2022
1548,Revenue,CAHD,South - Commissioned Services,Fees & Charges Income - General,Deerhurst Nursing Home,-608.80, 08-Mar-2022
1549,Revenue,CAHD,South - Commissioned Services,Fees & Charges Income - General,Deerhurst Nursing Home,-1152.76, 08-Mar-2022
1550,Revenue,CAHD,South - Commissioned Services,Fees & Charges Income - General,Deerhurst Nursing Home,-1227.44, 08-Mar-2022
1551,Revenue,CAHD,South - Commissioned Services,Fees & Charges Income - General,Deerhurst Nursing Home,-1370.36, 08-Mar-2022
1552,Revenue,CAHD,South - Commissioned Services,Fees & Charges Income - General,Deerhurst Nursing Home,-1606.80, 08-Mar-2022
1553,Revenue,CAHD,South - Commissioned Services,Fees & Charges Income - General,Deerhurst Nursing Home,-872.08, 08-Mar-2022
1554,Revenue,CAHD,South - Commissioned Services,Fees & Charges Income - General,Deerhurst Nursing Home,-608.80, 08-Mar-2022
1555,Revenue,CAHD,South - Commissioned Services,Fees & Charges Income - General,Deerhurst Nursing Home,-608.80, 08-Mar-2022
1556,Revenue,CAHD,South - Commissioned Services,Fees & Charges Income - General,Deerhurst Nursing Home,-1056.36, 08-Mar-2022
1557,Revenue,CAHD,South - Commissioned Services,Day Care / Social Activities,Deerhurst Nursing Home,581.28, 08-Mar-2022
1558,Revenue,CAHD,South - Commissioned Services,Permanent Residential,Deerhurst Nursing Home,4129.00, 08-Mar-2022
1559,Revenue,CAHD,South - Commissioned Services,Permanent Residential,Deerhurst Nursing Home,3891.20, 08-Mar-2022
1560,Revenue,CAHD,South - Commissioned Services,Permanent Nursing,Deerhurst Nursing Home,4006.00, 08-Mar-2022
1561,Revenue,CAHD,South - Commissioned Services,Permanent Nursing,Deerhurst Nursing Home,3965.12, 08-Mar-2022
1562,Revenue,CAHD,South - Commissioned Services,Permanent Nursing,Deerhurst Nursing Home,4129.40, 08-Mar-2022
1563,Revenue,CAHD,South - Commissioned Services,Permanent Nursing,Deerhurst Nursing Home,4596.36, 08-Mar-2022
1564,Revenue,CAHD,South - Commissioned Services,Permanent Nursing,Deerhurst Nursing Home,4006.00, 08-Mar-2022
1565,Revenue,CAHD,South - Commissioned Services,Fees & Charges Income - General,Deerhurst Nursing Home,-117.40, 08-Mar-2022
1566,Revenue,CAHD,South - Commissioned Services,Fees & Charges Income - General,Deerhurst Nursing Home,-1307.24, 08-Mar-2022
1567,Revenue,CAHD,South - Commissioned Services,Fees & Charges Income - General,Deerhurst Nursing Home,-218.92, 08-Mar-2022
1568,Revenue,CAHD,South - Commissioned Services,Fees & Charges Income - General,Deerhurst Nursing Home,-836.36, 08-Mar-2022
1569,Revenue,CAHD,South - Commissioned Services,Fees & Charges Income - General,Deerhurst Nursing Home,-608.80, 08-Mar-2022
1570,Revenue,CAHD,South - Commissioned Services,Fees & Charges Income - General,Deerhurst Nursing Home,-916.72, 08-Mar-2022
1571,Revenue,CAHD,North - Community based support,Permanent Nursing,Deerhurst Nursing Home,3891.20, 08-Mar-2022
1572,Revenue,CAHD,North - Community based support,Permanent Nursing,Deerhurst Nursing Home,4140.00, 08-Mar-2022
1573,Revenue,CAHD,North - Community based support,Fees & Charges Income - General,Deerhurst Nursing Home,-1039.28, 08-Mar-2022
1574,Revenue,CAHD,North - Community based support,Fees & Charges Income - General,Deerhurst Nursing Home,-624.80, 08-Mar-2022
1575,Revenue,CAHD,Covid - ASC - Infection Control,Grants to Voluntary Bodies,Deerhurst Nursing Home,13945.00, 29-Mar-2022
1576,Revenue,CAHD,ASC Rapid Testing Fund,Grants to Voluntary Bodies,Deerhurst Nursing Home,5244.38, 07-Mar-2022
1577,Revenue,CAHD,Covid - Vaccines,Grants to Voluntary Bodies,Deerhurst Nursing Home,644.79, 07-Mar-2022
1578,Revenue,CAHD,Covid  - Workforce capacity,Grants to Voluntary Bodies,Deerhurst Nursing Home,5731.74, 30-Mar-2022
1579,Revenue,CAHD,Covid  - Workforce capacity,Grants to Voluntary Bodies,Deerhurst Nursing Home,7357.55, 30-Mar-2022
1580,Revenue,CAHD,North - Community based support,Permanent Residential,Deerhurst Nursing Home,8699.20, 08-Mar-2022
1581,Revenue,CAHD,North - Community based support,Fees & Charges Income - General,Deerhurst Nursing Home,-425.60, 08-Mar-2022
1582,Revenue,CAHD,Schools Specific Grant Income,Other Public Bodies,Dene Magna School,500.00, 09-Mar-2022
1583,Revenue,CAHD,Central - Commissioned Services,Day Care / Social Activities,Design House,3060.40, 08-Mar-2022
1584,Revenue,CAHD,South - Commissioned Services,Day Care / Social Activities,Design House,538.88, 08-Mar-2022
1585,Revenue,CAHD,18-25 Year Olds,Respite Care,Design House,0.00, 08-Mar-2022
1586,Revenue,CAHD,18-25 Year Olds,Respite Care,Design House,0.00, 08-Mar-2022
1587,Revenue,CAHD,18-25 Year Olds,Respite Care,Design House,0.00, 08-Mar-2022
1588,Revenue,CAHD,18-25 Year Olds,Respite Care,Design House,0.00, 08-Mar-2022
1589,Revenue,CAHD,18-25 Year Olds,Supported Living,Design House,4094.76, 08-Mar-2022
1590,Revenue,CAHD,18-25 Year Olds,Supported Living,Design House,4094.76, 08-Mar-2022
1591,Revenue,CAHD,18-25 Year Olds,Supported Living,Design House,3083.24, 08-Mar-2022
1592,Revenue,CAHD,18-25 Year Olds,Supported Living,Design House,3107.04, 08-Mar-2022
1593,Revenue,CAHD,South - Commissioned Services,Respite Care,Design House,0.00, 08-Mar-2022
1594,Revenue,CAHD,South - Commissioned Services,Respite Care,Design House,0.00, 08-Mar-2022
1595,Revenue,CAHD,South - Commissioned Services,Respite Care,Design House,0.00, 08-Mar-2022
1596,Revenue,CAHD,South - Commissioned Services,Respite Care,Design House,0.00, 08-Mar-2022
1597,Revenue,CAHD,South - Commissioned Services,Respite Care,Design House,0.00, 08-Mar-2022
1598,Revenue,CAHD,South - Commissioned Services,Respite Care,Design House,0.00, 08-Mar-2022
1599,Revenue,CAHD,South - Commissioned Services,Respite Care,Design House,0.00, 08-Mar-2022
1600,Revenue,CAHD,South - Commissioned Services,Respite Care,Design House,0.00, 08-Mar-2022
1601,Revenue,CAHD,South - Commissioned Services,Respite Care,Design House,0.00, 08-Mar-2022
1602,Revenue,CAHD,South - Commissioned Services,Respite Care,Design House,0.00, 08-Mar-2022
1603,Revenue,CAHD,South - Commissioned Services,Respite Care,Design House,0.00, 08-Mar-2022
1604,Revenue,CAHD,South - Commissioned Services,Respite Care,Design House,0.00, 08-Mar-2022
1605,Revenue,CAHD,South - Commissioned Services,Respite Care,Design House,0.00, 08-Mar-2022
1606,Revenue,CAHD,South - Commissioned Services,Supported Living,Design House,2753.28, 08-Mar-2022
1607,Revenue,CAHD,South - Commissioned Services,Supported Living,Design House,2653.28, 08-Mar-2022
1608,Revenue,CAHD,South - Commissioned Services,Supported Living,Design House,2355.60, 08-Mar-2022
1609,Revenue,CAHD,South - Commissioned Services,Supported Living,Design House,2753.28, 08-Mar-2022
1610,Revenue,CAHD,South - Commissioned Services,Supported Living,Design House,3196.12, 08-Mar-2022
1611,Revenue,CAHD,South - Commissioned Services,Supported Living,Design House,2651.32, 08-Mar-2022
1612,Revenue,CAHD,South - Commissioned Services,Supported Living,Design House,2776.88, 08-Mar-2022
1613,Revenue,CAHD,South - Commissioned Services,Supported Living,Design House,3051.76, 08-Mar-2022
1614,Revenue,CAHD,South - Commissioned Services,Supported Living,Design House,2242.76, 08-Mar-2022
1615,Revenue,CAHD,South - Commissioned Services,Supported Living,Design House,1978.92, 08-Mar-2022
1616,Revenue,CAHD,South - Commissioned Services,Supported Living,Design House,4494.32, 08-Mar-2022
1617,Revenue,CAHD,South - Commissioned Services,Supported Living,Design House,2355.60, 08-Mar-2022
1618,Revenue,CAHD,South - Commissioned Services,Supported Living,Design House,2625.96, 08-Mar-2022
1619,Revenue,CAHD,North - Community based support,Respite Care,Design House,0.00, 08-Mar-2022
1620,Revenue,CAHD,North - Community based support,Supported Living,Design House,3434.00, 08-Mar-2022
1621,Revenue,CAHD,CSC - Vinney Green Secure Unit,R & M by Departments,Designplan Lighting Ltd,1380.00, 18-Mar-2022
1622,Revenue,CAHD,Bed and Breakfast,Bed & Breakfast,Designz Limited,511.00, 04-Mar-2022
1623,Revenue,CAHD,Bed and Breakfast,Bed & Breakfast,Designz Limited,1022.00, 22-Mar-2022
1624,Revenue,CAHD,Bed and Breakfast,Bed & Breakfast,Designz Limited,882.00, 18-Mar-2022
1625,Revenue,CAHD,Bed and Breakfast,Bed & Breakfast,Designz Limited,616.00, 18-Mar-2022
1626,Revenue,CAHD,Training Budget - Children`s Social Serv,Training Expenses,Do The Write Thing,850.00, 18-Mar-2022
1627,Revenue,CAHD,Community Support - MH < 65,Preventative Assistance,Dobbins Industrial Cleaning Limited,848.00, 22-Mar-2022
1628,Revenue,CAHD,North - Community based support,Permanent Nursing,Douglas House,3599.80, 08-Mar-2022
1629,Revenue,CAHD,North - Community based support,Fees & Charges Income - General,Douglas House,-356.80, 08-Mar-2022
1630,Revenue,CAHD,"Drugs, Alcohol and Sexual Health",Other Small Contracts,Downend Health Group,1771.00, 24-Mar-2022
1631,Revenue,CAHD,Statemented Support Academies,Other Public Bodies,Downend School,1544.42, 22-Mar-2022
1632,Revenue,CAHD,Statemented Support Academies,Other Public Bodies,Downend School,660.24, 22-Mar-2022
1633,Revenue,CAHD,Statemented Support Academies,Other Public Bodies,Downend School,1025.73, 22-Mar-2022
1634,Revenue,CAHD,Statemented Support Academies,Other Public Bodies,Downend School,1108.26, 22-Mar-2022
1635,Revenue,CAHD,Statemented Support Academies,Other Public Bodies,Downend School,554.13, 22-Mar-2022
1636,Revenue,CAHD,Statemented Support Academies,Other Public Bodies,Downend School,666.00, 22-Mar-2022
1637,Revenue,CAHD,Statemented Support Academies,Other Public Bodies,Downend School,822.83, 22-Mar-2022
1638,Revenue,CAHD,Statemented Support Academies,Other Public Bodies,Downend School,1079.67, 22-Mar-2022
1639,Revenue,CAHD,Statemented Support Academies,Other Public Bodies,Downend School,1438.38, 22-Mar-2022
1640,Revenue,CAHD,Statemented Support Academies,Other Public Bodies,Downend School,1709.55, 22-Mar-2022
1641,Revenue,CAHD,Statemented Support Academies,Other Public Bodies,Downend School,1192.50, 22-Mar-2022
1642,Revenue,CAHD,Statemented Support Academies,Other Public Bodies,Downend School,1544.49, 22-Mar-2022
1643,Revenue,CAHD,Statemented Support Academies,Other Public Bodies,Downend School,966.92, 22-Mar-2022
1644,Revenue,CAHD,Social Lettings Agency,Rent,Individual,822.73, 22-Mar-2022
1645,Revenue,CAHD,Social Lettings Agency,Fees & Charges Income - General,Individual,-65.82, 22-Mar-2022
1646,Revenue,CAHD,Schools Specific Grant Income,Other Public Bodies,Durham School,500.00, 09-Mar-2022
1647,Revenue,CAHD,CSC - Care Leavers Independent Living,Adults - Family Support,Dynamic Youth Support Services,15599.92, 04-Mar-2022
1648,Revenue,CAHD,CSC - Age Related Allowances,"Holidays, Outings & Visits",Individual,78.14, 04-Mar-2022
1649,Revenue,CAHD,CSC - Age Related Allowances,Foster Parent Allowances,Individual,173.00, 04-Mar-2022
1650,Revenue,CAHD,CSC - Professional Fees Foster Carers,Band 3 Foster Care,Individual,241.00, 04-Mar-2022
1651,Revenue,CAHD,CSC - Professional Fees Foster Carers,Therapeutic Fostering Fee,Individual,1086.00, 04-Mar-2022
1652,Revenue,CAHD,CSC - Asylum Seekers - Unaccompanied,"Holidays, Outings & Visits",Individual,78.14, 04-Mar-2022
1653,Revenue,CAHD,CSC - Asylum Seekers - Unaccompanied,Foster Parent Allowances,Individual,173.00, 04-Mar-2022
1654,Revenue,CAHD,CSC - Age Related Allowances,Foster Parent Allowances,Individual,173.00, 11-Mar-2022
1655,Revenue,CAHD,CSC - Professional Fees Foster Carers,Band 3 Foster Care,Individual,-172.14, 11-Mar-2022
1656,Revenue,CAHD,CSC - Professional Fees Foster Carers,Therapeutic Fostering Fee,Individual,1086.00, 11-Mar-2022
1657,Revenue,CAHD,CSC - Asylum Seekers - Unaccompanied,Foster Parent Allowances,Individual,173.00, 11-Mar-2022
1658,Revenue,CAHD,CSC - Asylum Seekers - Unaccompanied,Band 3 Foster Care,Individual,413.14, 11-Mar-2022
1659,Revenue,CAHD,CSC - Age Related Allowances,Foster Parent Allowances,Individual,173.00, 18-Mar-2022
1660,Revenue,CAHD,CSC - Professional Fees Foster Carers,Therapeutic Fostering Fee,Individual,1086.00, 18-Mar-2022
1661,Revenue,CAHD,CSC - Asylum Seekers - Unaccompanied,Foster Parent Allowances,Individual,173.00, 18-Mar-2022
1662,Revenue,CAHD,CSC - Asylum Seekers - Unaccompanied,Band 3 Foster Care,Individual,241.00, 18-Mar-2022
1663,Revenue,CAHD,CSC - Age Related Allowances,Foster Parent Allowances,Individual,173.00, 25-Mar-2022
1664,Revenue,CAHD,CSC - Professional Fees Foster Carers,Fostering Plus Enhanced Fee,Individual,1327.00, 25-Mar-2022
1665,Revenue,CAHD,CSC - Professional Fees Foster Carers,Therapeutic Fostering Fee,Individual,1928.00, 25-Mar-2022
1666,Revenue,CAHD,CSC - Asylum Seekers - Unaccompanied,Foster Parent Allowances,Individual,173.00, 25-Mar-2022
1667,Revenue,CAHD,CSC - Asylum Seekers - Unaccompanied,Band 3 Foster Care,Individual,241.00, 25-Mar-2022
1668,Revenue,CAHD,North - Community based support,Permanent Residential,East Court,2763.56, 08-Mar-2022
1669,Revenue,CAHD,North - Community based support,Fees & Charges Income - General,East Court,-425.60, 08-Mar-2022
1670,Revenue,CAHD,CSC - Asylum Seekers - Unaccompanied,Independent Living,Eclipse Properties Limited,5940.00, 15-Mar-2022
1671,Revenue,CAHD,CSC - Asylum Seekers - Unaccompanied,Independent Living,Eclipse Properties Limited,5940.00, 15-Mar-2022
1672,Revenue,CAHD,Business Support Badminton Road,Long Service Awards,Edenred (UK Group) Limited,530.00, 01-Mar-2022
1673,Revenue,CAHD,Leadership and Business Support,Long Service Awards,Edenred (UK Group) Limited,480.00, 01-Mar-2022
1674,Revenue,CAHD,Alexandra Way,Long Service Awards,Edenred (UK Group) Limited,450.00, 01-Mar-2022
1675,Revenue,CAHD,Planning and Partnerships Team,Long Service Awards,Edenred (UK Group) Limited,550.00, 01-Mar-2022
1676,Revenue,CAHD,Mental Capacity Act / DOLS,Grants to Voluntary Bodies,Edge Training & Consultancy Limited,875.00, 28-Mar-2022
1677,Revenue,CAHD,Central - Commissioned Services,Permanent Residential,Edgemont House Ltd,3200.00, 08-Mar-2022
1678,Revenue,CAHD,Central - Commissioned Services,Respite Planned - Residential,Edgemont House Ltd,3200.00, 08-Mar-2022
1679,Revenue,CAHD,Central - Commissioned Services,Fees & Charges Income - General,Edgemont House Ltd,-838.08, 08-Mar-2022
1680,Revenue,CAHD,South - Commissioned Services,Permanent Residential,Edgemont House Ltd,3273.60, 08-Mar-2022
1681,Revenue,CAHD,South - Commissioned Services,Permanent Residential,Edgemont House Ltd,3339.08, 08-Mar-2022
1682,Revenue,CAHD,South - Commissioned Services,Permanent Residential,Edgemont House Ltd,3130.40, 08-Mar-2022
1683,Revenue,CAHD,South - Commissioned Services,Permanent Residential,Edgemont House Ltd,3000.00, 08-Mar-2022
1684,Revenue,CAHD,South - Commissioned Services,Permanent Residential,Edgemont House Ltd,3200.00, 08-Mar-2022
1685,Revenue,CAHD,South - Commissioned Services,Fees & Charges Income - General,Edgemont House Ltd,-1663.44, 08-Mar-2022
1686,Revenue,CAHD,South - Commissioned Services,Fees & Charges Income - General,Edgemont House Ltd,-608.80, 08-Mar-2022
1687,Revenue,CAHD,South - Commissioned Services,Fees & Charges Income - General,Edgemont House Ltd,-3271.20, 08-Mar-2022
1688,Revenue,CAHD,South - Commissioned Services,Fees & Charges Income - General,Edgemont House Ltd,-922.88, 08-Mar-2022
1689,Revenue,CAHD,South - Commissioned Services,Fees & Charges Income - General,Edgemont House Ltd,-1317.24, 08-Mar-2022
1690,Revenue,CAHD,Covid  - Workforce capacity,Grants to Voluntary Bodies,Edgemont House Ltd,946.01, 30-Mar-2022
1691,Revenue,CAHD,Covid  - Workforce capacity,Grants to Voluntary Bodies,Edgemont House Ltd,1250.78, 30-Mar-2022
1692,Revenue,CAHD,South Glos Users in South Glos Homes,Permanent Nursing,Edgemont View Ltd,750.40, 08-Mar-2022
1693,Revenue,CAHD,South Glos Users in South Glos Homes,Permanent Nursing,Edgemont View Ltd,750.40, 08-Mar-2022
1694,Revenue,CAHD,South Glos Users in South Glos Homes,Permanent Nursing,Edgemont View Ltd,750.40, 08-Mar-2022
1695,Revenue,CAHD,South Glos Users in South Glos Homes,Permanent Nursing,Edgemont View Ltd,750.40, 08-Mar-2022
1696,Revenue,CAHD,South Glos Users in South Glos Homes,Permanent Nursing,Edgemont View Ltd,750.40, 08-Mar-2022
1697,Revenue,CAHD,South Glos Users in South Glos Homes,Permanent Nursing,Edgemont View Ltd,750.40, 08-Mar-2022
1698,Revenue,CAHD,South Glos Users in South Glos Homes,Permanent Nursing,Edgemont View Ltd,750.40, 08-Mar-2022
1699,Revenue,CAHD,South Glos Users in South Glos Homes,Permanent Nursing,Edgemont View Ltd,750.40, 08-Mar-2022
1700,Revenue,CAHD,South Glos Users in South Glos Homes,Permanent Nursing,Edgemont View Ltd,750.40, 08-Mar-2022
1701,Revenue,CAHD,South Glos Users in South Glos Homes,Permanent Nursing,Edgemont View Ltd,750.40, 08-Mar-2022
1702,Revenue,CAHD,South Glos Users in South Glos Homes,Permanent Nursing,Edgemont View Ltd,750.40, 08-Mar-2022
1703,Revenue,CAHD,South Glos Users in South Glos Homes,Permanent Nursing,Edgemont View Ltd,750.40, 08-Mar-2022
1704,Revenue,CAHD,South Glos Users in South Glos Homes,Permanent Nursing,Edgemont View Ltd,750.40, 08-Mar-2022
1705,Revenue,CAHD,South Glos Users in South Glos Homes,Permanent Nursing,Edgemont View Ltd,-1152.40, 08-Mar-2022
1706,Revenue,CAHD,South Glos Users in South Glos Homes,Permanent Nursing,Edgemont View Ltd,750.40, 08-Mar-2022
1707,Revenue,CAHD,Central - Commissioned Services,Respite Planned - Nursing,Edgemont View Ltd,6814.29, 08-Mar-2022
1708,Revenue,CAHD,South - Commissioned Services,Permanent Nursing,Edgemont View Ltd,3739.76, 08-Mar-2022
1709,Revenue,CAHD,South - Commissioned Services,Permanent Nursing,Edgemont View Ltd,3580.52, 08-Mar-2022
1710,Revenue,CAHD,South - Commissioned Services,Permanent Nursing,Edgemont View Ltd,3478.20, 08-Mar-2022
1711,Revenue,CAHD,South - Commissioned Services,Permanent Nursing,Edgemont View Ltd,3547.76, 08-Mar-2022
1712,Revenue,CAHD,South - Commissioned Services,Permanent Nursing,Edgemont View Ltd,3478.20, 08-Mar-2022
1713,Revenue,CAHD,South - Commissioned Services,Permanent Nursing,Edgemont View Ltd,6689.20, 08-Mar-2022
1714,Revenue,CAHD,South - Commissioned Services,Permanent Nursing,Edgemont View Ltd,3682.80, 08-Mar-2022
1715,Revenue,CAHD,South - Commissioned Services,Permanent Nursing,Edgemont View Ltd,3580.52, 08-Mar-2022
1716,Revenue,CAHD,South - Commissioned Services,Permanent Nursing,Edgemont View Ltd,3547.76, 08-Mar-2022
1717,Revenue,CAHD,South - Commissioned Services,Permanent Nursing,Edgemont View Ltd,3500.00, 08-Mar-2022
1718,Revenue,CAHD,South - Commissioned Services,Permanent Nursing,Edgemont View Ltd,-6127.07, 08-Mar-2022
1719,Revenue,CAHD,South - Commissioned Services,Fees & Charges Income - General,Edgemont View Ltd,-720.80, 08-Mar-2022
1720,Revenue,CAHD,South - Commissioned Services,Fees & Charges Income - General,Edgemont View Ltd,-670.32, 08-Mar-2022
1721,Revenue,CAHD,South - Commissioned Services,Fees & Charges Income - General,Edgemont View Ltd,-680.96, 08-Mar-2022
1722,Revenue,CAHD,South - Commissioned Services,Fees & Charges Income - General,Edgemont View Ltd,-821.68, 08-Mar-2022
1723,Revenue,CAHD,South - Commissioned Services,Fees & Charges Income - General,Edgemont View Ltd,-1051.74, 08-Mar-2022
1724,Revenue,CAHD,South - Commissioned Services,Fees & Charges Income - General,Edgemont View Ltd,-1124.80, 08-Mar-2022
1725,Revenue,CAHD,South - Commissioned Services,Fees & Charges Income - General,Edgemont View Ltd,-516.00, 08-Mar-2022
1726,Revenue,CAHD,South - Commissioned Services,Fees & Charges Income - General,Edgemont View Ltd,-608.80, 08-Mar-2022
1727,Revenue,CAHD,South - Commissioned Services,Fees & Charges Income - General,Edgemont View Ltd,-35.63, 08-Mar-2022
1728,Revenue,CAHD,South - Commissioned Services,Fees & Charges Income - General,Edgemont View Ltd,11666.40, 08-Mar-2022
1729,Revenue,CAHD,Covid  - Workforce capacity,Grants to Voluntary Bodies,Edgemont View Ltd,1279.90, 30-Mar-2022
1730,Revenue,CAHD,Covid  - Workforce capacity,Grants to Voluntary Bodies,Edgemont View Ltd,1618.66, 30-Mar-2022
1731,Revenue,CAHD,Homelessness Contingency,Other Supplies & Services,Edison Ford Estate Agents,2046.15, 30-Mar-2022
1732,Revenue,CAHD,Supporting People Programme,Grants to Voluntary Bodies,Elim Housing Association Limited,5362.00, 01-Mar-2022
1733,Revenue,CAHD,Social Lettings Agency,Rent,Individual,1321.36, 11-Mar-2022
1734,Revenue,CAHD,Social Lettings Agency,Fees & Charges Income - General,Individual,-79.30, 11-Mar-2022
1735,Revenue,CAHD,North - Community based support,Permanent Residential,Ellsworth House,10016.24, 08-Mar-2022
1736,Revenue,CAHD,North - Community based support,Fees & Charges Income - General,Ellsworth House,-425.60, 08-Mar-2022
1737,Revenue,CAHD,Placements OLA Special Schools and RB,Other L.A.s - General,Elmfield School for Deaf Children,1268.03, 22-Mar-2022
1738,Revenue,CAHD,Placements OLA Special Schools and RB,Other L.A.s - General,Elmfield School for Deaf Children,792.40, 22-Mar-2022
1739,Revenue,CAHD,Placements OLA Special Schools and RB,Other L.A.s - General,Elmfield School for Deaf Children,1268.03, 22-Mar-2022
1740,Revenue,CAHD,Placements OLA Special Schools and RB,Other L.A.s - General,Elmfield School for Deaf Children,1268.03, 22-Mar-2022
1741,Revenue,CAHD,Placements OLA Special Schools and RB,Other L.A.s - General,Elmfield School for Deaf Children,792.40, 22-Mar-2022
1742,Revenue,CAHD,Placements OLA Special Schools and RB,Other L.A.s - General,Elmfield School for Deaf Children,1268.03, 22-Mar-2022
1743,Revenue,CAHD,Placements OLA Special Schools and RB,Other L.A.s - General,Elmfield School for Deaf Children,1268.03, 22-Mar-2022
1744,Revenue,CAHD,Special ISB,Other Public Bodies,Enable Trust,1175.88, 21-Mar-2022
1745,Revenue,CAHD,Special ISB,Other Public Bodies,Enable Trust,1175.88, 21-Mar-2022
1746,Revenue,CAHD,Special ISB,Other Public Bodies,Enable Trust,1540.84, 21-Mar-2022
1747,Revenue,CAHD,Special ISB,Other Public Bodies,Enable Trust,1175.88, 21-Mar-2022
1748,Revenue,CAHD,Special ISB,Other Public Bodies,Enable Trust,892.04, 21-Mar-2022
1749,Revenue,CAHD,Special ISB,Other Public Bodies,Enable Trust,1175.88, 21-Mar-2022
1750,Revenue,CAHD,Special ISB,Other Public Bodies,Enable Trust,1175.88, 21-Mar-2022
1751,Revenue,CAHD,Special ISB,Other Public Bodies,Enable Trust,892.04, 21-Mar-2022
1752,Revenue,CAHD,Special ISB,Other Public Bodies,Enable Trust,1540.84, 21-Mar-2022
1753,Revenue,CAHD,Special ISB,Other Public Bodies,Enable Trust,1175.88, 21-Mar-2022
1754,Revenue,CAHD,Special ISB,Other Public Bodies,Enable Trust,1175.88, 21-Mar-2022
1755,Revenue,CAHD,Special ISB,Other Public Bodies,Enable Trust,1540.84, 21-Mar-2022
1756,Revenue,CAHD,Special ISB,Other Public Bodies,Enable Trust,1540.84, 21-Mar-2022
1757,Revenue,CAHD,Special ISB,Other Public Bodies,Enable Trust,2189.53, 21-Mar-2022
1758,Revenue,CAHD,Special ISB,Other Public Bodies,Enable Trust,1175.88, 21-Mar-2022
1759,Revenue,CAHD,Special ISB,Other Public Bodies,Enable Trust,1175.88, 21-Mar-2022
1760,Revenue,CAHD,Special ISB,Other Public Bodies,Enable Trust,1175.88, 21-Mar-2022
